{"text_format":"1","workbook":"xlsx","n_sheets":16,"sheets":["DIRECTIONS","TRANSCRIPT INFORMATION","GEs","MAJOR FORM","Student Tracking Form","UNOFFICIAL GPA","SCHEDULE","Module1","Module2","Module3","Module4","Module5","Module6","Module7","Module8","Module9"],"not_rendered":{"charts":0,"images":4,"macros":1,"external_links":0,"defined_names":5,"comments":2,"pivot_tables":0},"unopened":[{"sheet":"Module1","index":7,"reason":"part_missing"},{"sheet":"Module2","index":8,"reason":"part_missing"},{"sheet":"Module3","index":9,"reason":"part_missing"},{"sheet":"Module4","index":10,"reason":"part_missing"},{"sheet":"Module5","index":11,"reason":"part_missing"},{"sheet":"Module6","index":12,"reason":"part_missing"},{"sheet":"Module7","index":13,"reason":"part_missing"},{"sheet":"Module8","index":14,"reason":"part_missing"},{"sheet":"Module9","index":15,"reason":"part_missing"}],"bounds":{"document_bytes":16777216,"sheet_cells":100000,"rows_first":2000,"rows_last":500,"rows_between":2000,"halvings":0,"cell_chars":16384,"cell_head_chars":4096},"cells_cut":0,"cells_raw":0,"read":"whole","date_system":"1900"}

{"sheet":"DIRECTIONS","index":0,"n_rows":61,"n_cols":7,"rows_kept":61,"cut":false,"hidden":false,"merged":[]}
["REVISED ","2010-03-18"]
["DIRECTIONS - IT IS RECOMMENDED THAT YOU PRINT OUT THIS PAGE."]
[]
["This program planning template uses several worksheets and produces:"]
["1.  Major Form",null,null,"2.  Unofficial GPA Calculation",null,null,"3.  Student Schedule"]
["Data is  ENTERED ONLY on the TRANSCRIPT INFORMATION and GEs forms. "]
["DO NOT TYPE DATA INTO THE MAJOR FORM WORKSHEET."]
["For the initial data entry on the TRANSCRIPT INFORMATION form,"]
[" use the following sequence and note there are comments"]
["in the title box at the top of each column."]
[1,"Enter the communication data."]
[2,"Enter the following dates in Month-Year format. Check "]
[null,"with your advisor if you are unsure of the information."]
[null,2.1,"Catalog you will use for graduation. Date you started in continous enrollment"]
[null,null,"at a CC, CSU or UC. Continuous means"]
[null,null,"no breaks of more than one semester."]
[null,2.4,"Proposed Graduation Date (Month-Year)"]
[3,"Course data are entered to represent your actual program. There will need to be an"]
[null,"entry for every course listed in the table."]
[null,3.1,"List all the data for courses you have completed and the schedule date for"]
[null,null,"courses you are planning to complete. When finished you should "]
[null,null,"have a complete program schedule for all the required courses."]
[null,null,"If you are completing a minor, do not enter data for courses in the minor "]
[null,null,"unless they are also used for the major. "]
[null,3.2,"If you have additional courses, for example 3 quarter courses for General"]
[null,null,"Chemistry instead of 2 semester courses, then use the blank rows in "]
[null,null,"each section to enter the data for the additional courses."]
[null,3.3,"It is necessary to enter specific Technical Elective courses to have"]
[null,null,"a complete program. Approved elective courses may be found on the Web site "]
[null,null,"also in the program brochure. It is necessary to have a complete program"]
[null,null,"listing, but you have the option to change electives at a later date."]
[null,3.4,"Obtain an unofficial copy of all non-SJSU transcripts that include courses"]
[null,null,"included in your program and submit that to the department for your file."]
[null,null,"If you have already submitted all such transcripts to the department you do not need to re-submit them."]
[null,3.4,"Do not enter initial data for courses repeated at SJSU. The second grade for the "]
[null,null,"course is automatically substituted for the first grade for your transcript GPA."]
[4,"Data to be entered for the General Education GE's page"]
[null,4.0999999999999996,"The top section of the worksheet is a description of the method used to satisfy "]
[null,null,"the Lower Division GE requirements. If you have a Lower Division General "]
[null,null,"Education Certificate listed on a CC transcript, then you have met all the"]
[null,null,"requirements for Lower Division GE. "]
[null,null,"4.1.1","Enter GE data for all completed courses and the scheduled date"]
[null,null,null,"to complete the rest of the courses in the appropriate option section."]
[null,null,"4.1.2","Obtain an unofficial copy of all non-SJSU transcripts that include "]
[null,null,null,"courses listed on your GE program and submit that to the "]
[null,null,null,"department for your file."]
[null,null,"4.1.3","It will be necessary to schedule a GE evaluation prior to submitting"]
[null,null,null,"your Major Form package for review and approval at least 3"]
[null,null,null,"semesters prior to graduation."]
[5,"Run the Macro to develop the Program Schedule"]
[null,5.0999999999999996,"Switch to the SCHEDULE worksheet"]
[null,5.2,"Enter ALT F8"]
[null,5.3,"Enter  RUN "]
[6,"Use of the Program Output"]
[null,6.1,"Print a copy of each worksheet in the spreadsheet and bring these to your"]
[null,null,"next advising session."]
[null,6.2,"Copies of the Major Form and the GE's page will be submitted with your "]
[null,null,"Major Form package for review and approval at least 3 semesters prior to "]
[null,null,"graduation."]
[null,6.3,"Major Forms may also be used to meet requirements for Financial Aids to "]
[null,null,"demonstrate normal progress and plans to complete the program."]

{"sheet":"TRANSCRIPT INFORMATION","index":1,"n_rows":59,"n_cols":17,"rows_kept":59,"cut":false,"hidden":false,"merged":[[0,0,0,5],[0,6,0,8],[0,10,0,11],[5,4,5,7]]}
["STUDENT COURSE SCHEDULE AND MAJOR FORM PLANNING SHEET ",null,null,null,null,null,"BIOMEDICAL ENGINEERING B.S.",null,null,"REV. DATE:","JULY 2014"]
["Students should only enter data on the first Sheet TRANSCRIPT INFORMATION and on the second sheet GENERAL EDUCATION. The following Sheets are used to create print-out forms."]
["Cells in the Title Row have comments to provide directions. Please see your advisor if it is not clear how to enter data into this spreadsheet."]
[null,null,"COMMUNICATION DATA","REVISION DATE:",null,null,{"$f":"+TODAY()","v":"2016-10-03"}]
["Last Name:"]
["First Name, MI.:",null,null,null,"GRADUATION CATALOG\nDATE STARTED  CONTINUOUS ENROLLMENT IN A CSU OR CC:"]
["SJSU Student ID:"]
["Mailing Street Address:",null,null,null,"PROPOSED DATA OF GRADUATION:"]
["Mailing City State Zip"]
["e-Mail:"]
["Telephone (primary):"]
["Telephone (secondary):"]
[]
["Index","SJSU COURSE NUMBER.","SJSU COURSE TITLE","SJSU UNITS","TOOK COURSE 1st TIME AT SJSU? Y, N, or blank","TOOK COURSE 2nd TIME AT SJSU? Y, N, or blank"," ALTERNATE INSTITUTION ABBREVIATION","ALT. INST. COURSE NUMBER","ALTERNATE INSTITUTION COURSE TITLE","ALT. INST. UNITS","ALT. INST. TERM TYPE S or Q","Letter Grade 1","Term Grade 1 Obtained or Scheduled","Year Grade 1 Obtained or Scheduled","Letter Grade 2","Term Grade 2 Obtained","Year Grade 2 Obtained"]
["COURSES IN PREPARATION FOR THE MAJOR"]
[1,"MATH 30","CALCULUS I",3,"Y",null,null,null,null,null,null,"N/A",null,null,"N/A"]
[{"$f":"1+A16","v":2},"MATH 31","CALCULUS II",4,"Y",null,null,null,null,null,null,"N/A"," ",null,"N/A"]
[{"$f":"1+A17","v":3},"MATH 32","CALCULUS III",3,"Y",null,null,null,null,null,null,"N/A"," ",null,"N/A"]
[4]
[5,"MATH 133A","ORDINARY DIFFERENTIAL EQUATIONS",3,"Y",null,null,null,null,null,null,"N/A"," ",null,"N/A"]
[6,null,null,null,null,null,null,null,null,null,null,"N/A"," ",null,"N/A"]
[7,"CHEM 1A","GENERAL CHEMISTRY",5,"Y",null,null,null,null,null,null,"N/A"," ",null,"N/A"]
[8,"CHEM 1B","GENERAL CHEMISTRY",5,"Y",null,null,null,null,null,null,"N/A"," ",null,"N/A"]
[{"$f":"1+A23","v":9},null,null,null,null,null,null,null,null,null,null,"N/A"," ",null,"N/A"]
[{"$f":"1+A24","v":10},"PHYS 50","MECHANICS",4,"Y",null,null,null,null,null,null,"N/A"," ",null,"N/A"]
[{"$f":"1+A25","v":11},"PHYS 51","ELECTRICITY & MAGNETISM",4,"Y",null,null,null,null,null,null,"N/A"," ",null,"N/A"]
[{"$f":"1+A26","v":12}," "," "," ",null,null,null,null,null,null,null,"N/A"," ",null,"N/A"]
[{"$f":"1+A27","v":13},"ENGL 1B","ARGUMENT & ANALYSIS",3,"Y",null,null,null,null,null,null,"N/A"," ",null,"N/A"]
["LOWER DIVISION MAJOR CORE COURSES"]
[{"$f":"1+A28","v":14},"ENGR 10","INTRODUCTION TO ENGINEERING",3,"Y",null,null,null,null,null,null,"N/A",null,null,"N/A"]
[15,"MATE 25","INTRODUCTION TO MATERIALS",3,"Y",null,null,null,null,null,null,"N/A",null,null,"N/A"]
[16,"CE 99","STATICS",2,"Y",null,null,null,null,null,null,"N/A",null,null,"N/A"]
[17,"EE 98","INTRODUCTION TO CIRCUIT ANALYSIS",3,"Y",null,null,null,null,null,null,"N/A",null,null,"N/A"]
[18,"ME 20","DESIGN AND GRAPHICS",2,"Y"]
[19]
[20,"CHEM 112B","ORGANIC CHEMISTRY",3,"Y"]
[21,"CHEM 113A","ORGANIC CHEMISTRY LAB",2,"Y"]
[22,"BIOL 1A","FOUNDATIONS OF BIODIVERSITY",5,"Y"]
[23,"BIOL 1B","CELLULAR SYSTEMS AND BIOLOGY",5,"Y"]
[24,"CHEM 112A","ORGANIC CHEMISTRY",3,"Y",null,null,null,null,null,null,"N/A",null,null,"N/A"]
["UPPER DIVISION MAJOR CORE COURSES"]
[{"$f":"+A40+1","v":25},"BME 115","INTRO TO BIOMEDICAL ENGR",4,"Y",null,null,null,null,null,null,"N/A",null,null,"N/A"]
[26,"BME 117","BIOTRANSPORT PHENOMENA",3,"Y",null,null,null,null,null,null,"N/A",null,null,"N/A"]
[27,"BME 177","PHYSIOLOGY FOR ENGINEERS",3,"Y",null,null,null,null,null,null,"N/A",null,null,"N/A"]
[28,"CHE 162","ENGINEERING STATISTICS",3,"Y",null,null,null,null,null,null,"N/A",null,null,"N/A"]
[29,"ENGR 100W","ENGINEERING REPORTS",3,"Y",null,null,null,null,null,null,"N/A",null,null,"N/A"]
[30,"BME 173","CLINICAL TRIALS",3,"Y",null,null,null,null,null,null,"N/A",null,null,"N/A"]
[31,"BME 174","REGULATORY AND DESIGN REQ.",3,"Y",null,null,null,null,null,null,"N/A",null,null,"N/A"]
[32,"BME 198A","SR. PROJECT 1",2,"Y",null,null,null,null,null,null,"N/A",null,null,"N/A"]
[33,"BME 198B","SR. PROJECT 2",2,"Y",null,null,null,null,null,null,"N/A",null,null,"N/A"]
[34,null," "," ",null,null,null,null,null,null,null,"N/A",null,null,"N/A"]
[35,"ENGR 195A","GLOBAL/SOCIAL ISSUES 1",1,"Y",null,null,null,null,null,null,"N/A",null,null,"N/A"]
[36,"ENGR 195B","GLOBAL/SOCIAL ISSUES 2",1,"Y",null,null,null,null,null,null,"N/A",null,null,"N/A"]
[37,null,null,null,null,null,null,null,null,null,null,"N/A",null,null,"N/A"]
["UPPER DIVISION ELECTIVE COURSES FOR THE MAJOR"]
[{"$f":"+A54+1","v":38},null,null,3,"Y",null,null,null,null,null,null,"N/A"," "," ","N/A"]
[39,null,null,3,"Y",null,null,null,null,null,null,"N/A"," "," ","N/A"]
[40," ",null,3,"Y",null,null,null,null,null,null,"N/A"," "," ","N/A"]
[41,null,null,null,null,null,null,null,null,null,null,"N/A",null,null,"N/A"]

{"sheet":"GEs","index":2,"n_rows":60,"n_cols":13,"rows_kept":60,"cut":false,"hidden":false,"merged":[[51,0,51,10],[42,1,42,9],[53,1,53,9],[1,0,1,10],[13,1,13,9],[25,1,25,9],[2,0,2,9],[3,0,3,9],[4,0,4,9],[5,0,5,9],[9,0,9,10],[7,0,7,10]]}
[]
["This sheet is used to track  your GE courses."]
["IF YOU COMPLETED AN AA DEGREE AT A COMMUNITY COLLEGE, OR HAVE A LOWER DIVISION GENERAL EDUCATION CERTIFICATION (LDGEC) ON YOUR COMMUNITY COLLEGE TRANSCRIPT, OR HAVE COMPLETED A BS DEGREE AT A CSU, PLEASE ENTER AN ABBREVIATION FOR THE NAME OF THE  INSTITUTION THAT ISSUED THE DEGREE OR CERTIFICATION, OTHERWISE LEAVE BLANK."]
["IF YOU PROVIDED AN ABBREVIATION FOR AN INSTITUTION FOR THE PREVIOUS QUESTION, PLEASE INDICATE THE YEAR THAT THE DEGREE OR CERTIFICATION WAS ISSUED, OTHERWISE LEAVE BLANK."]
["HAVE YOU OBTAINED UNOFFICIAL COPIES OF YOUR TRANSCRIPTS FOR ALL NON-SJSU INSTITUTIONS FOR YOUR CME DEPARTMENT FILE? Y, N, or blank"]
["HAVE YOU OBTAINED A GENERAL EDUCATION EVALUATION FROM SJSU ADMISSIONS AND RECORDS? Y, N, or blank"]
[]
["LOWER DIVISION GE SUMMARY TABLES:\nPLEASE COMPLETE THE APPROPRIATE OPTION IF YOU HAVE NOT COMPLETED AN AA DEGREE AT A COMMUNITY COLLEGE, OR HAVE A LOWER DIVISION GENERAL EDUCATION CERTIFICATION (LDGEC) ON YOUR COMMUNITY COLLEGE TRANSCRIPT, OR HAVE COMPLETED A BS DEGREE AT A CSU. USE COURSE DESCRIPTIONS ON YOUR TRANSCRIPT(S). INDICATE THE SEMESTER AND YEAR WHEN THE COURSE WAS OR WILL BE COMPLETED."]
[]
["IF YOU DO NOT HAVE A LOWER DIVISION GENERAL EDUCATION CERTIFICATE, PLEASE INDICATE WHICH OF THE 3 FOLLOWING OPTIONS YOU ARE USING\nBY ENTERING A \"Y\" IN THE APPROPRIATE BOX. (LEAVE THE OTHERS BLANK)."]
[null,null,"AMERICAN STUDIES","Y"]
[null,null,"STANDARD OPTION"]
[null,null,"HUMANITIES HONORS PROGRAM"]
[null,"AMERICAN STUDIES OPTION:"]
[null,null,"AREA REQUIREMENT","COURSE"," INSTITUTION","UNITS","SEMESTER","YEAR","GRADE"]
[null,null,"A1 - ORAL COMMUNICATION",null,null,3]
[null,null,"A2 - WRITTEN COMMUNICATION",null,null,3]
[null,null,"D1 - HUMAN BEHAVIOR",null,null,3]
[null,null,"AREAS C1,C2, D2,D3 and F1,2,3","AMS 1A","SJSU",6]
[null,null,"AREAS C1,C2, D2,D3 and F1,2,3","AMS 1B","SJSU",6]
[null,null,"C3 - WRITTEN COMMUNICATION",null,null,3]
[null,null,"E - HUMAN UNDERSTANDING",null,null,3]
[null,null,"HUMAN PERFORMANCE",null,null,1]
[null,null,"HUMAN PERFORMANCE",null,null,1]
[null,null,null,null,null,null,null,null,null,null,null,{"$f":"SUM(F16:F24)","v":29},{"$f":"L25+$L$60","v":38}]
[null,"STANDARD OPTION:"]
[null,null,"AREA REQUIREMENT","COURSE"," INSTITUTION","UNITS","SEMESTER","YEAR","GRADE"]
[null,null,"A1 - ORAL COMMUNICATION",null,null,3]
[null,null,"A2 - WRITTEN COMMUNICATION",null,null,3]
[null,null,"C1 - ARTS",null,null,3]
[null,null,"C2 - LETTERS",null,null,3]
[null,null,"C3 - WRITTEN COMMUNICATION",null,null,3]
[null,null,"D1 - HUMAN BEHAVIOR",null,null,3]
[null,null,"D2 - COMPARATIVE SYSTEMS",null,null,3]
[null,null,"D3 - SOCIAL ISSUES",null,null,3]
[null,null,"E - HUMAN UNDERSTANDING",null,null,3]
[null,null,"HUMAN PERFORMANCE",null,null,1]
[null,null,"HUMAN PERFORMANCE",null,null,1]
[null,null,"F1 - AMERICAN HISTORY",null,null,3]
[null,null,"F2 - US CONSTITUTION ",null,null,3]
[null,null,"F3 - CALIFORNIA GOVERNMENT",null,null,3]
[null,null,null,null,null,null,null,null,null,null,null,{"$f":"SUM(F28:F41)","v":38},{"$f":"L42+$L$60","v":47}]
[null,"HUMANITIES HONORS OPTION:"]
[null,null,"AREA REQUIREMENT","COURSE"," INSTITUTION","UNITS","SEMESTER","YEAR","GRADE"]
[null,null,"AREAS A, C, D and F","HUM 1A","SJSU",6]
[null,null,"AREAS A, C, D and F","HUM 1B","SJSU",6]
[null,null,"AREAS A, C, D and F","HUM 2A","SJSU",6]
[null,null,"AREAS A, C, D and F","HUM 2B","SJSU",6]
[null,null,"HUMAN PERFORMANCE",null,null,1]
[null,null,"HUMAN PERFORMANCE",null,null,1]
[null,null,null,null,null,null,null,null,null,null,null,{"$f":"SUM(F45:F50)","v":26},{"$f":"L51+$L$60","v":35}]
["UPPER DIVISION GE SUMMARY TABLE:\nPLEASE PROVIDE THE COURSES THAT SATISFY EACH SECTION."]
[]
[null,"UPPER DIVISION GE COURSES:"]
[null,null,"AREA REQUIREMENT","COURSE"," INSTITUTION","UNITS","SEMESTER","YEAR","GRADE"]
[null,null,"S - SELF, SOCIETY & EQUALITY IN THE US",null,"SJSU",3]
[null,null,"V - CULTURE, CIVILIZATION & GLOBAL UNDERS.",null,"SJSU",3]
[null,null,"Z - WRITTEN COMUNICATION II","ENGR 100W","SJSU",3]
[null,null,"R - EARTH & ENVIRONMENT",{"$f":"+IF(D58=\"ENGR 100W\",D58,\" \")","v":"ENGR 100W"},"SJSU",3]
[null,null,null,null,null,null,null,null,null,null,null,{"$f":"SUM(F56:F58)","v":9}]

{"sheet":"MAJOR FORM","index":3,"n_rows":77,"n_cols":10,"rows_kept":77,"cut":false,"hidden":false,"merged":[[6,0,6,9],[35,0,35,9],[42,0,42,9],[0,1,0,8],[1,1,1,7]]}
[null,"SAN JOSE STATE UNIVERSITY - BIOMEDICAL, CHEMICAL and MATERIALS ENGINEERING DEPARTMENT"]
[null,"MAJOR FORM FOR B.S. BIOMEDICAL ENGINEERING"]
[null,null,null,null,"Proposed Date of Graduation:",null,null,{"$f":"+'TRANSCRIPT INFORMATION'!H8","v":"00:00:00"}]
[null,"NAME:",{"$f":"'TRANSCRIPT INFORMATION'!C6&\" \"&'TRANSCRIPT INFORMATION'!C5","v":" "},null,"SJSU Student ID:",null,{"$f":"+'TRANSCRIPT INFORMATION'!C7","v":0}]
[null,null,null,null,"Catalog Year:",null,{"$f":"+'TRANSCRIPT INFORMATION'!I6","v":0}]
[]
["REQUIRED COURSES FOR THE MAJOR "]
[" ALT. INST.","COURSE NUMBER.","COURSE TITLE","UNITS","GRADE"," ALT. INST.","COURSE NUMBER.","COURSE TITLE","UNITS","GRADE"]
[null,{"$f":"+IF('TRANSCRIPT INFORMATION'!E30=\"N\",'TRANSCRIPT INFORMATION'!B30,IF('TRANSCRIPT INFORMATION'!F30=\"N\",'TRANSCRIPT INFORMATION'!B30,))","v":0},{"$f":"+IF('TRANSCRIPT INFORMATION'!E30=\"N\",'TRANSCRIPT INFORMATION'!C30,IF('TRANSCRIPT INFORMATION'!F30=\"N\",'TRANSCRIPT INFORMATION'!C30,))","v":0},{"$f":"+IF('TRANSCRIPT INFORMATION'!E30=\"N\",'TRANSCRIPT INFORMATION'!D30,IF('TRANSCRIPT INFORMATION'!F30=\"N\",'TRANSCRIPT INFORMATION'!D30,))","v":0},null,null,{"$f":"+IF('TRANSCRIPT INFORMATION'!$E34=\"N\",'TRANSCRIPT INFORMATION'!$B34,IF('TRANSCRIPT INFORMATION'!$F34=\"N\",'TRANSCRIPT INFORMATION'!$B34,))","v":0},{"$f":"+IF('TRANSCRIPT INFORMATION'!$E34=\"N\",'TRANSCRIPT INFORMATION'!$C34,IF('TRANSCRIPT INFORMATION'!$F34=\"N\",'TRANSCRIPT INFORMATION'!$C34,))","v":0},{"$f":"+IF('TRANSCRIPT INFORMATION'!$E34=\"N\",'TRANSCRIPT INFORMATION'!$D34,IF('TRANSCRIPT INFORMATION'!$F34=\"N\",'TRANSCRIPT INFORMATION'!$D34,))","v":0}]
[{"$f":"+IF('TRANSCRIPT INFORMATION'!E30=\"N\",'TRANSCRIPT INFORMATION'!G30,IF('TRANSCRIPT INFORMATION'!F30=\"N\",'TRANSCRIPT INFORMATION'!G30,))","v":0},{"$f":"+IF('TRANSCRIPT INFORMATION'!E30=\"N\",'TRANSCRIPT INFORMATION'!H30,IF('TRANSCRIPT INFORMATION'!F30=\"N\",'TRANSCRIPT INFORMATION'!H30,'TRANSCRIPT INFORMATION'!B30))","v":"ENGR 10"},{"$f":"+IF('TRANSCRIPT INFORMATION'!E30=\"N\",'TRANSCRIPT INFORMATION'!I30,IF('TRANSCRIPT INFORMATION'!F30=\"N\",'TRANSCRIPT INFORMATION'!I30,'TRANSCRIPT INFORMATION'!C30))","v":"INTRODUCTION TO ENGINEERING"},{"$f":"+IF('TRANSCRIPT INFORMATION'!E30=\"N\",'TRANSCRIPT INFORMATION'!J30&'TRANSCRIPT INFORMATION'!K30,IF('TRANSCRIPT INFORMATION'!F30=\"N\",'TRANSCRIPT INFORMATION'!J30&'TRANSCRIPT INFORMATION'!K30,'TRANSCRIPT INFORMATION'!D30))","v":3},{"$f":"IF('TRANSCRIPT INFORMATION'!L30=\"N/A\",\" \",'TRANSCRIPT INFORMATION'!L30)&\" \"&+IF('TRANSCRIPT INFORMATION'!O30=\"N/A\",\" \",'TRANSCRIPT INFORMATION'!O30)","v":"   "},{"$f":"+IF('TRANSCRIPT INFORMATION'!$E34=\"N\",'TRANSCRIPT INFORMATION'!$G34,IF('TRANSCRIPT INFORMATION'!$F34=\"N\",'TRANSCRIPT INFORMATION'!$G34,))","v":0},{"$f":"+IF('TRANSCRIPT INFORMATION'!$E34=\"N\",'TRANSCRIPT INFORMATION'!$H34,IF('TRANSCRIPT INFORMATION'!$F34=\"N\",'TRANSCRIPT INFORMATION'!$H34,'TRANSCRIPT INFORMATION'!$B34))","v":"ME 20"},{"$f":"+IF('TRANSCRIPT INFORMATION'!$E34=\"N\",'TRANSCRIPT INFORMATION'!$I34,IF('TRANSCRIPT INFORMATION'!$F34=\"N\",'TRANSCRIPT INFORMATION'!$I34,'TRANSCRIPT INFORMATION'!$C34))","v":"DESIGN AND GRAPHICS"},{"$f":"+IF('TRANSCRIPT INFORMATION'!$E34=\"N\",'TRANSCRIPT INFORMATION'!$J34&'TRANSCRIPT INFORMATION'!$K34,IF('TRANSCRIPT INFORMATION'!$F34=\"N\",'TRANSCRIPT INFORMATION'!$K34&'TRANSCRIPT INFORMATION'!$K34,'TRANSCRIPT INFORMATION'!$D34))","v":2},{"$f":"IF('TRANSCRIPT INFORMATION'!$L34=\"N/A\",\" \",'TRANSCRIPT INFORMATION'!$L34)&\" \"&+IF('TRANSCRIPT INFORMATION'!$O34=\"N/A\",\" \",'TRANSCRIPT INFORMATION'!$O34)","v":" "}]
[null,{"$f":"+IF('TRANSCRIPT INFORMATION'!E31=\"N\",'TRANSCRIPT INFORMATION'!B31,IF('TRANSCRIPT INFORMATION'!F31=\"N\",'TRANSCRIPT INFORMATION'!B31,))","v":0},{"$f":"+IF('TRANSCRIPT INFORMATION'!E31=\"N\",'TRANSCRIPT INFORMATION'!C31,IF('TRANSCRIPT INFORMATION'!F31=\"N\",'TRANSCRIPT INFORMATION'!C31,))","v":0},{"$f":"+IF('TRANSCRIPT INFORMATION'!E31=\"N\",'TRANSCRIPT INFORMATION'!D31,IF('TRANSCRIPT INFORMATION'!F31=\"N\",'TRANSCRIPT INFORMATION'!D31,))","v":0},null,null,{"$f":"+IF('TRANSCRIPT INFORMATION'!$E35=\"N\",'TRANSCRIPT INFORMATION'!$B35,IF('TRANSCRIPT INFORMATION'!$F35=\"N\",'TRANSCRIPT INFORMATION'!$B35,))","v":0},{"$f":"+IF('TRANSCRIPT INFORMATION'!$E35=\"N\",'TRANSCRIPT INFORMATION'!$C35,IF('TRANSCRIPT INFORMATION'!$F35=\"N\",'TRANSCRIPT INFORMATION'!$C35,))","v":0},{"$f":"+IF('TRANSCRIPT INFORMATION'!$E35=\"N\",'TRANSCRIPT INFORMATION'!$D35,IF('TRANSCRIPT INFORMATION'!$F35=\"N\",'TRANSCRIPT INFORMATION'!$D35,))","v":0}]
[{"$f":"+IF('TRANSCRIPT INFORMATION'!E31=\"N\",'TRANSCRIPT INFORMATION'!G31,IF('TRANSCRIPT INFORMATION'!F31=\"N\",'TRANSCRIPT INFORMATION'!G31,))","v":0},{"$f":"+IF('TRANSCRIPT INFORMATION'!E31=\"N\",'TRANSCRIPT INFORMATION'!H31,IF('TRANSCRIPT INFORMATION'!F31=\"N\",'TRANSCRIPT INFORMATION'!H31,'TRANSCRIPT INFORMATION'!B31))","v":"MATE 25"},{"$f":"+IF('TRANSCRIPT INFORMATION'!E31=\"N\",'TRANSCRIPT INFORMATION'!I31,IF('TRANSCRIPT INFORMATION'!F31=\"N\",'TRANSCRIPT INFORMATION'!I31,'TRANSCRIPT INFORMATION'!C31))","v":"INTRODUCTION TO MATERIALS"},{"$f":"+IF('TRANSCRIPT INFORMATION'!E31=\"N\",'TRANSCRIPT INFORMATION'!J31&'TRANSCRIPT INFORMATION'!K31,IF('TRANSCRIPT INFORMATION'!F31=\"N\",'TRANSCRIPT INFORMATION'!J31&'TRANSCRIPT INFORMATION'!K31,'TRANSCRIPT INFORMATION'!D31))","v":3},{"$f":"IF('TRANSCRIPT INFORMATION'!L31=\"N/A\",\" \",'TRANSCRIPT INFORMATION'!L31)&\" \"&+IF('TRANSCRIPT INFORMATION'!O31=\"N/A\",\" \",'TRANSCRIPT INFORMATION'!O31)","v":"   "},{"$f":"+IF('TRANSCRIPT INFORMATION'!$E35=\"N\",'TRANSCRIPT INFORMATION'!$G35,IF('TRANSCRIPT INFORMATION'!$F35=\"N\",'TRANSCRIPT INFORMATION'!$G35,))","v":0},{"$f":"+IF('TRANSCRIPT INFORMATION'!$E35=\"N\",'TRANSCRIPT INFORMATION'!$H35,IF('TRANSCRIPT INFORMATION'!$F35=\"N\",'TRANSCRIPT INFORMATION'!$H35,'TRANSCRIPT INFORMATION'!$B35))","v":0},{"$f":"+IF('TRANSCRIPT INFORMATION'!$E35=\"N\",'TRANSCRIPT INFORMATION'!$I35,IF('TRANSCRIPT INFORMATION'!$F35=\"N\",'TRANSCRIPT INFORMATION'!$I35,'TRANSCRIPT INFORMATION'!$C35))","v":0},{"$f":"+IF('TRANSCRIPT INFORMATION'!$E35=\"N\",'TRANSCRIPT INFORMATION'!$J35&'TRANSCRIPT INFORMATION'!$K35,IF('TRANSCRIPT INFORMATION'!$F35=\"N\",'TRANSCRIPT INFORMATION'!$K35&'TRANSCRIPT INFORMATION'!$K35,'TRANSCRIPT INFORMATION'!$D35))","v":0},{"$f":"IF('TRANSCRIPT INFORMATION'!$L35=\"N/A\",\" \",'TRANSCRIPT INFORMATION'!$L35)&\" \"&+IF('TRANSCRIPT INFORMATION'!$O35=\"N/A\",\" \",'TRANSCRIPT INFORMATION'!$O35)","v":" "}]
[null,{"$f":"+IF('TRANSCRIPT INFORMATION'!E32=\"N\",'TRANSCRIPT INFORMATION'!B32,IF('TRANSCRIPT INFORMATION'!F32=\"N\",'TRANSCRIPT INFORMATION'!B32,))","v":0},{"$f":"+IF('TRANSCRIPT INFORMATION'!E32=\"N\",'TRANSCRIPT INFORMATION'!C32,IF('TRANSCRIPT INFORMATION'!F32=\"N\",'TRANSCRIPT INFORMATION'!C32,))","v":0},{"$f":"+IF('TRANSCRIPT INFORMATION'!E32=\"N\",'TRANSCRIPT INFORMATION'!D32,IF('TRANSCRIPT INFORMATION'!F32=\"N\",'TRANSCRIPT INFORMATION'!D32,))","v":0},null,null,{"$f":"+IF('TRANSCRIPT INFORMATION'!$E38=\"N\",'TRANSCRIPT INFORMATION'!$B38,IF('TRANSCRIPT INFORMATION'!$F38=\"N\",'TRANSCRIPT INFORMATION'!$B38,))","v":0},{"$f":"+IF('TRANSCRIPT INFORMATION'!$E38=\"N\",'TRANSCRIPT INFORMATION'!$C38,IF('TRANSCRIPT INFORMATION'!$F38=\"N\",'TRANSCRIPT INFORMATION'!$C38,))","v":0},{"$f":"+IF('TRANSCRIPT INFORMATION'!$E38=\"N\",'TRANSCRIPT INFORMATION'!$D38,IF('TRANSCRIPT INFORMATION'!$F38=\"N\",'TRANSCRIPT INFORMATION'!$D38,))","v":0}]
[{"$f":"+IF('TRANSCRIPT INFORMATION'!E32=\"N\",'TRANSCRIPT INFORMATION'!G32,IF('TRANSCRIPT INFORMATION'!F32=\"N\",'TRANSCRIPT INFORMATION'!G32,))","v":0},{"$f":"+IF('TRANSCRIPT INFORMATION'!E32=\"N\",'TRANSCRIPT INFORMATION'!H32,IF('TRANSCRIPT INFORMATION'!F32=\"N\",'TRANSCRIPT INFORMATION'!H32,'TRANSCRIPT INFORMATION'!B32))","v":"CE 99"},{"$f":"+IF('TRANSCRIPT INFORMATION'!E32=\"N\",'TRANSCRIPT INFORMATION'!I32,IF('TRANSCRIPT INFORMATION'!F32=\"N\",'TRANSCRIPT INFORMATION'!I32,'TRANSCRIPT INFORMATION'!C32))","v":"STATICS"},{"$f":"+IF('TRANSCRIPT INFORMATION'!E32=\"N\",'TRANSCRIPT INFORMATION'!J32&'TRANSCRIPT INFORMATION'!K32,IF('TRANSCRIPT INFORMATION'!F32=\"N\",'TRANSCRIPT INFORMATION'!J32&'TRANSCRIPT INFORMATION'!K32,'TRANSCRIPT INFORMATION'!D32))","v":2},{"$f":"IF('TRANSCRIPT INFORMATION'!L32=\"N/A\",\" \",'TRANSCRIPT INFORMATION'!L32)&\" \"&+IF('TRANSCRIPT INFORMATION'!O32=\"N/A\",\" \",'TRANSCRIPT INFORMATION'!O32)","v":"   "},{"$f":"+IF('TRANSCRIPT INFORMATION'!$E38=\"N\",'TRANSCRIPT INFORMATION'!$G38,IF('TRANSCRIPT INFORMATION'!$F38=\"N\",'TRANSCRIPT INFORMATION'!$G38,))","v":0},{"$f":"+IF('TRANSCRIPT INFORMATION'!$E38=\"N\",'TRANSCRIPT INFORMATION'!$H38,IF('TRANSCRIPT INFORMATION'!$F38=\"N\",'TRANSCRIPT INFORMATION'!$H38,'TRANSCRIPT INFORMATION'!$B38))","v":"BIOL 1A"},{"$f":"+IF('TRANSCRIPT INFORMATION'!$E38=\"N\",'TRANSCRIPT INFORMATION'!$I38,IF('TRANSCRIPT INFORMATION'!$F38=\"N\",'TRANSCRIPT INFORMATION'!$I38,'TRANSCRIPT INFORMATION'!$C38))","v":"FOUNDATIONS OF BIODIVERSITY"},{"$f":"+IF('TRANSCRIPT INFORMATION'!$E38=\"N\",'TRANSCRIPT INFORMATION'!$J38&'TRANSCRIPT INFORMATION'!$K38,IF('TRANSCRIPT INFORMATION'!$F38=\"N\",'TRANSCRIPT INFORMATION'!$K38&'TRANSCRIPT INFORMATION'!$K38,'TRANSCRIPT INFORMATION'!$D38))","v":5},{"$f":"IF('TRANSCRIPT INFORMATION'!$L38=\"N/A\",\" \",'TRANSCRIPT INFORMATION'!$L38)&\" \"&+IF('TRANSCRIPT INFORMATION'!$O38=\"N/A\",\" \",'TRANSCRIPT INFORMATION'!$O38)","v":" "}]
[null,{"$f":"+IF('TRANSCRIPT INFORMATION'!E33=\"N\",'TRANSCRIPT INFORMATION'!B33,IF('TRANSCRIPT INFORMATION'!F33=\"N\",'TRANSCRIPT INFORMATION'!B33,))","v":0},{"$f":"+IF('TRANSCRIPT INFORMATION'!E33=\"N\",'TRANSCRIPT INFORMATION'!C33,IF('TRANSCRIPT INFORMATION'!F33=\"N\",'TRANSCRIPT INFORMATION'!C33,))","v":0},{"$f":"+IF('TRANSCRIPT INFORMATION'!E33=\"N\",'TRANSCRIPT INFORMATION'!D33,IF('TRANSCRIPT INFORMATION'!F33=\"N\",'TRANSCRIPT INFORMATION'!D33,))","v":0},null,null,{"$f":"+IF('TRANSCRIPT INFORMATION'!$E39=\"N\",'TRANSCRIPT INFORMATION'!$B39,IF('TRANSCRIPT INFORMATION'!$F39=\"N\",'TRANSCRIPT INFORMATION'!$B39,))","v":0},{"$f":"+IF('TRANSCRIPT INFORMATION'!$E39=\"N\",'TRANSCRIPT INFORMATION'!$C39,IF('TRANSCRIPT INFORMATION'!$F39=\"N\",'TRANSCRIPT INFORMATION'!$C39,))","v":0},{"$f":"+IF('TRANSCRIPT INFORMATION'!$E39=\"N\",'TRANSCRIPT INFORMATION'!$D39,IF('TRANSCRIPT INFORMATION'!$F39=\"N\",'TRANSCRIPT INFORMATION'!$D39,))","v":0}]
[{"$f":"+IF('TRANSCRIPT INFORMATION'!E33=\"N\",'TRANSCRIPT INFORMATION'!G33,IF('TRANSCRIPT INFORMATION'!F33=\"N\",'TRANSCRIPT INFORMATION'!G33,))","v":0},{"$f":"+IF('TRANSCRIPT INFORMATION'!E33=\"N\",'TRANSCRIPT INFORMATION'!H33,IF('TRANSCRIPT INFORMATION'!F33=\"N\",'TRANSCRIPT INFORMATION'!H33,'TRANSCRIPT INFORMATION'!B33))","v":"EE 98"},{"$f":"+IF('TRANSCRIPT INFORMATION'!E33=\"N\",'TRANSCRIPT INFORMATION'!I33,IF('TRANSCRIPT INFORMATION'!F33=\"N\",'TRANSCRIPT INFORMATION'!I33,'TRANSCRIPT INFORMATION'!C33))","v":"INTRODUCTION TO CIRCUIT ANALYSIS"},{"$f":"+IF('TRANSCRIPT INFORMATION'!E33=\"N\",'TRANSCRIPT INFORMATION'!J33&'TRANSCRIPT INFORMATION'!K33,IF('TRANSCRIPT INFORMATION'!F33=\"N\",'TRANSCRIPT INFORMATION'!J33&'TRANSCRIPT INFORMATION'!K33,'TRANSCRIPT INFORMATION'!D33))","v":3},{"$f":"IF('TRANSCRIPT INFORMATION'!L33=\"N/A\",\" \",'TRANSCRIPT INFORMATION'!L33)&\" \"&+IF('TRANSCRIPT INFORMATION'!O33=\"N/A\",\" \",'TRANSCRIPT INFORMATION'!O33)","v":"   "},{"$f":"+IF('TRANSCRIPT INFORMATION'!$E39=\"N\",'TRANSCRIPT INFORMATION'!$G39,IF('TRANSCRIPT INFORMATION'!$F39=\"N\",'TRANSCRIPT INFORMATION'!$G39,))","v":0},{"$f":"+IF('TRANSCRIPT INFORMATION'!$E39=\"N\",'TRANSCRIPT INFORMATION'!$H39,IF('TRANSCRIPT INFORMATION'!$F39=\"N\",'TRANSCRIPT INFORMATION'!$H39,'TRANSCRIPT INFORMATION'!$B39))","v":"BIOL 1B"},{"$f":"+IF('TRANSCRIPT INFORMATION'!$E39=\"N\",'TRANSCRIPT INFORMATION'!$I39,IF('TRANSCRIPT INFORMATION'!$F39=\"N\",'TRANSCRIPT INFORMATION'!$I39,'TRANSCRIPT INFORMATION'!$C39))","v":"CELLULAR SYSTEMS AND BIOLOGY"},{"$f":"+IF('TRANSCRIPT INFORMATION'!$E39=\"N\",'TRANSCRIPT INFORMATION'!$J39&'TRANSCRIPT INFORMATION'!$K39,IF('TRANSCRIPT INFORMATION'!$F39=\"N\",'TRANSCRIPT INFORMATION'!$K39&'TRANSCRIPT INFORMATION'!$K39,'TRANSCRIPT INFORMATION'!$D39))","v":5},{"$f":"IF('TRANSCRIPT INFORMATION'!$L39=\"N/A\",\" \",'TRANSCRIPT INFORMATION'!$L39)&\" \"&+IF('TRANSCRIPT INFORMATION'!$O39=\"N/A\",\" \",'TRANSCRIPT INFORMATION'!$O39)","v":" "}]
[null,{"$f":"+IF('TRANSCRIPT INFORMATION'!E40=\"N\",'TRANSCRIPT INFORMATION'!B40,IF('TRANSCRIPT INFORMATION'!F40=\"N\",'TRANSCRIPT INFORMATION'!B40,))","v":0},{"$f":"+IF('TRANSCRIPT INFORMATION'!E40=\"N\",'TRANSCRIPT INFORMATION'!C40,IF('TRANSCRIPT INFORMATION'!F40=\"N\",'TRANSCRIPT INFORMATION'!C40,))","v":0},{"$f":"+IF('TRANSCRIPT INFORMATION'!E40=\"N\",'TRANSCRIPT INFORMATION'!D40,IF('TRANSCRIPT INFORMATION'!F40=\"N\",'TRANSCRIPT INFORMATION'!D40,))","v":0}]
[{"$f":"+IF('TRANSCRIPT INFORMATION'!E40=\"N\",'TRANSCRIPT INFORMATION'!G40,IF('TRANSCRIPT INFORMATION'!F40=\"N\",'TRANSCRIPT INFORMATION'!G40,))","v":0},{"$f":"+IF('TRANSCRIPT INFORMATION'!E40=\"N\",'TRANSCRIPT INFORMATION'!H40,IF('TRANSCRIPT INFORMATION'!F40=\"N\",'TRANSCRIPT INFORMATION'!H40,'TRANSCRIPT INFORMATION'!B40))","v":"CHEM 112A"},{"$f":"+IF('TRANSCRIPT INFORMATION'!E40=\"N\",'TRANSCRIPT INFORMATION'!I40,IF('TRANSCRIPT INFORMATION'!F40=\"N\",'TRANSCRIPT INFORMATION'!I40,'TRANSCRIPT INFORMATION'!C40))","v":"ORGANIC CHEMISTRY"},{"$f":"+IF('TRANSCRIPT INFORMATION'!E40=\"N\",'TRANSCRIPT INFORMATION'!J40&'TRANSCRIPT INFORMATION'!K40,IF('TRANSCRIPT INFORMATION'!F40=\"N\",'TRANSCRIPT INFORMATION'!J40&'TRANSCRIPT INFORMATION'!K40,'TRANSCRIPT INFORMATION'!D40))","v":3},{"$f":"IF('TRANSCRIPT INFORMATION'!L40=\"N/A\",\" \",'TRANSCRIPT INFORMATION'!L40)&\" \"&+IF('TRANSCRIPT INFORMATION'!O40=\"N/A\",\" \",)","v":"   "}]
[null,{"$f":"+IF('TRANSCRIPT INFORMATION'!E42=\"N\",'TRANSCRIPT INFORMATION'!B42,IF('TRANSCRIPT INFORMATION'!F42=\"N\",'TRANSCRIPT INFORMATION'!B42,))","v":0},{"$f":"+IF('TRANSCRIPT INFORMATION'!E42=\"N\",'TRANSCRIPT INFORMATION'!C42,IF('TRANSCRIPT INFORMATION'!F42=\"N\",'TRANSCRIPT INFORMATION'!C42,))","v":0},{"$f":"+IF('TRANSCRIPT INFORMATION'!E42=\"N\",'TRANSCRIPT INFORMATION'!D42,IF('TRANSCRIPT INFORMATION'!F42=\"N\",'TRANSCRIPT INFORMATION'!D42,))","v":0},null,null,{"$f":"+IF('TRANSCRIPT INFORMATION'!E44=\"N\",'TRANSCRIPT INFORMATION'!B44,IF('TRANSCRIPT INFORMATION'!F44=\"N\",'TRANSCRIPT INFORMATION'!B44,))","v":0},{"$f":"+IF('TRANSCRIPT INFORMATION'!E44=\"N\",'TRANSCRIPT INFORMATION'!C44,IF('TRANSCRIPT INFORMATION'!F44=\"N\",'TRANSCRIPT INFORMATION'!C44,))","v":0},{"$f":"+IF('TRANSCRIPT INFORMATION'!E44=\"N\",'TRANSCRIPT INFORMATION'!D44,IF('TRANSCRIPT INFORMATION'!F44=\"N\",'TRANSCRIPT INFORMATION'!D44,))","v":0}]
[{"$f":"+IF('TRANSCRIPT INFORMATION'!E42=\"N\",'TRANSCRIPT INFORMATION'!G42,IF('TRANSCRIPT INFORMATION'!F42=\"N\",'TRANSCRIPT INFORMATION'!G42,))","v":0},{"$f":"+IF('TRANSCRIPT INFORMATION'!E42=\"N\",'TRANSCRIPT INFORMATION'!H42,IF('TRANSCRIPT INFORMATION'!F42=\"N\",'TRANSCRIPT INFORMATION'!H42,'TRANSCRIPT INFORMATION'!B42))","v":"BME 115"},{"$f":"+IF('TRANSCRIPT INFORMATION'!E42=\"N\",'TRANSCRIPT INFORMATION'!I42,IF('TRANSCRIPT INFORMATION'!F42=\"N\",'TRANSCRIPT INFORMATION'!I42,'TRANSCRIPT INFORMATION'!C42))","v":"INTRO TO BIOMEDICAL ENGR"},{"$f":"+IF('TRANSCRIPT INFORMATION'!E42=\"N\",'TRANSCRIPT INFORMATION'!J42&'TRANSCRIPT INFORMATION'!K42,IF('TRANSCRIPT INFORMATION'!F42=\"N\",'TRANSCRIPT INFORMATION'!J42&'TRANSCRIPT INFORMATION'!K42,'TRANSCRIPT INFORMATION'!D42))","v":4},{"$f":"IF('TRANSCRIPT INFORMATION'!L42=\"N/A\",\" \",'TRANSCRIPT INFORMATION'!L42)&\" \"&+IF('TRANSCRIPT INFORMATION'!O42=\"N/A\",\" \",'TRANSCRIPT INFORMATION'!O42)","v":"   "},{"$f":"+IF('TRANSCRIPT INFORMATION'!E44=\"N\",'TRANSCRIPT INFORMATION'!G44,IF('TRANSCRIPT INFORMATION'!F44=\"N\",'TRANSCRIPT INFORMATION'!G44,))","v":0},{"$f":"+IF('TRANSCRIPT INFORMATION'!E44=\"N\",'TRANSCRIPT INFORMATION'!H44,IF('TRANSCRIPT INFORMATION'!F44=\"N\",'TRANSCRIPT INFORMATION'!H44,'TRANSCRIPT INFORMATION'!B44))","v":"BME 177"},{"$f":"+IF('TRANSCRIPT INFORMATION'!E44=\"N\",'TRANSCRIPT INFORMATION'!I44,IF('TRANSCRIPT INFORMATION'!F44=\"N\",'TRANSCRIPT INFORMATION'!I44,'TRANSCRIPT INFORMATION'!C44))","v":"PHYSIOLOGY FOR ENGINEERS"},{"$f":"+IF('TRANSCRIPT INFORMATION'!E44=\"N\",'TRANSCRIPT INFORMATION'!J44&'TRANSCRIPT INFORMATION'!K44,IF('TRANSCRIPT INFORMATION'!F44=\"N\",'TRANSCRIPT INFORMATION'!J44&'TRANSCRIPT INFORMATION'!K44,'TRANSCRIPT INFORMATION'!D44))","v":3},{"$f":"IF('TRANSCRIPT INFORMATION'!L44=\"N/A\",\" \",'TRANSCRIPT INFORMATION'!L44)&\" \"&+IF('TRANSCRIPT INFORMATION'!O44=\"N/A\",\" \",'TRANSCRIPT INFORMATION'!O44)","v":"   "}]
[null,{"$f":"+IF('TRANSCRIPT INFORMATION'!E43=\"N\",'TRANSCRIPT INFORMATION'!B43,IF('TRANSCRIPT INFORMATION'!F43=\"N\",'TRANSCRIPT INFORMATION'!B43,))","v":0},{"$f":"+IF('TRANSCRIPT INFORMATION'!E43=\"N\",'TRANSCRIPT INFORMATION'!C43,IF('TRANSCRIPT INFORMATION'!F43=\"N\",'TRANSCRIPT INFORMATION'!C43,))","v":0},{"$f":"+IF('TRANSCRIPT INFORMATION'!E43=\"N\",'TRANSCRIPT INFORMATION'!D43,IF('TRANSCRIPT INFORMATION'!F43=\"N\",'TRANSCRIPT INFORMATION'!D43,))","v":0},null,null,{"$f":"+IF('TRANSCRIPT INFORMATION'!E46=\"N\",'TRANSCRIPT INFORMATION'!B46,IF('TRANSCRIPT INFORMATION'!F46=\"N\",'TRANSCRIPT INFORMATION'!B46,))","v":0},{"$f":"+IF('TRANSCRIPT INFORMATION'!E46=\"N\",'TRANSCRIPT INFORMATION'!C46,IF('TRANSCRIPT INFORMATION'!F46=\"N\",'TRANSCRIPT INFORMATION'!C46,))","v":0},{"$f":"+IF('TRANSCRIPT INFORMATION'!E46=\"N\",'TRANSCRIPT INFORMATION'!D46,IF('TRANSCRIPT INFORMATION'!F46=\"N\",'TRANSCRIPT INFORMATION'!D46,))","v":0}]
[{"$f":"+IF('TRANSCRIPT INFORMATION'!E43=\"N\",'TRANSCRIPT INFORMATION'!G43,IF('TRANSCRIPT INFORMATION'!F43=\"N\",'TRANSCRIPT INFORMATION'!G43,))","v":0},{"$f":"+IF('TRANSCRIPT INFORMATION'!E43=\"N\",'TRANSCRIPT INFORMATION'!H43,IF('TRANSCRIPT INFORMATION'!F43=\"N\",'TRANSCRIPT INFORMATION'!H43,'TRANSCRIPT INFORMATION'!B43))","v":"BME 117"},{"$f":"+IF('TRANSCRIPT INFORMATION'!E43=\"N\",'TRANSCRIPT INFORMATION'!I43,IF('TRANSCRIPT INFORMATION'!F43=\"N\",'TRANSCRIPT INFORMATION'!I43,'TRANSCRIPT INFORMATION'!C43))","v":"BIOTRANSPORT PHENOMENA"},{"$f":"+IF('TRANSCRIPT INFORMATION'!E43=\"N\",'TRANSCRIPT INFORMATION'!J43&'TRANSCRIPT INFORMATION'!K43,IF('TRANSCRIPT INFORMATION'!F43=\"N\",'TRANSCRIPT INFORMATION'!J43&'TRANSCRIPT INFORMATION'!K43,'TRANSCRIPT INFORMATION'!D43))","v":3},{"$f":"IF('TRANSCRIPT INFORMATION'!L43=\"N/A\",\" \",'TRANSCRIPT INFORMATION'!L43)&\" \"&+IF('TRANSCRIPT INFORMATION'!O43=\"N/A\",\" \",'TRANSCRIPT INFORMATION'!O43)","v":"   "},{"$f":"+IF('TRANSCRIPT INFORMATION'!E46=\"N\",'TRANSCRIPT INFORMATION'!G46,IF('TRANSCRIPT INFORMATION'!F46=\"N\",'TRANSCRIPT INFORMATION'!G46,))","v":0},{"$f":"+IF('TRANSCRIPT INFORMATION'!E46=\"N\",'TRANSCRIPT INFORMATION'!H46,IF('TRANSCRIPT INFORMATION'!F46=\"N\",'TRANSCRIPT INFORMATION'!H46,'TRANSCRIPT INFORMATION'!B46))","v":"ENGR 100W"},{"$f":"+IF('TRANSCRIPT INFORMATION'!E46=\"N\",'TRANSCRIPT INFORMATION'!I46,IF('TRANSCRIPT INFORMATION'!F46=\"N\",'TRANSCRIPT INFORMATION'!I46,'TRANSCRIPT INFORMATION'!C46))","v":"ENGINEERING REPORTS"},{"$f":"+IF('TRANSCRIPT INFORMATION'!E46=\"N\",'TRANSCRIPT INFORMATION'!J46&'TRANSCRIPT INFORMATION'!K46,IF('TRANSCRIPT INFORMATION'!F46=\"N\",'TRANSCRIPT INFORMATION'!J46&'TRANSCRIPT INFORMATION'!K46,'TRANSCRIPT INFORMATION'!D46))","v":3},{"$f":"IF('TRANSCRIPT INFORMATION'!L46=\"N/A\",\" \",'TRANSCRIPT INFORMATION'!L46)&\" \"&+IF('TRANSCRIPT INFORMATION'!O46=\"N/A\",\" \",'TRANSCRIPT INFORMATION'!O46)","v":"   "}]
[]
[]
[null,{"$f":"+IF('TRANSCRIPT INFORMATION'!E45=\"N\",'TRANSCRIPT INFORMATION'!B45,IF('TRANSCRIPT INFORMATION'!F45=\"N\",'TRANSCRIPT INFORMATION'!B45,))","v":0},{"$f":"+IF('TRANSCRIPT INFORMATION'!E45=\"N\",'TRANSCRIPT INFORMATION'!C45,IF('TRANSCRIPT INFORMATION'!F45=\"N\",'TRANSCRIPT INFORMATION'!C45,))","v":0},{"$f":"+IF('TRANSCRIPT INFORMATION'!E45=\"N\",'TRANSCRIPT INFORMATION'!D45,IF('TRANSCRIPT INFORMATION'!F45=\"N\",'TRANSCRIPT INFORMATION'!D45,))","v":0},null,null,{"$f":"+IF('TRANSCRIPT INFORMATION'!E47=\"N\",'TRANSCRIPT INFORMATION'!B47,IF('TRANSCRIPT INFORMATION'!F47=\"N\",'TRANSCRIPT INFORMATION'!B47,))","v":0},{"$f":"+IF('TRANSCRIPT INFORMATION'!E47=\"N\",'TRANSCRIPT INFORMATION'!C47,IF('TRANSCRIPT INFORMATION'!F47=\"N\",'TRANSCRIPT INFORMATION'!C47,))","v":0},{"$f":"+IF('TRANSCRIPT INFORMATION'!E47=\"N\",'TRANSCRIPT INFORMATION'!D47,IF('TRANSCRIPT INFORMATION'!F47=\"N\",'TRANSCRIPT INFORMATION'!D47,))","v":0}]
[{"$f":"+IF('TRANSCRIPT INFORMATION'!E45=\"N\",'TRANSCRIPT INFORMATION'!G45,IF('TRANSCRIPT INFORMATION'!F45=\"N\",'TRANSCRIPT INFORMATION'!G45,))","v":0},{"$f":"+IF('TRANSCRIPT INFORMATION'!E45=\"N\",'TRANSCRIPT INFORMATION'!H45,IF('TRANSCRIPT INFORMATION'!F45=\"N\",'TRANSCRIPT INFORMATION'!H45,'TRANSCRIPT INFORMATION'!B45))","v":"CHE 162"},{"$f":"+IF('TRANSCRIPT INFORMATION'!E45=\"N\",'TRANSCRIPT INFORMATION'!I45,IF('TRANSCRIPT INFORMATION'!F45=\"N\",'TRANSCRIPT INFORMATION'!I45,'TRANSCRIPT INFORMATION'!C45))","v":"ENGINEERING STATISTICS"},{"$f":"+IF('TRANSCRIPT INFORMATION'!E45=\"N\",'TRANSCRIPT INFORMATION'!J45&'TRANSCRIPT INFORMATION'!K45,IF('TRANSCRIPT INFORMATION'!F45=\"N\",'TRANSCRIPT INFORMATION'!J45&'TRANSCRIPT INFORMATION'!K45,'TRANSCRIPT INFORMATION'!D45))","v":3},{"$f":"IF('TRANSCRIPT INFORMATION'!L45=\"N/A\",\" \",'TRANSCRIPT INFORMATION'!L45)&\" \"&+IF('TRANSCRIPT INFORMATION'!O45=\"N/A\",\" \",'TRANSCRIPT INFORMATION'!O45)","v":"   "},{"$f":"+IF('TRANSCRIPT INFORMATION'!E47=\"N\",'TRANSCRIPT INFORMATION'!G47,IF('TRANSCRIPT INFORMATION'!F47=\"N\",'TRANSCRIPT INFORMATION'!G47,))","v":0},{"$f":"+IF('TRANSCRIPT INFORMATION'!E47=\"N\",'TRANSCRIPT INFORMATION'!H47,IF('TRANSCRIPT INFORMATION'!F47=\"N\",'TRANSCRIPT INFORMATION'!H47,'TRANSCRIPT INFORMATION'!B47))","v":"BME 173"},{"$f":"+IF('TRANSCRIPT INFORMATION'!E47=\"N\",'TRANSCRIPT INFORMATION'!I47,IF('TRANSCRIPT INFORMATION'!F47=\"N\",'TRANSCRIPT INFORMATION'!I47,'TRANSCRIPT INFORMATION'!C47))","v":"CLINICAL TRIALS"},{"$f":"+IF('TRANSCRIPT INFORMATION'!E47=\"N\",'TRANSCRIPT INFORMATION'!J47&'TRANSCRIPT INFORMATION'!K47,IF('TRANSCRIPT INFORMATION'!F47=\"N\",'TRANSCRIPT INFORMATION'!J47&'TRANSCRIPT INFORMATION'!K47,'TRANSCRIPT INFORMATION'!D47))","v":3},{"$f":"IF('TRANSCRIPT INFORMATION'!L47=\"N/A\",\" \",'TRANSCRIPT INFORMATION'!L47)&\" \"&+IF('TRANSCRIPT INFORMATION'!O47=\"N/A\",\" \",'TRANSCRIPT INFORMATION'!O47)","v":"   "}]
[null,{"$f":"+IF('TRANSCRIPT INFORMATION'!E49=\"N\",'TRANSCRIPT INFORMATION'!B49,IF('TRANSCRIPT INFORMATION'!F49=\"N\",'TRANSCRIPT INFORMATION'!B49,))","v":0},{"$f":"+IF('TRANSCRIPT INFORMATION'!E49=\"N\",'TRANSCRIPT INFORMATION'!C49,IF('TRANSCRIPT INFORMATION'!F49=\"N\",'TRANSCRIPT INFORMATION'!C49,))","v":0},{"$f":"+IF('TRANSCRIPT INFORMATION'!E49=\"N\",'TRANSCRIPT INFORMATION'!D49,IF('TRANSCRIPT INFORMATION'!F49=\"N\",'TRANSCRIPT INFORMATION'!D49,))","v":0},null,null,{"$f":"+IF('TRANSCRIPT INFORMATION'!E48=\"N\",'TRANSCRIPT INFORMATION'!B48,IF('TRANSCRIPT INFORMATION'!F48=\"N\",'TRANSCRIPT INFORMATION'!B48,))","v":0},{"$f":"+IF('TRANSCRIPT INFORMATION'!E48=\"N\",'TRANSCRIPT INFORMATION'!C48,IF('TRANSCRIPT INFORMATION'!F48=\"N\",'TRANSCRIPT INFORMATION'!C48,))","v":0},{"$f":"+IF('TRANSCRIPT INFORMATION'!E48=\"N\",'TRANSCRIPT INFORMATION'!D48,IF('TRANSCRIPT INFORMATION'!F48=\"N\",'TRANSCRIPT INFORMATION'!D48,))","v":0}]
[{"$f":"+IF('TRANSCRIPT INFORMATION'!E49=\"N\",'TRANSCRIPT INFORMATION'!G49,IF('TRANSCRIPT INFORMATION'!F49=\"N\",'TRANSCRIPT INFORMATION'!G49,))","v":0},{"$f":"+IF('TRANSCRIPT INFORMATION'!E49=\"N\",'TRANSCRIPT INFORMATION'!H49,IF('TRANSCRIPT INFORMATION'!F49=\"N\",'TRANSCRIPT INFORMATION'!H49,'TRANSCRIPT INFORMATION'!B49))","v":"BME 198A"},{"$f":"+IF('TRANSCRIPT INFORMATION'!E49=\"N\",'TRANSCRIPT INFORMATION'!I49,IF('TRANSCRIPT INFORMATION'!F49=\"N\",'TRANSCRIPT INFORMATION'!I49,'TRANSCRIPT INFORMATION'!C49))","v":"SR. PROJECT 1"},{"$f":"+IF('TRANSCRIPT INFORMATION'!E49=\"N\",'TRANSCRIPT INFORMATION'!J49&'TRANSCRIPT INFORMATION'!K49,IF('TRANSCRIPT INFORMATION'!F49=\"N\",'TRANSCRIPT INFORMATION'!J49&'TRANSCRIPT INFORMATION'!K49,'TRANSCRIPT INFORMATION'!D49))","v":2},{"$f":"IF('TRANSCRIPT INFORMATION'!L49=\"N/A\",\" \",'TRANSCRIPT INFORMATION'!L49)&\" \"&+IF('TRANSCRIPT INFORMATION'!O49=\"N/A\",\" \",'TRANSCRIPT INFORMATION'!O49)","v":"   "},{"$f":"+IF('TRANSCRIPT INFORMATION'!E48=\"N\",'TRANSCRIPT INFORMATION'!G48,IF('TRANSCRIPT INFORMATION'!F48=\"N\",'TRANSCRIPT INFORMATION'!G48,))","v":0},{"$f":"+IF('TRANSCRIPT INFORMATION'!E48=\"N\",'TRANSCRIPT INFORMATION'!H48,IF('TRANSCRIPT INFORMATION'!F48=\"N\",'TRANSCRIPT INFORMATION'!H48,'TRANSCRIPT INFORMATION'!B48))","v":"BME 174"},{"$f":"+IF('TRANSCRIPT INFORMATION'!E48=\"N\",'TRANSCRIPT INFORMATION'!I48,IF('TRANSCRIPT INFORMATION'!F48=\"N\",'TRANSCRIPT INFORMATION'!I48,'TRANSCRIPT INFORMATION'!C48))","v":"REGULATORY AND DESIGN REQ."},{"$f":"+IF('TRANSCRIPT INFORMATION'!E48=\"N\",'TRANSCRIPT INFORMATION'!J48&'TRANSCRIPT INFORMATION'!K48,IF('TRANSCRIPT INFORMATION'!F48=\"N\",'TRANSCRIPT INFORMATION'!J48&'TRANSCRIPT INFORMATION'!K48,'TRANSCRIPT INFORMATION'!D48))","v":3},{"$f":"IF('TRANSCRIPT INFORMATION'!L48=\"N/A\",\" \",'TRANSCRIPT INFORMATION'!L48)&\" \"&+IF('TRANSCRIPT INFORMATION'!O48=\"N/A\",\" \",'TRANSCRIPT INFORMATION'!O48)","v":"   "}]
[null,{"$f":"+IF('TRANSCRIPT INFORMATION'!E50=\"N\",'TRANSCRIPT INFORMATION'!B50,IF('TRANSCRIPT INFORMATION'!F50=\"N\",'TRANSCRIPT INFORMATION'!B50,))","v":0},{"$f":"+IF('TRANSCRIPT INFORMATION'!E50=\"N\",'TRANSCRIPT INFORMATION'!C50,IF('TRANSCRIPT INFORMATION'!F50=\"N\",'TRANSCRIPT INFORMATION'!C50,))","v":0},{"$f":"+IF('TRANSCRIPT INFORMATION'!E50=\"N\",'TRANSCRIPT INFORMATION'!D50,IF('TRANSCRIPT INFORMATION'!F50=\"N\",'TRANSCRIPT INFORMATION'!D50,))","v":0}]
[{"$f":"+IF('TRANSCRIPT INFORMATION'!E50=\"N\",'TRANSCRIPT INFORMATION'!G50,IF('TRANSCRIPT INFORMATION'!F50=\"N\",'TRANSCRIPT INFORMATION'!G50,))","v":0},{"$f":"+IF('TRANSCRIPT INFORMATION'!E50=\"N\",'TRANSCRIPT INFORMATION'!H50,IF('TRANSCRIPT INFORMATION'!F50=\"N\",'TRANSCRIPT INFORMATION'!H50,'TRANSCRIPT INFORMATION'!B50))","v":"BME 198B"},{"$f":"+IF('TRANSCRIPT INFORMATION'!E50=\"N\",'TRANSCRIPT INFORMATION'!I50,IF('TRANSCRIPT INFORMATION'!F50=\"N\",'TRANSCRIPT INFORMATION'!I50,'TRANSCRIPT INFORMATION'!C50))","v":"SR. PROJECT 2"},{"$f":"+IF('TRANSCRIPT INFORMATION'!E50=\"N\",'TRANSCRIPT INFORMATION'!J50&'TRANSCRIPT INFORMATION'!K50,IF('TRANSCRIPT INFORMATION'!F50=\"N\",'TRANSCRIPT INFORMATION'!J50&'TRANSCRIPT INFORMATION'!K50,'TRANSCRIPT INFORMATION'!D50))","v":2},{"$f":"IF('TRANSCRIPT INFORMATION'!L50=\"N/A\",\" \",'TRANSCRIPT INFORMATION'!L50)&\" \"&+IF('TRANSCRIPT INFORMATION'!O50=\"N/A\",\" \",'TRANSCRIPT INFORMATION'!O50)","v":"   "}]
[null,{"$f":"+IF('TRANSCRIPT INFORMATION'!E52=\"N\",'TRANSCRIPT INFORMATION'!B52,IF('TRANSCRIPT INFORMATION'!F52=\"N\",'TRANSCRIPT INFORMATION'!B52,))","v":0},{"$f":"+IF('TRANSCRIPT INFORMATION'!E52=\"N\",'TRANSCRIPT INFORMATION'!C52,IF('TRANSCRIPT INFORMATION'!F52=\"N\",'TRANSCRIPT INFORMATION'!C52,))","v":0},{"$f":"+IF('TRANSCRIPT INFORMATION'!E52=\"N\",'TRANSCRIPT INFORMATION'!D52,IF('TRANSCRIPT INFORMATION'!F52=\"N\",'TRANSCRIPT INFORMATION'!D52,))","v":0}]
[{"$f":"+IF('TRANSCRIPT INFORMATION'!E52=\"N\",'TRANSCRIPT INFORMATION'!G52,IF('TRANSCRIPT INFORMATION'!F52=\"N\",'TRANSCRIPT INFORMATION'!G52,))","v":0},{"$f":"+IF('TRANSCRIPT INFORMATION'!E52=\"N\",'TRANSCRIPT INFORMATION'!H52,IF('TRANSCRIPT INFORMATION'!F52=\"N\",'TRANSCRIPT INFORMATION'!H52,'TRANSCRIPT INFORMATION'!B52))","v":"ENGR 195A"},{"$f":"+IF('TRANSCRIPT INFORMATION'!E52=\"N\",'TRANSCRIPT INFORMATION'!I52,IF('TRANSCRIPT INFORMATION'!F52=\"N\",'TRANSCRIPT INFORMATION'!I52,'TRANSCRIPT INFORMATION'!C52))","v":"GLOBAL/SOCIAL ISSUES 1"},{"$f":"+IF('TRANSCRIPT INFORMATION'!E52=\"N\",'TRANSCRIPT INFORMATION'!J52&'TRANSCRIPT INFORMATION'!K52,IF('TRANSCRIPT INFORMATION'!F52=\"N\",'TRANSCRIPT INFORMATION'!J52&'TRANSCRIPT INFORMATION'!K52,'TRANSCRIPT INFORMATION'!D52))","v":1},{"$f":"IF('TRANSCRIPT INFORMATION'!L52=\"N/A\",\" \",'TRANSCRIPT INFORMATION'!L52)&\" \"&+IF('TRANSCRIPT INFORMATION'!O52=\"N/A\",\" \",'TRANSCRIPT INFORMATION'!O52)","v":"   "}]
[null,{"$f":"+IF('TRANSCRIPT INFORMATION'!E53=\"N\",'TRANSCRIPT INFORMATION'!B53,IF('TRANSCRIPT INFORMATION'!F53=\"N\",'TRANSCRIPT INFORMATION'!B53,))","v":0},{"$f":"+IF('TRANSCRIPT INFORMATION'!E53=\"N\",'TRANSCRIPT INFORMATION'!C53,IF('TRANSCRIPT INFORMATION'!F53=\"N\",'TRANSCRIPT INFORMATION'!C53,))","v":0},{"$f":"+IF('TRANSCRIPT INFORMATION'!E53=\"N\",'TRANSCRIPT INFORMATION'!D53,IF('TRANSCRIPT INFORMATION'!F53=\"N\",'TRANSCRIPT INFORMATION'!D53,))","v":0}]
[{"$f":"+IF('TRANSCRIPT INFORMATION'!E53=\"N\",'TRANSCRIPT INFORMATION'!G53,IF('TRANSCRIPT INFORMATION'!F53=\"N\",'TRANSCRIPT INFORMATION'!G53,))","v":0},{"$f":"+IF('TRANSCRIPT INFORMATION'!E53=\"N\",'TRANSCRIPT INFORMATION'!H53,IF('TRANSCRIPT INFORMATION'!F53=\"N\",'TRANSCRIPT INFORMATION'!H53,'TRANSCRIPT INFORMATION'!B53))","v":"ENGR 195B"},{"$f":"+IF('TRANSCRIPT INFORMATION'!E53=\"N\",'TRANSCRIPT INFORMATION'!I53,IF('TRANSCRIPT INFORMATION'!F53=\"N\",'TRANSCRIPT INFORMATION'!I53,'TRANSCRIPT INFORMATION'!C53))","v":"GLOBAL/SOCIAL ISSUES 2"},{"$f":"+IF('TRANSCRIPT INFORMATION'!E53=\"N\",'TRANSCRIPT INFORMATION'!J53&'TRANSCRIPT INFORMATION'!K53,IF('TRANSCRIPT INFORMATION'!F53=\"N\",'TRANSCRIPT INFORMATION'!J53&'TRANSCRIPT INFORMATION'!K53,'TRANSCRIPT INFORMATION'!D53))","v":1},{"$f":"IF('TRANSCRIPT INFORMATION'!L53=\"N/A\",\" \",'TRANSCRIPT INFORMATION'!L53)&\" \"&+IF('TRANSCRIPT INFORMATION'!O53=\"N/A\",\" \",'TRANSCRIPT INFORMATION'!O53)","v":"   "}]
[]
["APPROVED UPPER DIVISION ELECTIVES FOR THE MAJOR: 9 UNITS"]
[" ALT. INST.","COURSE NUMBER.","COURSE TITLE","UNITS","GRADE"," ALT. INST.","COURSE NUMBER.","COURSE TITLE","UNITS","GRADE"]
[null,{"$f":"+IF('TRANSCRIPT INFORMATION'!$E$56=\"N\",'TRANSCRIPT INFORMATION'!$B$56,IF('TRANSCRIPT INFORMATION'!$F$56=\"N\",'TRANSCRIPT INFORMATION'!$B$56,))","v":0},{"$f":"+IF('TRANSCRIPT INFORMATION'!$E$56=\"N\",'TRANSCRIPT INFORMATION'!$C$56,IF('TRANSCRIPT INFORMATION'!$F$56=\"N\",'TRANSCRIPT INFORMATION'!$C$56,))","v":0},{"$f":"+IF('TRANSCRIPT INFORMATION'!$E$56=\"N\",'TRANSCRIPT INFORMATION'!$D$56,IF('TRANSCRIPT INFORMATION'!$F$56=\"N\",'TRANSCRIPT INFORMATION'!$D$56,))","v":0},null,null,{"$f":"+IF('TRANSCRIPT INFORMATION'!$E$58=\"N\",'TRANSCRIPT INFORMATION'!$B$58,IF('TRANSCRIPT INFORMATION'!$F$58=\"N\",'TRANSCRIPT INFORMATION'!$B$58,))","v":0},{"$f":"+IF('TRANSCRIPT INFORMATION'!$E$58=\"N\",'TRANSCRIPT INFORMATION'!$C$58,IF('TRANSCRIPT INFORMATION'!$F$58=\"N\",'TRANSCRIPT INFORMATION'!$C$58,))","v":0},{"$f":"+IF('TRANSCRIPT INFORMATION'!$E$58=\"N\",'TRANSCRIPT INFORMATION'!$D$58,IF('TRANSCRIPT INFORMATION'!$F$58=\"N\",'TRANSCRIPT INFORMATION'!$D$58,))","v":0}]
[{"$f":"+IF('TRANSCRIPT INFORMATION'!$E$56=\"N\",'TRANSCRIPT INFORMATION'!$G$56,IF('TRANSCRIPT INFORMATION'!$F$56=\"N\",'TRANSCRIPT INFORMATION'!$G$56,))","v":0},{"$f":"+IF('TRANSCRIPT INFORMATION'!$E$56=\"N\",'TRANSCRIPT INFORMATION'!$H$56,IF('TRANSCRIPT INFORMATION'!$F$56=\"N\",'TRANSCRIPT INFORMATION'!$H$56,'TRANSCRIPT INFORMATION'!$B$56))","v":0},{"$f":"+IF('TRANSCRIPT INFORMATION'!$E$56=\"N\",'TRANSCRIPT INFORMATION'!$I$56,IF('TRANSCRIPT INFORMATION'!$F$56=\"N\",'TRANSCRIPT INFORMATION'!$I$56,'TRANSCRIPT INFORMATION'!$C$56))","v":0},{"$f":"+IF('TRANSCRIPT INFORMATION'!$E$56=\"N\",'TRANSCRIPT INFORMATION'!$J$56&'TRANSCRIPT INFORMATION'!$K$56,IF('TRANSCRIPT INFORMATION'!$F$56=\"N\",'TRANSCRIPT INFORMATION'!$K$56&'TRANSCRIPT INFORMATION'!$K$56,'TRANSCRIPT INFORMATION'!$D$56))","v":3},{"$f":"IF('TRANSCRIPT INFORMATION'!$L$56=\"N/A\",\" \",'TRANSCRIPT INFORMATION'!$L$56)&\" \"&+IF('TRANSCRIPT INFORMATION'!$O$56=\"N/A\",\" \",'TRANSCRIPT INFORMATION'!$O$56)","v":"   "},{"$f":"+IF('TRANSCRIPT INFORMATION'!$E$56=\"N\",'TRANSCRIPT INFORMATION'!$G$56,IF('TRANSCRIPT INFORMATION'!$F$56=\"N\",'TRANSCRIPT INFORMATION'!$G$56,))","v":0},{"$f":"+IF('TRANSCRIPT INFORMATION'!$E$58=\"N\",'TRANSCRIPT INFORMATION'!$H$58,IF('TRANSCRIPT INFORMATION'!$F$58=\"N\",'TRANSCRIPT INFORMATION'!$H$58,'TRANSCRIPT INFORMATION'!$B$58))","v":" "},{"$f":"+IF('TRANSCRIPT INFORMATION'!$E$58=\"N\",'TRANSCRIPT INFORMATION'!$I$58,IF('TRANSCRIPT INFORMATION'!$F$58=\"N\",'TRANSCRIPT INFORMATION'!$I$58,'TRANSCRIPT INFORMATION'!$C$58))","v":0},{"$f":"+IF('TRANSCRIPT INFORMATION'!$E$58=\"N\",'TRANSCRIPT INFORMATION'!$J$58&'TRANSCRIPT INFORMATION'!$K$58,IF('TRANSCRIPT INFORMATION'!$F$58=\"N\",'TRANSCRIPT INFORMATION'!$K$58&'TRANSCRIPT INFORMATION'!$K$58,'TRANSCRIPT INFORMATION'!$D$58))","v":3},{"$f":"IF('TRANSCRIPT INFORMATION'!$L$58=\"N/A\",\" \",'TRANSCRIPT INFORMATION'!$L$58)&\" \"&+IF('TRANSCRIPT INFORMATION'!$O$58=\"N/A\",\" \",'TRANSCRIPT INFORMATION'!$O$58)","v":"   "}]
[null,{"$f":"+IF('TRANSCRIPT INFORMATION'!$E$57=\"N\",'TRANSCRIPT INFORMATION'!$B$57,IF('TRANSCRIPT INFORMATION'!$F$57=\"N\",'TRANSCRIPT INFORMATION'!$B$57,))","v":0},{"$f":"+IF('TRANSCRIPT INFORMATION'!$E$57=\"N\",'TRANSCRIPT INFORMATION'!$C$57,IF('TRANSCRIPT INFORMATION'!$F$57=\"N\",'TRANSCRIPT INFORMATION'!$C$57,))","v":0},{"$f":"+IF('TRANSCRIPT INFORMATION'!$E$57=\"N\",'TRANSCRIPT INFORMATION'!$D$57,IF('TRANSCRIPT INFORMATION'!$F$57=\"N\",'TRANSCRIPT INFORMATION'!$D$57,))","v":0},null,null,{"$f":"+IF('TRANSCRIPT INFORMATION'!$E$59=\"N\",'TRANSCRIPT INFORMATION'!$B$59,IF('TRANSCRIPT INFORMATION'!$F$59=\"N\",'TRANSCRIPT INFORMATION'!$B$59,))","v":0},{"$f":"+IF('TRANSCRIPT INFORMATION'!$E$59=\"N\",'TRANSCRIPT INFORMATION'!$C$59,IF('TRANSCRIPT INFORMATION'!$F$59=\"N\",'TRANSCRIPT INFORMATION'!$C$59,))","v":0},{"$f":"+IF('TRANSCRIPT INFORMATION'!$E$59=\"N\",'TRANSCRIPT INFORMATION'!$D$59,IF('TRANSCRIPT INFORMATION'!$F$59=\"N\",'TRANSCRIPT INFORMATION'!$D$59,))","v":0}]
[{"$f":"+IF('TRANSCRIPT INFORMATION'!$E$57=\"N\",'TRANSCRIPT INFORMATION'!$G$57,IF('TRANSCRIPT INFORMATION'!$F$57=\"N\",'TRANSCRIPT INFORMATION'!$G$57,))","v":0},{"$f":"+IF('TRANSCRIPT INFORMATION'!$E$57=\"N\",'TRANSCRIPT INFORMATION'!$H$57,IF('TRANSCRIPT INFORMATION'!$F$57=\"N\",'TRANSCRIPT INFORMATION'!$H$57,'TRANSCRIPT INFORMATION'!$B$57))","v":0},{"$f":"+IF('TRANSCRIPT INFORMATION'!$E$57=\"N\",'TRANSCRIPT INFORMATION'!$I$57,IF('TRANSCRIPT INFORMATION'!$F$57=\"N\",'TRANSCRIPT INFORMATION'!$I$57,'TRANSCRIPT INFORMATION'!$C$57))","v":0},{"$f":"+IF('TRANSCRIPT INFORMATION'!$E$57=\"N\",'TRANSCRIPT INFORMATION'!$J$57&'TRANSCRIPT INFORMATION'!$K$57,IF('TRANSCRIPT INFORMATION'!$F$57=\"N\",'TRANSCRIPT INFORMATION'!$K$57&'TRANSCRIPT INFORMATION'!$K$57,'TRANSCRIPT INFORMATION'!$D$57))","v":3},{"$f":"IF('TRANSCRIPT INFORMATION'!$L$57=\"N/A\",\" \",'TRANSCRIPT INFORMATION'!$L$57)&\" \"&+IF('TRANSCRIPT INFORMATION'!$O$57=\"N/A\",\" \",'TRANSCRIPT INFORMATION'!$O$57)","v":"   "},{"$f":"+IF('TRANSCRIPT INFORMATION'!$E$57=\"N\",'TRANSCRIPT INFORMATION'!$G$57,IF('TRANSCRIPT INFORMATION'!$F$57=\"N\",'TRANSCRIPT INFORMATION'!$G$57,))","v":0},{"$f":"+IF('TRANSCRIPT INFORMATION'!$E$59=\"N\",'TRANSCRIPT INFORMATION'!$H$59,IF('TRANSCRIPT INFORMATION'!$F$59=\"N\",'TRANSCRIPT INFORMATION'!$H$59,'TRANSCRIPT INFORMATION'!$B$59))","v":0},{"$f":"+IF('TRANSCRIPT INFORMATION'!$E$59=\"N\",'TRANSCRIPT INFORMATION'!$I$59,IF('TRANSCRIPT INFORMATION'!$F$59=\"N\",'TRANSCRIPT INFORMATION'!$I$59,'TRANSCRIPT INFORMATION'!$C$59))","v":0},{"$f":"+IF('TRANSCRIPT INFORMATION'!$E$59=\"N\",'TRANSCRIPT INFORMATION'!$J$59&'TRANSCRIPT INFORMATION'!$K$59,IF('TRANSCRIPT INFORMATION'!$F$59=\"N\",'TRANSCRIPT INFORMATION'!$K$59&'TRANSCRIPT INFORMATION'!$K$59,'TRANSCRIPT INFORMATION'!$D$59))","v":0},{"$f":"IF('TRANSCRIPT INFORMATION'!$L$59=\"N/A\",\" \",'TRANSCRIPT INFORMATION'!$L$59)&\" \"&+IF('TRANSCRIPT INFORMATION'!$O$59=\"N/A\",\" \",'TRANSCRIPT INFORMATION'!$O$59)","v":"   "}]
[]
["PREPARATION FOR THE MAJOR - MATH, CHEMISTRY & PHYSICS "]
[" ALT. INST.","COURSE NUMBER.","COURSE TITLE","UNITS","GRADE"," ALT. INST.","COURSE NUMBER.","COURSE TITLE","UNITS","GRADE"]
[null,{"$f":"+IF('TRANSCRIPT INFORMATION'!$E$16=\"N\",'TRANSCRIPT INFORMATION'!$B$16,IF('TRANSCRIPT INFORMATION'!$F$16=\"N\",'TRANSCRIPT INFORMATION'!$B$16,))","v":0},{"$f":"+IF('TRANSCRIPT INFORMATION'!$E$16=\"N\",'TRANSCRIPT INFORMATION'!$C$16,IF('TRANSCRIPT INFORMATION'!$F$16=\"N\",'TRANSCRIPT INFORMATION'!$C$16,))","v":0},{"$f":"+IF('TRANSCRIPT INFORMATION'!$E$16=\"N\",'TRANSCRIPT INFORMATION'!$D$16,IF('TRANSCRIPT INFORMATION'!$F$16=\"N\",'TRANSCRIPT INFORMATION'!$D$16,))","v":0},null,null,{"$f":"+IF('TRANSCRIPT INFORMATION'!$E$24=\"N\",'TRANSCRIPT INFORMATION'!$B$24,IF('TRANSCRIPT INFORMATION'!$F$24=\"N\",'TRANSCRIPT INFORMATION'!$B$24,))","v":0},{"$f":"+IF('TRANSCRIPT INFORMATION'!$E$24=\"N\",'TRANSCRIPT INFORMATION'!$C$24,IF('TRANSCRIPT INFORMATION'!$F$24=\"N\",'TRANSCRIPT INFORMATION'!$C$24,))","v":0},{"$f":"+IF('TRANSCRIPT INFORMATION'!$E$24=\"N\",'TRANSCRIPT INFORMATION'!$D$24,IF('TRANSCRIPT INFORMATION'!$F$24=\"N\",'TRANSCRIPT INFORMATION'!$D$24,))","v":0}]
[{"$f":"+IF('TRANSCRIPT INFORMATION'!$E$16=\"N\",'TRANSCRIPT INFORMATION'!$G$16,IF('TRANSCRIPT INFORMATION'!$F$16=\"N\",'TRANSCRIPT INFORMATION'!$G$16,))","v":0},{"$f":"+IF('TRANSCRIPT INFORMATION'!$E$16=\"N\",'TRANSCRIPT INFORMATION'!$H$16,IF('TRANSCRIPT INFORMATION'!$F$16=\"N\",'TRANSCRIPT INFORMATION'!$H$16,'TRANSCRIPT INFORMATION'!$B$16))","v":"MATH 30"},{"$f":"+IF('TRANSCRIPT INFORMATION'!$E$16=\"N\",'TRANSCRIPT INFORMATION'!$I$16,IF('TRANSCRIPT INFORMATION'!$F$16=\"N\",'TRANSCRIPT INFORMATION'!$I$16,'TRANSCRIPT INFORMATION'!$C$16))","v":"CALCULUS I"},{"$f":"+IF('TRANSCRIPT INFORMATION'!$E$16=\"N\",'TRANSCRIPT INFORMATION'!$J$16&'TRANSCRIPT INFORMATION'!$K$16,IF('TRANSCRIPT INFORMATION'!$F$16=\"N\",'TRANSCRIPT INFORMATION'!$K$16&'TRANSCRIPT INFORMATION'!$K$16,'TRANSCRIPT INFORMATION'!$D$16))","v":3},{"$f":"IF('TRANSCRIPT INFORMATION'!$L$16=\"N/A\",\" \",'TRANSCRIPT INFORMATION'!$L$16)&\" \"&+IF('TRANSCRIPT INFORMATION'!$O$16=\"N/A\",\" \",'TRANSCRIPT INFORMATION'!$O$16)","v":"   "},{"$f":"+IF('TRANSCRIPT INFORMATION'!$E$24=\"N\",'TRANSCRIPT INFORMATION'!$G$24,IF('TRANSCRIPT INFORMATION'!$F$24=\"N\",'TRANSCRIPT INFORMATION'!$G$24,))","v":0},{"$f":"+IF('TRANSCRIPT INFORMATION'!$E$24=\"N\",'TRANSCRIPT INFORMATION'!$H$24,IF('TRANSCRIPT INFORMATION'!$F$24=\"N\",'TRANSCRIPT INFORMATION'!$H$24,'TRANSCRIPT INFORMATION'!$B$24))","v":0},{"$f":"+IF('TRANSCRIPT INFORMATION'!$E$24=\"N\",'TRANSCRIPT INFORMATION'!$I$24,IF('TRANSCRIPT INFORMATION'!$F$24=\"N\",'TRANSCRIPT INFORMATION'!$I$24,'TRANSCRIPT INFORMATION'!$C$24))","v":0},{"$f":"+IF('TRANSCRIPT INFORMATION'!$E$24=\"N\",'TRANSCRIPT INFORMATION'!$J$24&'TRANSCRIPT INFORMATION'!$K$24,IF('TRANSCRIPT INFORMATION'!$F$24=\"N\",'TRANSCRIPT INFORMATION'!$K$24&'TRANSCRIPT INFORMATION'!$K$24,'TRANSCRIPT INFORMATION'!$D$24))","v":0},{"$f":"IF('TRANSCRIPT INFORMATION'!$L$24=\"N/A\",\" \",'TRANSCRIPT INFORMATION'!$L$24)&\" \"&+IF('TRANSCRIPT INFORMATION'!$O$24=\"N/A\",\" \",'TRANSCRIPT INFORMATION'!$O$24)","v":"   "}]
[null,{"$f":"+IF('TRANSCRIPT INFORMATION'!$E$17=\"N\",'TRANSCRIPT INFORMATION'!$B$17,IF('TRANSCRIPT INFORMATION'!$F$17=\"N\",'TRANSCRIPT INFORMATION'!$B$17,))","v":0},{"$f":"+IF('TRANSCRIPT INFORMATION'!$E$17=\"N\",'TRANSCRIPT INFORMATION'!$C$17,IF('TRANSCRIPT INFORMATION'!$F$17=\"N\",'TRANSCRIPT INFORMATION'!$C$17,))","v":0},{"$f":"+IF('TRANSCRIPT INFORMATION'!$E$17=\"N\",'TRANSCRIPT INFORMATION'!$D$17,IF('TRANSCRIPT INFORMATION'!$F$17=\"N\",'TRANSCRIPT INFORMATION'!$D$17,))","v":0},null,null,{"$f":"+IF('TRANSCRIPT INFORMATION'!$E$24=\"N\",'TRANSCRIPT INFORMATION'!$B$24,IF('TRANSCRIPT INFORMATION'!$F$24=\"N\",'TRANSCRIPT INFORMATION'!$B$24,))","v":0},{"$f":"+IF('TRANSCRIPT INFORMATION'!$E$25=\"N\",'TRANSCRIPT INFORMATION'!$C$25,IF('TRANSCRIPT INFORMATION'!$F$25=\"N\",'TRANSCRIPT INFORMATION'!$C$25,))","v":0},{"$f":"+IF('TRANSCRIPT INFORMATION'!$E$25=\"N\",'TRANSCRIPT INFORMATION'!$D$25,IF('TRANSCRIPT INFORMATION'!$F$25=\"N\",'TRANSCRIPT INFORMATION'!$D$25,))","v":0}]
[{"$f":"+IF('TRANSCRIPT INFORMATION'!$E$17=\"N\",'TRANSCRIPT INFORMATION'!$G$17,IF('TRANSCRIPT INFORMATION'!$F$17=\"N\",'TRANSCRIPT INFORMATION'!$G$17,))","v":0},{"$f":"+IF('TRANSCRIPT INFORMATION'!$E$17=\"N\",'TRANSCRIPT INFORMATION'!$H$17,IF('TRANSCRIPT INFORMATION'!$F$17=\"N\",'TRANSCRIPT INFORMATION'!$H$17,'TRANSCRIPT INFORMATION'!$B$17))","v":"MATH 31"},{"$f":"+IF('TRANSCRIPT INFORMATION'!$E$17=\"N\",'TRANSCRIPT INFORMATION'!$I$17,IF('TRANSCRIPT INFORMATION'!$F$17=\"N\",'TRANSCRIPT INFORMATION'!$I$17,'TRANSCRIPT INFORMATION'!$C$17))","v":"CALCULUS II"},{"$f":"+IF('TRANSCRIPT INFORMATION'!$E$17=\"N\",'TRANSCRIPT INFORMATION'!$J$17&'TRANSCRIPT INFORMATION'!$K$17,IF('TRANSCRIPT INFORMATION'!$F$17=\"N\",'TRANSCRIPT INFORMATION'!$K$17&'TRANSCRIPT INFORMATION'!$K$17,'TRANSCRIPT INFORMATION'!$D$17))","v":4},{"$f":"IF('TRANSCRIPT INFORMATION'!$L$17=\"N/A\",\" \",'TRANSCRIPT INFORMATION'!$L$17)&\" \"&+IF('TRANSCRIPT INFORMATION'!$O$17=\"N/A\",\" \",'TRANSCRIPT INFORMATION'!$O$17)","v":"   "},{"$f":"+IF('TRANSCRIPT INFORMATION'!$E$25=\"N\",'TRANSCRIPT INFORMATION'!$G$25,IF('TRANSCRIPT INFORMATION'!$F$25=\"N\",'TRANSCRIPT INFORMATION'!$G$25,))","v":0},{"$f":"+IF('TRANSCRIPT INFORMATION'!$E$25=\"N\",'TRANSCRIPT INFORMATION'!$H$25,IF('TRANSCRIPT INFORMATION'!$F$25=\"N\",'TRANSCRIPT INFORMATION'!$H$25,'TRANSCRIPT INFORMATION'!$B$25))","v":"PHYS 50"},{"$f":"+IF('TRANSCRIPT INFORMATION'!$E$25=\"N\",'TRANSCRIPT INFORMATION'!$I$25,IF('TRANSCRIPT INFORMATION'!$F$25=\"N\",'TRANSCRIPT INFORMATION'!$I$25,'TRANSCRIPT INFORMATION'!$C$25))","v":"MECHANICS"},{"$f":"+IF('TRANSCRIPT INFORMATION'!$E$25=\"N\",'TRANSCRIPT INFORMATION'!$J$25&'TRANSCRIPT INFORMATION'!$K$25,IF('TRANSCRIPT INFORMATION'!$F$25=\"N\",'TRANSCRIPT INFORMATION'!$K$25&'TRANSCRIPT INFORMATION'!$K$25,'TRANSCRIPT INFORMATION'!$D$25))","v":4},{"$f":"IF('TRANSCRIPT INFORMATION'!$L$25=\"N/A\",\" \",'TRANSCRIPT INFORMATION'!$L$25)&\" \"&+IF('TRANSCRIPT INFORMATION'!$O$25=\"N/A\",\" \",'TRANSCRIPT INFORMATION'!$O$25)","v":"   "}]
[null,{"$f":"+IF('TRANSCRIPT INFORMATION'!$E$18=\"N\",'TRANSCRIPT INFORMATION'!$B$18,IF('TRANSCRIPT INFORMATION'!$F$18=\"N\",'TRANSCRIPT INFORMATION'!$B$18,))","v":0},{"$f":"+IF('TRANSCRIPT INFORMATION'!$E$18=\"N\",'TRANSCRIPT INFORMATION'!$C$18,IF('TRANSCRIPT INFORMATION'!$F$18=\"N\",'TRANSCRIPT INFORMATION'!$C$18,))","v":0},{"$f":"+IF('TRANSCRIPT INFORMATION'!$E$18=\"N\",'TRANSCRIPT INFORMATION'!$D$18,IF('TRANSCRIPT INFORMATION'!$F$18=\"N\",'TRANSCRIPT INFORMATION'!$D$18,))","v":0},null,null,{"$f":"+IF('TRANSCRIPT INFORMATION'!$E$26=\"N\",'TRANSCRIPT INFORMATION'!$B$26,IF('TRANSCRIPT INFORMATION'!$F$26=\"N\",'TRANSCRIPT INFORMATION'!$B$26,))","v":0},{"$f":"+IF('TRANSCRIPT INFORMATION'!$E$26=\"N\",'TRANSCRIPT INFORMATION'!$C$26,IF('TRANSCRIPT INFORMATION'!$F$26=\"N\",'TRANSCRIPT INFORMATION'!$C$26,))","v":0},{"$f":"+IF('TRANSCRIPT INFORMATION'!$E$26=\"N\",'TRANSCRIPT INFORMATION'!$D$26,IF('TRANSCRIPT INFORMATION'!$F$26=\"N\",'TRANSCRIPT INFORMATION'!$D$26,))","v":0}]
[{"$f":"+IF('TRANSCRIPT INFORMATION'!$E$18=\"N\",'TRANSCRIPT INFORMATION'!$G$18,IF('TRANSCRIPT INFORMATION'!$F$18=\"N\",'TRANSCRIPT INFORMATION'!$G$18,))","v":0},{"$f":"+IF('TRANSCRIPT INFORMATION'!$E$18=\"N\",'TRANSCRIPT INFORMATION'!$H$18,IF('TRANSCRIPT INFORMATION'!$F$18=\"N\",'TRANSCRIPT INFORMATION'!$H$18,'TRANSCRIPT INFORMATION'!$B$18))","v":"MATH 32"},{"$f":"+IF('TRANSCRIPT INFORMATION'!$E$18=\"N\",'TRANSCRIPT INFORMATION'!$I$18,IF('TRANSCRIPT INFORMATION'!$F$18=\"N\",'TRANSCRIPT INFORMATION'!$I$18,'TRANSCRIPT INFORMATION'!$C$18))","v":"CALCULUS III"},{"$f":"+IF('TRANSCRIPT INFORMATION'!$E$18=\"N\",'TRANSCRIPT INFORMATION'!$J$18&'TRANSCRIPT INFORMATION'!$K$18,IF('TRANSCRIPT INFORMATION'!$F$18=\"N\",'TRANSCRIPT INFORMATION'!$K$18&'TRANSCRIPT INFORMATION'!$K$18,'TRANSCRIPT INFORMATION'!$D$18))","v":3},{"$f":"IF('TRANSCRIPT INFORMATION'!$L$18=\"N/A\",\" \",'TRANSCRIPT INFORMATION'!$L$18)&\" \"&+IF('TRANSCRIPT INFORMATION'!$O$18=\"N/A\",\" \",'TRANSCRIPT INFORMATION'!$O$18)","v":"   "},{"$f":"+IF('TRANSCRIPT INFORMATION'!$E$26=\"N\",'TRANSCRIPT INFORMATION'!$G$26,IF('TRANSCRIPT INFORMATION'!$F$26=\"N\",'TRANSCRIPT INFORMATION'!$G$26,))","v":0},{"$f":"+IF('TRANSCRIPT INFORMATION'!$E$26=\"N\",'TRANSCRIPT INFORMATION'!$H$26,IF('TRANSCRIPT INFORMATION'!$F$26=\"N\",'TRANSCRIPT INFORMATION'!$H$26,'TRANSCRIPT INFORMATION'!$B$26))","v":"PHYS 51"},{"$f":"+IF('TRANSCRIPT INFORMATION'!$E$26=\"N\",'TRANSCRIPT INFORMATION'!$I$26,IF('TRANSCRIPT INFORMATION'!$F$26=\"N\",'TRANSCRIPT INFORMATION'!$I$26,'TRANSCRIPT INFORMATION'!$C$26))","v":"ELECTRICITY & MAGNETISM"},{"$f":"+IF('TRANSCRIPT INFORMATION'!$E$26=\"N\",'TRANSCRIPT INFORMATION'!$J$26&'TRANSCRIPT INFORMATION'!$K$26,IF('TRANSCRIPT INFORMATION'!$F$26=\"N\",'TRANSCRIPT INFORMATION'!$K$26&'TRANSCRIPT INFORMATION'!$K$26,'TRANSCRIPT INFORMATION'!$D$26))","v":4},{"$f":"IF('TRANSCRIPT INFORMATION'!$L$26=\"N/A\",\" \",'TRANSCRIPT INFORMATION'!$L$26)&\" \"&+IF('TRANSCRIPT INFORMATION'!$O$26=\"N/A\",\" \",'TRANSCRIPT INFORMATION'!$O$26)","v":"   "}]
[null,{"$f":"+IF('TRANSCRIPT INFORMATION'!$E$19=\"N\",'TRANSCRIPT INFORMATION'!$B$19,IF('TRANSCRIPT INFORMATION'!$F$19=\"N\",'TRANSCRIPT INFORMATION'!$B$19,))","v":0},{"$f":"+IF('TRANSCRIPT INFORMATION'!$E$19=\"N\",'TRANSCRIPT INFORMATION'!$C$19,IF('TRANSCRIPT INFORMATION'!$F$19=\"N\",'TRANSCRIPT INFORMATION'!$C$19,))","v":0},{"$f":"+IF('TRANSCRIPT INFORMATION'!$E$19=\"N\",'TRANSCRIPT INFORMATION'!$D$19,IF('TRANSCRIPT INFORMATION'!$F$19=\"N\",'TRANSCRIPT INFORMATION'!$D$19,))","v":0},null,null,{"$f":"+IF('TRANSCRIPT INFORMATION'!$E$27=\"N\",'TRANSCRIPT INFORMATION'!$B$27,IF('TRANSCRIPT INFORMATION'!$F$27=\"N\",'TRANSCRIPT INFORMATION'!$B$27,))","v":0},{"$f":"+IF('TRANSCRIPT INFORMATION'!$E$27=\"N\",'TRANSCRIPT INFORMATION'!$C$27,IF('TRANSCRIPT INFORMATION'!$F$27=\"N\",'TRANSCRIPT INFORMATION'!$C$27,))","v":0},{"$f":"+IF('TRANSCRIPT INFORMATION'!$E$27=\"N\",'TRANSCRIPT INFORMATION'!$D$27,IF('TRANSCRIPT INFORMATION'!$F$27=\"N\",'TRANSCRIPT INFORMATION'!$D$27,))","v":0}]
[{"$f":"+IF('TRANSCRIPT INFORMATION'!$E$19=\"N\",'TRANSCRIPT INFORMATION'!$G$19,IF('TRANSCRIPT INFORMATION'!$F$19=\"N\",'TRANSCRIPT INFORMATION'!$G$19,))","v":0},{"$f":"+IF('TRANSCRIPT INFORMATION'!$E$19=\"N\",'TRANSCRIPT INFORMATION'!$H$19,IF('TRANSCRIPT INFORMATION'!$F$19=\"N\",'TRANSCRIPT INFORMATION'!$H$19,'TRANSCRIPT INFORMATION'!$B$19))","v":0},{"$f":"+IF('TRANSCRIPT INFORMATION'!$E$19=\"N\",'TRANSCRIPT INFORMATION'!$I$19,IF('TRANSCRIPT INFORMATION'!$F$19=\"N\",'TRANSCRIPT INFORMATION'!$I$19,'TRANSCRIPT INFORMATION'!$C$19))","v":0},{"$f":"+IF('TRANSCRIPT INFORMATION'!$E$19=\"N\",'TRANSCRIPT INFORMATION'!$J$19&'TRANSCRIPT INFORMATION'!$K$19,IF('TRANSCRIPT INFORMATION'!$F$19=\"N\",'TRANSCRIPT INFORMATION'!$K$19&'TRANSCRIPT INFORMATION'!$K$19,'TRANSCRIPT INFORMATION'!$D$19))","v":0},{"$f":"IF('TRANSCRIPT INFORMATION'!$L$19=\"N/A\",\" \",'TRANSCRIPT INFORMATION'!$L$19)&\" \"&+IF('TRANSCRIPT INFORMATION'!$O$19=\"N/A\",\" \",'TRANSCRIPT INFORMATION'!$O$19)","v":" "},{"$f":"+IF('TRANSCRIPT INFORMATION'!$E$27=\"N\",'TRANSCRIPT INFORMATION'!$G$27,IF('TRANSCRIPT INFORMATION'!$F$27=\"N\",'TRANSCRIPT INFORMATION'!$G$27,))","v":0},{"$f":"+IF('TRANSCRIPT INFORMATION'!$E$27=\"N\",'TRANSCRIPT INFORMATION'!$H$27,IF('TRANSCRIPT INFORMATION'!$F$27=\"N\",'TRANSCRIPT INFORMATION'!$H$27,'TRANSCRIPT INFORMATION'!$B$27))","v":" "},{"$f":"+IF('TRANSCRIPT INFORMATION'!$E$27=\"N\",'TRANSCRIPT INFORMATION'!$I$27,IF('TRANSCRIPT INFORMATION'!$F$27=\"N\",'TRANSCRIPT INFORMATION'!$I$27,'TRANSCRIPT INFORMATION'!$C$27))","v":" "},{"$f":"+IF('TRANSCRIPT INFORMATION'!$E$27=\"N\",'TRANSCRIPT INFORMATION'!$J$27&'TRANSCRIPT INFORMATION'!$K$27,IF('TRANSCRIPT INFORMATION'!$F$27=\"N\",'TRANSCRIPT INFORMATION'!$K$27&'TRANSCRIPT INFORMATION'!$K$27,'TRANSCRIPT INFORMATION'!$D$27))","v":" "},{"$f":"IF('TRANSCRIPT INFORMATION'!$L$27=\"N/A\",\" \",'TRANSCRIPT INFORMATION'!$L$27)&\" \"&+IF('TRANSCRIPT INFORMATION'!$O$27=\"N/A\",\" \",'TRANSCRIPT INFORMATION'!$O$27)","v":"   "}]
[null,{"$f":"+IF('TRANSCRIPT INFORMATION'!$E$20=\"N\",'TRANSCRIPT INFORMATION'!$B$20,IF('TRANSCRIPT INFORMATION'!$F$20=\"N\",'TRANSCRIPT INFORMATION'!$B$20,))","v":0},{"$f":"+IF('TRANSCRIPT INFORMATION'!$E$20=\"N\",'TRANSCRIPT INFORMATION'!$C$20,IF('TRANSCRIPT INFORMATION'!$F$20=\"N\",'TRANSCRIPT INFORMATION'!$C$20,))","v":0},{"$f":"+IF('TRANSCRIPT INFORMATION'!$E$20=\"N\",'TRANSCRIPT INFORMATION'!$D$20,IF('TRANSCRIPT INFORMATION'!$F$20=\"N\",'TRANSCRIPT INFORMATION'!$D$20,))","v":0},null,null,{"$f":"+IF('TRANSCRIPT INFORMATION'!$E$28=\"N\",'TRANSCRIPT INFORMATION'!$B$28,IF('TRANSCRIPT INFORMATION'!$F$28=\"N\",'TRANSCRIPT INFORMATION'!$B$28,))","v":0},{"$f":"+IF('TRANSCRIPT INFORMATION'!$E$28=\"N\",'TRANSCRIPT INFORMATION'!$C$28,IF('TRANSCRIPT INFORMATION'!$F$28=\"N\",'TRANSCRIPT INFORMATION'!$C$28,))","v":0},{"$f":"+IF('TRANSCRIPT INFORMATION'!$E$28=\"N\",'TRANSCRIPT INFORMATION'!$D$28,IF('TRANSCRIPT INFORMATION'!$F$28=\"N\",'TRANSCRIPT INFORMATION'!$D$28,))","v":0}]
[{"$f":"+IF('TRANSCRIPT INFORMATION'!$E$20=\"N\",'TRANSCRIPT INFORMATION'!$G$20,IF('TRANSCRIPT INFORMATION'!$F$20=\"N\",'TRANSCRIPT INFORMATION'!$G$20,))","v":0},{"$f":"+IF('TRANSCRIPT INFORMATION'!$E$20=\"N\",'TRANSCRIPT INFORMATION'!$H$20,IF('TRANSCRIPT INFORMATION'!$F$20=\"N\",'TRANSCRIPT INFORMATION'!$H$20,'TRANSCRIPT INFORMATION'!$B$20))","v":"MATH 133A"},{"$f":"+IF('TRANSCRIPT INFORMATION'!$E$20=\"N\",'TRANSCRIPT INFORMATION'!$I$20,IF('TRANSCRIPT INFORMATION'!$F$20=\"N\",'TRANSCRIPT INFORMATION'!$I$20,'TRANSCRIPT INFORMATION'!$C$20))","v":"ORDINARY DIFFERENTIAL EQUATIONS"},{"$f":"+IF('TRANSCRIPT INFORMATION'!$E$20=\"N\",'TRANSCRIPT INFORMATION'!$J$20&'TRANSCRIPT INFORMATION'!$K$20,IF('TRANSCRIPT INFORMATION'!$F$20=\"N\",'TRANSCRIPT INFORMATION'!$K$20&'TRANSCRIPT INFORMATION'!$K$20,'TRANSCRIPT INFORMATION'!$D$20))","v":3},{"$f":"IF('TRANSCRIPT INFORMATION'!$L$20=\"N/A\",\" \",'TRANSCRIPT INFORMATION'!$L$20)&\" \"&+IF('TRANSCRIPT INFORMATION'!$O$20=\"N/A\",\" \",'TRANSCRIPT INFORMATION'!$O$20)","v":"   "},{"$f":"+IF('TRANSCRIPT INFORMATION'!$E$28=\"N\",'TRANSCRIPT INFORMATION'!$G$28,IF('TRANSCRIPT INFORMATION'!$F$28=\"N\",'TRANSCRIPT INFORMATION'!$G$28,))","v":0},{"$f":"+IF('TRANSCRIPT INFORMATION'!$E$28=\"N\",'TRANSCRIPT INFORMATION'!$H$28,IF('TRANSCRIPT INFORMATION'!$F$28=\"N\",'TRANSCRIPT INFORMATION'!$H$28,'TRANSCRIPT INFORMATION'!$B$28))","v":"ENGL 1B"},{"$f":"+IF('TRANSCRIPT INFORMATION'!$E$28=\"N\",'TRANSCRIPT INFORMATION'!$I$28,IF('TRANSCRIPT INFORMATION'!$F$28=\"N\",'TRANSCRIPT INFORMATION'!$I$28,'TRANSCRIPT INFORMATION'!$C$28))","v":"ARGUMENT & ANALYSIS"},{"$f":"+IF('TRANSCRIPT INFORMATION'!$E$28=\"N\",'TRANSCRIPT INFORMATION'!$J$28&'TRANSCRIPT INFORMATION'!$K$28,IF('TRANSCRIPT INFORMATION'!$F$28=\"N\",'TRANSCRIPT INFORMATION'!$K$28&'TRANSCRIPT INFORMATION'!$K$28,'TRANSCRIPT INFORMATION'!$D$28))","v":3},{"$f":"IF('TRANSCRIPT INFORMATION'!$L$28=\"N/A\",\" \",'TRANSCRIPT INFORMATION'!$L$28)&\" \"&+IF('TRANSCRIPT INFORMATION'!$O$28=\"N/A\",\" \",'TRANSCRIPT INFORMATION'!$O$28)","v":"   "}]
[null,{"$f":"+IF('TRANSCRIPT INFORMATION'!$E$22=\"N\",'TRANSCRIPT INFORMATION'!$B$22,IF('TRANSCRIPT INFORMATION'!$F$22=\"N\",'TRANSCRIPT INFORMATION'!$B$22,))","v":0},{"$f":"+IF('TRANSCRIPT INFORMATION'!$E$22=\"N\",'TRANSCRIPT INFORMATION'!$C$22,IF('TRANSCRIPT INFORMATION'!$F$22=\"N\",'TRANSCRIPT INFORMATION'!$C$22,))","v":0},{"$f":"+IF('TRANSCRIPT INFORMATION'!$E$22=\"N\",'TRANSCRIPT INFORMATION'!$D$22,IF('TRANSCRIPT INFORMATION'!$F$22=\"N\",'TRANSCRIPT INFORMATION'!$D$22,))","v":0},null,null,{"$f":"+IF('TRANSCRIPT INFORMATION'!$E$36=\"N\",'TRANSCRIPT INFORMATION'!$B$36,IF('TRANSCRIPT INFORMATION'!$F$36=\"N\",'TRANSCRIPT INFORMATION'!$B$36,))","v":0},{"$f":"+IF('TRANSCRIPT INFORMATION'!$E$36=\"N\",'TRANSCRIPT INFORMATION'!$C$36,IF('TRANSCRIPT INFORMATION'!$F$36=\"N\",'TRANSCRIPT INFORMATION'!$C$36,))","v":0},{"$f":"+IF('TRANSCRIPT INFORMATION'!$E$36=\"N\",'TRANSCRIPT INFORMATION'!$D$36,IF('TRANSCRIPT INFORMATION'!$F$36=\"N\",'TRANSCRIPT INFORMATION'!$D$36,))","v":0}]
[{"$f":"+IF('TRANSCRIPT INFORMATION'!$E$22=\"N\",'TRANSCRIPT INFORMATION'!$G$22,IF('TRANSCRIPT INFORMATION'!$F$22=\"N\",'TRANSCRIPT INFORMATION'!$G$22,))","v":0},{"$f":"+IF('TRANSCRIPT INFORMATION'!$E$22=\"N\",'TRANSCRIPT INFORMATION'!$H$22,IF('TRANSCRIPT INFORMATION'!$F$22=\"N\",'TRANSCRIPT INFORMATION'!$H$22,'TRANSCRIPT INFORMATION'!$B$22))","v":"CHEM 1A"},{"$f":"+IF('TRANSCRIPT INFORMATION'!$E$22=\"N\",'TRANSCRIPT INFORMATION'!$I$22,IF('TRANSCRIPT INFORMATION'!$F$22=\"N\",'TRANSCRIPT INFORMATION'!$I$22,'TRANSCRIPT INFORMATION'!$C$22))","v":"GENERAL CHEMISTRY"},{"$f":"+IF('TRANSCRIPT INFORMATION'!$E$22=\"N\",'TRANSCRIPT INFORMATION'!$J$22&'TRANSCRIPT INFORMATION'!$K$22,IF('TRANSCRIPT INFORMATION'!$F$22=\"N\",'TRANSCRIPT INFORMATION'!$K$22&'TRANSCRIPT INFORMATION'!$K$22,'TRANSCRIPT INFORMATION'!$D$22))","v":5},{"$f":"IF('TRANSCRIPT INFORMATION'!$L$22=\"N/A\",\" \",'TRANSCRIPT INFORMATION'!$L$22)&\" \"&+IF('TRANSCRIPT INFORMATION'!$O$22=\"N/A\",\" \",'TRANSCRIPT INFORMATION'!$O$22)","v":"   "},{"$f":"+IF('TRANSCRIPT INFORMATION'!$E$36=\"N\",'TRANSCRIPT INFORMATION'!$G$36,IF('TRANSCRIPT INFORMATION'!$F$36=\"N\",'TRANSCRIPT INFORMATION'!$G$36,))","v":0},{"$f":"+IF('TRANSCRIPT INFORMATION'!$E$36=\"N\",'TRANSCRIPT INFORMATION'!$H$36,IF('TRANSCRIPT INFORMATION'!$F$36=\"N\",'TRANSCRIPT INFORMATION'!$H$36,'TRANSCRIPT INFORMATION'!$B$36))","v":"CHEM 112B"},{"$f":"+IF('TRANSCRIPT INFORMATION'!$E$36=\"N\",'TRANSCRIPT INFORMATION'!$I$36,IF('TRANSCRIPT INFORMATION'!$F$36=\"N\",'TRANSCRIPT INFORMATION'!$I$36,'TRANSCRIPT INFORMATION'!$C$36))","v":"ORGANIC CHEMISTRY"},{"$f":"+IF('TRANSCRIPT INFORMATION'!$E$36=\"N\",'TRANSCRIPT INFORMATION'!$J$36&'TRANSCRIPT INFORMATION'!$K$36,IF('TRANSCRIPT INFORMATION'!$F$36=\"N\",'TRANSCRIPT INFORMATION'!$K$36&'TRANSCRIPT INFORMATION'!$K$36,'TRANSCRIPT INFORMATION'!$D$36))","v":3},{"$f":"IF('TRANSCRIPT INFORMATION'!$L$36=\"N/A\",\" \",'TRANSCRIPT INFORMATION'!$L$36)&\" \"&+IF('TRANSCRIPT INFORMATION'!$O$36=\"N/A\",\" \",'TRANSCRIPT INFORMATION'!$O$36)","v":" "}]
[null,{"$f":"+IF('TRANSCRIPT INFORMATION'!$E$23=\"N\",'TRANSCRIPT INFORMATION'!$B$23,IF('TRANSCRIPT INFORMATION'!$F$23=\"N\",'TRANSCRIPT INFORMATION'!$B$23,))","v":0},{"$f":"+IF('TRANSCRIPT INFORMATION'!$E$23=\"N\",'TRANSCRIPT INFORMATION'!$C$23,IF('TRANSCRIPT INFORMATION'!$F$23=\"N\",'TRANSCRIPT INFORMATION'!$C$23,))","v":0},{"$f":"+IF('TRANSCRIPT INFORMATION'!$E$23=\"N\",'TRANSCRIPT INFORMATION'!$D$23,IF('TRANSCRIPT INFORMATION'!$F$23=\"N\",'TRANSCRIPT INFORMATION'!$D$23,))","v":0},null,null,{"$f":"+IF('TRANSCRIPT INFORMATION'!$E$24=\"N\",'TRANSCRIPT INFORMATION'!$B$24,IF('TRANSCRIPT INFORMATION'!$F$24=\"N\",'TRANSCRIPT INFORMATION'!$B$24,))","v":0},{"$f":"+IF('TRANSCRIPT INFORMATION'!$E$37=\"N\",'TRANSCRIPT INFORMATION'!$C$37,IF('TRANSCRIPT INFORMATION'!$F$37=\"N\",'TRANSCRIPT INFORMATION'!$C$37,))","v":0},{"$f":"+IF('TRANSCRIPT INFORMATION'!$E$37=\"N\",'TRANSCRIPT INFORMATION'!$D$37,IF('TRANSCRIPT INFORMATION'!$F$37=\"N\",'TRANSCRIPT INFORMATION'!$D$37,))","v":0}]
[{"$f":"+IF('TRANSCRIPT INFORMATION'!$E$23=\"N\",'TRANSCRIPT INFORMATION'!$G$23,IF('TRANSCRIPT INFORMATION'!$F$23=\"N\",'TRANSCRIPT INFORMATION'!$G$23,))","v":0},{"$f":"+IF('TRANSCRIPT INFORMATION'!$E$23=\"N\",'TRANSCRIPT INFORMATION'!$H$23,IF('TRANSCRIPT INFORMATION'!$F$23=\"N\",'TRANSCRIPT INFORMATION'!$H$23,'TRANSCRIPT INFORMATION'!$B$23))","v":"CHEM 1B"},{"$f":"+IF('TRANSCRIPT INFORMATION'!$E$23=\"N\",'TRANSCRIPT INFORMATION'!$I$23,IF('TRANSCRIPT INFORMATION'!$F$23=\"N\",'TRANSCRIPT INFORMATION'!$I$23,'TRANSCRIPT INFORMATION'!$C$23))","v":"GENERAL CHEMISTRY"},{"$f":"+IF('TRANSCRIPT INFORMATION'!$E$23=\"N\",'TRANSCRIPT INFORMATION'!$J$23&'TRANSCRIPT INFORMATION'!$K$23,IF('TRANSCRIPT INFORMATION'!$F$23=\"N\",'TRANSCRIPT INFORMATION'!$K$23&'TRANSCRIPT INFORMATION'!$K$23,'TRANSCRIPT INFORMATION'!$D$23))","v":5},{"$f":"IF('TRANSCRIPT INFORMATION'!$L$23=\"N/A\",\" \",'TRANSCRIPT INFORMATION'!$L$23)&\" \"&+IF('TRANSCRIPT INFORMATION'!$O$23=\"N/A\",\" \",'TRANSCRIPT INFORMATION'!$O$23)","v":"   "},{"$f":"+IF('TRANSCRIPT INFORMATION'!$E$27=\"N\",'TRANSCRIPT INFORMATION'!$G$27,IF('TRANSCRIPT INFORMATION'!$F$27=\"N\",'TRANSCRIPT INFORMATION'!$G$27,))","v":0},{"$f":"+IF('TRANSCRIPT INFORMATION'!$E$37=\"N\",'TRANSCRIPT INFORMATION'!$H$37,IF('TRANSCRIPT INFORMATION'!$F$37=\"N\",'TRANSCRIPT INFORMATION'!$H$37,'TRANSCRIPT INFORMATION'!$B$37))","v":"CHEM 113A"},{"$f":"+IF('TRANSCRIPT INFORMATION'!$E$37=\"N\",'TRANSCRIPT INFORMATION'!$I$37,IF('TRANSCRIPT INFORMATION'!$F$37=\"N\",'TRANSCRIPT INFORMATION'!$I$37,'TRANSCRIPT INFORMATION'!$C$37))","v":"ORGANIC CHEMISTRY LAB"},{"$f":"+IF('TRANSCRIPT INFORMATION'!$E$37=\"N\",'TRANSCRIPT INFORMATION'!$J$37&'TRANSCRIPT INFORMATION'!$K$37,IF('TRANSCRIPT INFORMATION'!$F$37=\"N\",'TRANSCRIPT INFORMATION'!$K$37&'TRANSCRIPT INFORMATION'!$K$37,'TRANSCRIPT INFORMATION'!$D$37))","v":2},{"$f":"IF('TRANSCRIPT INFORMATION'!$L$37=\"N/A\",\" \",'TRANSCRIPT INFORMATION'!$L$37)&\" \"&+IF('TRANSCRIPT INFORMATION'!$O$37=\"N/A\",\" \",'TRANSCRIPT INFORMATION'!$O$37)","v":" "}]
[]
[null,"The student listed above will have completed all the departmental requirements for the Bachelor of Science degree after:"]
[null,"(a) Successful completion of the above work."]
[null,"(b) An audit of the student's transcript of record to verify that all appropriate data have been entered accurately."]
[null,"(c) A minimum 2.0 GPA has been acheived in all REQUIRED COURSES."]
[null,"(d) A minimum 2.0 GPA has been acheived in all REQUIRED COURSES and TECHNICAL ELECTIVES COMBINED."]
[null,"(e) A minimum 2.0 GPA has been acheived in all REQUIRED COURSES and TECHNICAL ELECTIVES taken at SJSU."]
[]
[]
[]
[]
[null,"SIGNATURE OF MAJOR ADVISOR                                                                 DATE",null,null,null,null,"SIGNATURE OF BM., CHEM. & MATLS. ENGR. DEPT CHAIR                           DATE"]
[]
[]
[]
[]
[null,"SIGNATURE OF STUDENT                                                                              DATE"]
[]
[null,"Advisor Comments:"]

{"sheet":"Student Tracking Form","index":4,"n_rows":61,"n_cols":12,"rows_kept":61,"cut":false,"hidden":false,"merged":[[10,8,10,11],[54,1,54,7],[1,0,1,7],[2,6,3,6],[4,3,4,6],[25,1,25,7],[33,1,33,7],[0,0,0,7],[10,1,10,7],[6,2,6,4],[7,2,7,4],[8,2,8,3],[9,2,9,3],[5,2,5,5],[2,3,3,5]]}
["BS BIOMEDICAL ENGINEERING STUDENT TRACKING FORM"]
["COMMUNICATION INFORMATION"]
["Last Name:",null,{"$f":"+'TRANSCRIPT INFORMATION'!C5","v":0},"DATE STARTED  CONTINUOUS ENROLLMENT IN A CSU OR CC:",null,null,{"$f":"+'TRANSCRIPT INFORMATION'!I6","v":"00:00:00"}]
["First Name, MI.:",null,{"$f":"+'TRANSCRIPT INFORMATION'!C6","v":0}]
["PeopleSoft Number:",null,{"$f":"+'TRANSCRIPT INFORMATION'!C7","v":0},"PROPOSED DATA OF GRADUATION:",null,null,null,{"$f":"+'TRANSCRIPT INFORMATION'!H8","v":"00:00:00"}]
["Mailing Street Address:",null,{"$f":"+'TRANSCRIPT INFORMATION'!C8","v":0}]
["Mailing City State Zip",null,{"$f":"+'TRANSCRIPT INFORMATION'!C9","v":0}]
["e-Mail:",null,{"$f":"+'TRANSCRIPT INFORMATION'!C10","v":0}]
["Telephone (primary):",null,{"$f":"+'TRANSCRIPT INFORMATION'!C11","v":0},null,null,"UPDATED",{"$f":"TODAY()","v":"2016-10-03"}]
["Telephone (secondary):",null,{"$f":"+'TRANSCRIPT INFORMATION'!C12","v":0}]
[null,"PREPARATION FOR MAJOR",null,null,null,null,null,null,"FOR NON-SJSU CLASSES"]
[null,"COURSE","TITLE","UNITS","SCHOOL","SEM","YEAR","GRADE","Articulated?\n Y or N","SJSU Equivalency?","Advisor Initials","Notes"]
[null,{"$f":"+IF('TRANSCRIPT INFORMATION'!E16=\"Y\",'TRANSCRIPT INFORMATION'!B16,'TRANSCRIPT INFORMATION'!H16)","v":"MATH 30"},{"$f":"+IF('TRANSCRIPT INFORMATION'!E16=\"Y\",'TRANSCRIPT INFORMATION'!C16,'TRANSCRIPT INFORMATION'!I16)","v":"CALCULUS I"},{"$f":"+IF('TRANSCRIPT INFORMATION'!E16=\"Y\",'TRANSCRIPT INFORMATION'!D16,'TRANSCRIPT INFORMATION'!J16)","v":3},{"$f":"IF('TRANSCRIPT INFORMATION'!F16=\"Y\",\"SJSU\",IF('TRANSCRIPT INFORMATION'!E16=\"Y\",\"SJSU\",'TRANSCRIPT INFORMATION'!G16))","v":"SJSU"},{"$f":"IF('TRANSCRIPT INFORMATION'!F16=\"Y\",'TRANSCRIPT INFORMATION'!P16,'TRANSCRIPT INFORMATION'!M16)","v":0},{"$f":"IF('TRANSCRIPT INFORMATION'!F16=\"Y\",'TRANSCRIPT INFORMATION'!Q16,'TRANSCRIPT INFORMATION'!N16)","v":0},{"$f":"IF('TRANSCRIPT INFORMATION'!F16=\"Y\",IF('TRANSCRIPT INFORMATION'!O16=\"N/A\",\" \",'TRANSCRIPT INFORMATION'!O16),IF('TRANSCRIPT INFORMATION'!L16=\"N/A\",\" \",'TRANSCRIPT INFORMATION'!L16))","v":" "},null,{"$f":"+IF('Student Tracking Form'!I13=\"Y\",'TRANSCRIPT INFORMATION'!B16,)","v":0}]
[null,{"$f":"+IF('TRANSCRIPT INFORMATION'!E17=\"Y\",'TRANSCRIPT INFORMATION'!B17,'TRANSCRIPT INFORMATION'!H17)","v":"MATH 31"},{"$f":"+IF('TRANSCRIPT INFORMATION'!E17=\"Y\",'TRANSCRIPT INFORMATION'!C17,'TRANSCRIPT INFORMATION'!I17)","v":"CALCULUS II"},{"$f":"+IF('TRANSCRIPT INFORMATION'!E17=\"Y\",'TRANSCRIPT INFORMATION'!D17,'TRANSCRIPT INFORMATION'!J17)","v":4},{"$f":"IF('TRANSCRIPT INFORMATION'!F17=\"Y\",\"SJSU\",IF('TRANSCRIPT INFORMATION'!E17=\"Y\",\"SJSU\",'TRANSCRIPT INFORMATION'!G17))","v":"SJSU"},{"$f":"IF('TRANSCRIPT INFORMATION'!F17=\"Y\",'TRANSCRIPT INFORMATION'!P17,'TRANSCRIPT INFORMATION'!M17)","v":" "},{"$f":"IF('TRANSCRIPT INFORMATION'!F17=\"Y\",'TRANSCRIPT INFORMATION'!Q17,'TRANSCRIPT INFORMATION'!N17)","v":0},{"$f":"IF('TRANSCRIPT INFORMATION'!F17=\"Y\",IF('TRANSCRIPT INFORMATION'!O17=\"N/A\",\" \",'TRANSCRIPT INFORMATION'!O17),IF('TRANSCRIPT INFORMATION'!L17=\"N/A\",\" \",'TRANSCRIPT INFORMATION'!L17))","v":" "},null,{"$f":"+IF('Student Tracking Form'!I14=\"Y\",'TRANSCRIPT INFORMATION'!B17,)","v":0}]
[null,{"$f":"+IF('TRANSCRIPT INFORMATION'!E18=\"Y\",'TRANSCRIPT INFORMATION'!B18,'TRANSCRIPT INFORMATION'!H18)","v":"MATH 32"},{"$f":"+IF('TRANSCRIPT INFORMATION'!E18=\"Y\",'TRANSCRIPT INFORMATION'!C18,'TRANSCRIPT INFORMATION'!I18)","v":"CALCULUS III"},{"$f":"+IF('TRANSCRIPT INFORMATION'!E18=\"Y\",'TRANSCRIPT INFORMATION'!D18,'TRANSCRIPT INFORMATION'!J18)","v":3},{"$f":"IF('TRANSCRIPT INFORMATION'!F18=\"Y\",\"SJSU\",IF('TRANSCRIPT INFORMATION'!E18=\"Y\",\"SJSU\",'TRANSCRIPT INFORMATION'!G18))","v":"SJSU"},{"$f":"IF('TRANSCRIPT INFORMATION'!F18=\"Y\",'TRANSCRIPT INFORMATION'!P18,'TRANSCRIPT INFORMATION'!M18)","v":" "},{"$f":"IF('TRANSCRIPT INFORMATION'!F18=\"Y\",'TRANSCRIPT INFORMATION'!Q18,'TRANSCRIPT INFORMATION'!N18)","v":0},{"$f":"IF('TRANSCRIPT INFORMATION'!F18=\"Y\",IF('TRANSCRIPT INFORMATION'!O18=\"N/A\",\" \",'TRANSCRIPT INFORMATION'!O18),IF('TRANSCRIPT INFORMATION'!L18=\"N/A\",\" \",'TRANSCRIPT INFORMATION'!L18))","v":" "},null,{"$f":"+IF('Student Tracking Form'!I15=\"Y\",'TRANSCRIPT INFORMATION'!B18,)","v":0}]
[null,{"$f":"+IF('TRANSCRIPT INFORMATION'!E19=\"Y\",'TRANSCRIPT INFORMATION'!B19,'TRANSCRIPT INFORMATION'!H19)","v":0},{"$f":"+IF('TRANSCRIPT INFORMATION'!E19=\"Y\",'TRANSCRIPT INFORMATION'!C19,'TRANSCRIPT INFORMATION'!I19)","v":0},{"$f":"+IF('TRANSCRIPT INFORMATION'!E19=\"Y\",'TRANSCRIPT INFORMATION'!D19,'TRANSCRIPT INFORMATION'!J19)","v":0},{"$f":"IF('TRANSCRIPT INFORMATION'!F19=\"Y\",\"SJSU\",IF('TRANSCRIPT INFORMATION'!E19=\"Y\",\"SJSU\",'TRANSCRIPT INFORMATION'!G19))","v":0},{"$f":"IF('TRANSCRIPT INFORMATION'!F19=\"Y\",'TRANSCRIPT INFORMATION'!P19,'TRANSCRIPT INFORMATION'!M19)","v":0},{"$f":"IF('TRANSCRIPT INFORMATION'!F19=\"Y\",'TRANSCRIPT INFORMATION'!Q19,'TRANSCRIPT INFORMATION'!N19)","v":0},{"$f":"IF('TRANSCRIPT INFORMATION'!F19=\"Y\",IF('TRANSCRIPT INFORMATION'!O19=\"N/A\",\" \",'TRANSCRIPT INFORMATION'!O19),IF('TRANSCRIPT INFORMATION'!L19=\"N/A\",\" \",'TRANSCRIPT INFORMATION'!L19))","v":0},null,{"$f":"+IF('Student Tracking Form'!I16=\"Y\",'TRANSCRIPT INFORMATION'!B19,)","v":0}]
[null,{"$f":"+IF('TRANSCRIPT INFORMATION'!E20=\"Y\",'TRANSCRIPT INFORMATION'!B20,'TRANSCRIPT INFORMATION'!H20)","v":"MATH 133A"},{"$f":"+IF('TRANSCRIPT INFORMATION'!E20=\"Y\",'TRANSCRIPT INFORMATION'!C20,'TRANSCRIPT INFORMATION'!I20)","v":"ORDINARY DIFFERENTIAL EQUATIONS"},{"$f":"+IF('TRANSCRIPT INFORMATION'!E20=\"Y\",'TRANSCRIPT INFORMATION'!D20,'TRANSCRIPT INFORMATION'!J20)","v":3},{"$f":"IF('TRANSCRIPT INFORMATION'!F20=\"Y\",\"SJSU\",IF('TRANSCRIPT INFORMATION'!E20=\"Y\",\"SJSU\",'TRANSCRIPT INFORMATION'!G20))","v":"SJSU"},{"$f":"IF('TRANSCRIPT INFORMATION'!F20=\"Y\",'TRANSCRIPT INFORMATION'!P20,'TRANSCRIPT INFORMATION'!M20)","v":" "},{"$f":"IF('TRANSCRIPT INFORMATION'!F20=\"Y\",'TRANSCRIPT INFORMATION'!Q20,'TRANSCRIPT INFORMATION'!N20)","v":0},{"$f":"IF('TRANSCRIPT INFORMATION'!F20=\"Y\",IF('TRANSCRIPT INFORMATION'!O20=\"N/A\",\" \",'TRANSCRIPT INFORMATION'!O20),IF('TRANSCRIPT INFORMATION'!L20=\"N/A\",\" \",'TRANSCRIPT INFORMATION'!L20))","v":" "},null,{"$f":"+IF('Student Tracking Form'!I17=\"Y\",'TRANSCRIPT INFORMATION'!B20,)","v":0}]
[null,{"$f":"+IF('TRANSCRIPT INFORMATION'!E21=\"Y\",'TRANSCRIPT INFORMATION'!B21,'TRANSCRIPT INFORMATION'!H21)","v":0},{"$f":"+IF('TRANSCRIPT INFORMATION'!E21=\"Y\",'TRANSCRIPT INFORMATION'!C21,'TRANSCRIPT INFORMATION'!I21)","v":0},{"$f":"+IF('TRANSCRIPT INFORMATION'!E21=\"Y\",'TRANSCRIPT INFORMATION'!D21,'TRANSCRIPT INFORMATION'!J21)","v":0},{"$f":"IF('TRANSCRIPT INFORMATION'!F21=\"Y\",\"SJSU\",IF('TRANSCRIPT INFORMATION'!E21=\"Y\",\"SJSU\",'TRANSCRIPT INFORMATION'!G21))","v":0},{"$f":"IF('TRANSCRIPT INFORMATION'!F21=\"Y\",'TRANSCRIPT INFORMATION'!P21,'TRANSCRIPT INFORMATION'!M21)","v":" "},{"$f":"IF('TRANSCRIPT INFORMATION'!F21=\"Y\",'TRANSCRIPT INFORMATION'!Q21,'TRANSCRIPT INFORMATION'!N21)","v":0},{"$f":"IF('TRANSCRIPT INFORMATION'!F21=\"Y\",IF('TRANSCRIPT INFORMATION'!O21=\"N/A\",\" \",'TRANSCRIPT INFORMATION'!O21),IF('TRANSCRIPT INFORMATION'!L21=\"N/A\",\" \",'TRANSCRIPT INFORMATION'!L21))","v":" "},null,{"$f":"+IF('Student Tracking Form'!I18=\"Y\",'TRANSCRIPT INFORMATION'!B21,)","v":0}]
[null,{"$f":"+IF('TRANSCRIPT INFORMATION'!E22=\"Y\",'TRANSCRIPT INFORMATION'!B22,'TRANSCRIPT INFORMATION'!H22)","v":"CHEM 1A"},{"$f":"+IF('TRANSCRIPT INFORMATION'!E22=\"Y\",'TRANSCRIPT INFORMATION'!C22,'TRANSCRIPT INFORMATION'!I22)","v":"GENERAL CHEMISTRY"},{"$f":"+IF('TRANSCRIPT INFORMATION'!E22=\"Y\",'TRANSCRIPT INFORMATION'!D22,'TRANSCRIPT INFORMATION'!J22)","v":5},{"$f":"IF('TRANSCRIPT INFORMATION'!F22=\"Y\",\"SJSU\",IF('TRANSCRIPT INFORMATION'!E22=\"Y\",\"SJSU\",'TRANSCRIPT INFORMATION'!G22))","v":"SJSU"},{"$f":"IF('TRANSCRIPT INFORMATION'!F22=\"Y\",'TRANSCRIPT INFORMATION'!P22,'TRANSCRIPT INFORMATION'!M22)","v":" "},{"$f":"IF('TRANSCRIPT INFORMATION'!F22=\"Y\",'TRANSCRIPT INFORMATION'!Q22,'TRANSCRIPT INFORMATION'!N22)","v":0},{"$f":"IF('TRANSCRIPT INFORMATION'!F22=\"Y\",IF('TRANSCRIPT INFORMATION'!O22=\"N/A\",\" \",'TRANSCRIPT INFORMATION'!O22),IF('TRANSCRIPT INFORMATION'!L22=\"N/A\",\" \",'TRANSCRIPT INFORMATION'!L22))","v":" "},null,{"$f":"+IF('Student Tracking Form'!I19=\"Y\",'TRANSCRIPT INFORMATION'!B22,)","v":0}]
[null,{"$f":"+IF('TRANSCRIPT INFORMATION'!E23=\"Y\",'TRANSCRIPT INFORMATION'!B23,'TRANSCRIPT INFORMATION'!H23)","v":"CHEM 1B"},{"$f":"+IF('TRANSCRIPT INFORMATION'!E23=\"Y\",'TRANSCRIPT INFORMATION'!C23,'TRANSCRIPT INFORMATION'!I23)","v":"GENERAL CHEMISTRY"},{"$f":"+IF('TRANSCRIPT INFORMATION'!E23=\"Y\",'TRANSCRIPT INFORMATION'!D23,'TRANSCRIPT INFORMATION'!J23)","v":5},{"$f":"IF('TRANSCRIPT INFORMATION'!F23=\"Y\",\"SJSU\",IF('TRANSCRIPT INFORMATION'!E23=\"Y\",\"SJSU\",'TRANSCRIPT INFORMATION'!G23))","v":"SJSU"},{"$f":"IF('TRANSCRIPT INFORMATION'!F23=\"Y\",'TRANSCRIPT INFORMATION'!P23,'TRANSCRIPT INFORMATION'!M23)","v":" "},{"$f":"IF('TRANSCRIPT INFORMATION'!F23=\"Y\",'TRANSCRIPT INFORMATION'!Q23,'TRANSCRIPT INFORMATION'!N23)","v":0},{"$f":"IF('TRANSCRIPT INFORMATION'!F23=\"Y\",IF('TRANSCRIPT INFORMATION'!O23=\"N/A\",\" \",'TRANSCRIPT INFORMATION'!O23),IF('TRANSCRIPT INFORMATION'!L23=\"N/A\",\" \",'TRANSCRIPT INFORMATION'!L23))","v":" "},null,{"$f":"+IF('Student Tracking Form'!I20=\"Y\",'TRANSCRIPT INFORMATION'!B23,)","v":0}]
[null,{"$f":"+IF('TRANSCRIPT INFORMATION'!E24=\"Y\",'TRANSCRIPT INFORMATION'!B24,'TRANSCRIPT INFORMATION'!H24)","v":0},{"$f":"+IF('TRANSCRIPT INFORMATION'!E24=\"Y\",'TRANSCRIPT INFORMATION'!C24,'TRANSCRIPT INFORMATION'!I24)","v":0},{"$f":"+IF('TRANSCRIPT INFORMATION'!E24=\"Y\",'TRANSCRIPT INFORMATION'!D24,'TRANSCRIPT INFORMATION'!J24)","v":0},{"$f":"IF('TRANSCRIPT INFORMATION'!F24=\"Y\",\"SJSU\",IF('TRANSCRIPT INFORMATION'!E24=\"Y\",\"SJSU\",'TRANSCRIPT INFORMATION'!G24))","v":0},{"$f":"IF('TRANSCRIPT INFORMATION'!F24=\"Y\",'TRANSCRIPT INFORMATION'!P24,'TRANSCRIPT INFORMATION'!M24)","v":" "},{"$f":"IF('TRANSCRIPT INFORMATION'!F24=\"Y\",'TRANSCRIPT INFORMATION'!Q24,'TRANSCRIPT INFORMATION'!N24)","v":0},{"$f":"IF('TRANSCRIPT INFORMATION'!F24=\"Y\",IF('TRANSCRIPT INFORMATION'!O24=\"N/A\",\" \",'TRANSCRIPT INFORMATION'!O24),IF('TRANSCRIPT INFORMATION'!L24=\"N/A\",\" \",'TRANSCRIPT INFORMATION'!L24))","v":" "},null,{"$f":"+IF('Student Tracking Form'!I21=\"Y\",'TRANSCRIPT INFORMATION'!B24,)","v":0}]
[null,{"$f":"+IF('TRANSCRIPT INFORMATION'!E25=\"Y\",'TRANSCRIPT INFORMATION'!B25,'TRANSCRIPT INFORMATION'!H25)","v":"PHYS 50"},{"$f":"+IF('TRANSCRIPT INFORMATION'!E25=\"Y\",'TRANSCRIPT INFORMATION'!C25,'TRANSCRIPT INFORMATION'!I25)","v":"MECHANICS"},{"$f":"+IF('TRANSCRIPT INFORMATION'!E25=\"Y\",'TRANSCRIPT INFORMATION'!D25,'TRANSCRIPT INFORMATION'!J25)","v":4},{"$f":"IF('TRANSCRIPT INFORMATION'!F25=\"Y\",\"SJSU\",IF('TRANSCRIPT INFORMATION'!E25=\"Y\",\"SJSU\",'TRANSCRIPT INFORMATION'!G25))","v":"SJSU"},{"$f":"IF('TRANSCRIPT INFORMATION'!F25=\"Y\",'TRANSCRIPT INFORMATION'!P25,'TRANSCRIPT INFORMATION'!M25)","v":" "},{"$f":"IF('TRANSCRIPT INFORMATION'!F25=\"Y\",'TRANSCRIPT INFORMATION'!Q25,'TRANSCRIPT INFORMATION'!N25)","v":0},{"$f":"IF('TRANSCRIPT INFORMATION'!F25=\"Y\",IF('TRANSCRIPT INFORMATION'!O25=\"N/A\",\" \",'TRANSCRIPT INFORMATION'!O25),IF('TRANSCRIPT INFORMATION'!L25=\"N/A\",\" \",'TRANSCRIPT INFORMATION'!L25))","v":" "},null,{"$f":"+IF('Student Tracking Form'!I22=\"Y\",'TRANSCRIPT INFORMATION'!B25,)","v":0}]
[null,{"$f":"+IF('TRANSCRIPT INFORMATION'!E26=\"Y\",'TRANSCRIPT INFORMATION'!B26,'TRANSCRIPT INFORMATION'!H26)","v":"PHYS 51"},{"$f":"+IF('TRANSCRIPT INFORMATION'!E26=\"Y\",'TRANSCRIPT INFORMATION'!C26,'TRANSCRIPT INFORMATION'!I26)","v":"ELECTRICITY & MAGNETISM"},{"$f":"+IF('TRANSCRIPT INFORMATION'!E26=\"Y\",'TRANSCRIPT INFORMATION'!D26,'TRANSCRIPT INFORMATION'!J26)","v":4},{"$f":"IF('TRANSCRIPT INFORMATION'!F26=\"Y\",\"SJSU\",IF('TRANSCRIPT INFORMATION'!E26=\"Y\",\"SJSU\",'TRANSCRIPT INFORMATION'!G26))","v":"SJSU"},{"$f":"IF('TRANSCRIPT INFORMATION'!F26=\"Y\",'TRANSCRIPT INFORMATION'!P26,'TRANSCRIPT INFORMATION'!M26)","v":" "},{"$f":"IF('TRANSCRIPT INFORMATION'!F26=\"Y\",'TRANSCRIPT INFORMATION'!Q26,'TRANSCRIPT INFORMATION'!N26)","v":0},{"$f":"IF('TRANSCRIPT INFORMATION'!F26=\"Y\",IF('TRANSCRIPT INFORMATION'!O26=\"N/A\",\" \",'TRANSCRIPT INFORMATION'!O26),IF('TRANSCRIPT INFORMATION'!L26=\"N/A\",\" \",'TRANSCRIPT INFORMATION'!L26))","v":" "},null,{"$f":"+IF('Student Tracking Form'!I23=\"Y\",'TRANSCRIPT INFORMATION'!B26,)","v":0}]
[null,{"$f":"+IF('TRANSCRIPT INFORMATION'!E27=\"Y\",'TRANSCRIPT INFORMATION'!B27,'TRANSCRIPT INFORMATION'!H27)","v":0},{"$f":"+IF('TRANSCRIPT INFORMATION'!E27=\"Y\",'TRANSCRIPT INFORMATION'!C27,'TRANSCRIPT INFORMATION'!I27)","v":0},{"$f":"+IF('TRANSCRIPT INFORMATION'!E27=\"Y\",'TRANSCRIPT INFORMATION'!D27,'TRANSCRIPT INFORMATION'!J27)","v":0},{"$f":"IF('TRANSCRIPT INFORMATION'!F27=\"Y\",\"SJSU\",IF('TRANSCRIPT INFORMATION'!E27=\"Y\",\"SJSU\",'TRANSCRIPT INFORMATION'!G27))","v":0},{"$f":"IF('TRANSCRIPT INFORMATION'!F27=\"Y\",'TRANSCRIPT INFORMATION'!P27,'TRANSCRIPT INFORMATION'!M27)","v":" "},{"$f":"IF('TRANSCRIPT INFORMATION'!F27=\"Y\",'TRANSCRIPT INFORMATION'!Q27,'TRANSCRIPT INFORMATION'!N27)","v":0},{"$f":"IF('TRANSCRIPT INFORMATION'!F27=\"Y\",IF('TRANSCRIPT INFORMATION'!O27=\"N/A\",\" \",'TRANSCRIPT INFORMATION'!O27),IF('TRANSCRIPT INFORMATION'!L27=\"N/A\",\" \",'TRANSCRIPT INFORMATION'!L27))","v":" "},null,{"$f":"+IF('Student Tracking Form'!I24=\"Y\",'TRANSCRIPT INFORMATION'!B27,)","v":0}]
[null,{"$f":"+IF('TRANSCRIPT INFORMATION'!E28=\"Y\",'TRANSCRIPT INFORMATION'!B28,'TRANSCRIPT INFORMATION'!H28)","v":"ENGL 1B"},{"$f":"+IF('TRANSCRIPT INFORMATION'!E28=\"Y\",'TRANSCRIPT INFORMATION'!C28,'TRANSCRIPT INFORMATION'!I28)","v":"ARGUMENT & ANALYSIS"},{"$f":"+IF('TRANSCRIPT INFORMATION'!E28=\"Y\",'TRANSCRIPT INFORMATION'!D28,'TRANSCRIPT INFORMATION'!J28)","v":3},{"$f":"IF('TRANSCRIPT INFORMATION'!F28=\"Y\",\"SJSU\",IF('TRANSCRIPT INFORMATION'!E28=\"Y\",\"SJSU\",'TRANSCRIPT INFORMATION'!G28))","v":"SJSU"},{"$f":"IF('TRANSCRIPT INFORMATION'!F28=\"Y\",'TRANSCRIPT INFORMATION'!P28,'TRANSCRIPT INFORMATION'!M28)","v":" "},{"$f":"IF('TRANSCRIPT INFORMATION'!F28=\"Y\",'TRANSCRIPT INFORMATION'!Q28,'TRANSCRIPT INFORMATION'!N28)","v":0},{"$f":"IF('TRANSCRIPT INFORMATION'!F28=\"Y\",IF('TRANSCRIPT INFORMATION'!O28=\"N/A\",\" \",'TRANSCRIPT INFORMATION'!O28),IF('TRANSCRIPT INFORMATION'!L28=\"N/A\",\" \",'TRANSCRIPT INFORMATION'!L28))","v":" "},null,{"$f":"+IF('Student Tracking Form'!I25=\"Y\",'TRANSCRIPT INFORMATION'!B28,)","v":0}]
[null,"LOWER DIVISION ENGINEERING CORE"]
[null,{"$f":"+IF('TRANSCRIPT INFORMATION'!E30=\"Y\",'TRANSCRIPT INFORMATION'!B30,'TRANSCRIPT INFORMATION'!H30)","v":"ENGR 10"},{"$f":"+IF('TRANSCRIPT INFORMATION'!E30=\"Y\",'TRANSCRIPT INFORMATION'!C30,'TRANSCRIPT INFORMATION'!I30)","v":"INTRODUCTION TO ENGINEERING"},{"$f":"+IF('TRANSCRIPT INFORMATION'!E30=\"Y\",'TRANSCRIPT INFORMATION'!D30,'TRANSCRIPT INFORMATION'!J30)","v":3},{"$f":"IF('TRANSCRIPT INFORMATION'!F30=\"Y\",\"SJSU\",IF('TRANSCRIPT INFORMATION'!E30=\"Y\",\"SJSU\",'TRANSCRIPT INFORMATION'!G30))","v":"SJSU"},{"$f":"IF('TRANSCRIPT INFORMATION'!F30=\"Y\",'TRANSCRIPT INFORMATION'!P30,'TRANSCRIPT INFORMATION'!M30)","v":0},{"$f":"IF('TRANSCRIPT INFORMATION'!F30=\"Y\",'TRANSCRIPT INFORMATION'!Q30,'TRANSCRIPT INFORMATION'!N30)","v":0},{"$f":"IF('TRANSCRIPT INFORMATION'!F30=\"Y\",IF('TRANSCRIPT INFORMATION'!O30=\"N/A\",\" \",'TRANSCRIPT INFORMATION'!O30),IF('TRANSCRIPT INFORMATION'!L30=\"N/A\",\" \",'TRANSCRIPT INFORMATION'!L30))","v":" "},null,{"$f":"+IF('Student Tracking Form'!I27=\"Y\",'TRANSCRIPT INFORMATION'!B30,)","v":0}]
[null,{"$f":"+IF('TRANSCRIPT INFORMATION'!E31=\"Y\",'TRANSCRIPT INFORMATION'!B31,'TRANSCRIPT INFORMATION'!H31)","v":"MATE 25"},{"$f":"+IF('TRANSCRIPT INFORMATION'!E31=\"Y\",'TRANSCRIPT INFORMATION'!C31,'TRANSCRIPT INFORMATION'!I31)","v":"INTRODUCTION TO MATERIALS"},{"$f":"+IF('TRANSCRIPT INFORMATION'!E31=\"Y\",'TRANSCRIPT INFORMATION'!D31,'TRANSCRIPT INFORMATION'!J31)","v":3},{"$f":"IF('TRANSCRIPT INFORMATION'!F31=\"Y\",\"SJSU\",IF('TRANSCRIPT INFORMATION'!E31=\"Y\",\"SJSU\",'TRANSCRIPT INFORMATION'!G31))","v":"SJSU"},{"$f":"IF('TRANSCRIPT INFORMATION'!F31=\"Y\",'TRANSCRIPT INFORMATION'!P31,'TRANSCRIPT INFORMATION'!M31)","v":0},{"$f":"IF('TRANSCRIPT INFORMATION'!F31=\"Y\",'TRANSCRIPT INFORMATION'!Q31,'TRANSCRIPT INFORMATION'!N31)","v":0},{"$f":"IF('TRANSCRIPT INFORMATION'!F31=\"Y\",IF('TRANSCRIPT INFORMATION'!O31=\"N/A\",\" \",'TRANSCRIPT INFORMATION'!O31),IF('TRANSCRIPT INFORMATION'!L31=\"N/A\",\" \",'TRANSCRIPT INFORMATION'!L31))","v":" "},null,{"$f":"+IF('Student Tracking Form'!I28=\"Y\",'TRANSCRIPT INFORMATION'!B31,)","v":0}]
[null,{"$f":"+IF('TRANSCRIPT INFORMATION'!E32=\"Y\",'TRANSCRIPT INFORMATION'!B32,'TRANSCRIPT INFORMATION'!H32)","v":"CE 99"},{"$f":"+IF('TRANSCRIPT INFORMATION'!E32=\"Y\",'TRANSCRIPT INFORMATION'!C32,'TRANSCRIPT INFORMATION'!I32)","v":"STATICS"},{"$f":"+IF('TRANSCRIPT INFORMATION'!E32=\"Y\",'TRANSCRIPT INFORMATION'!D32,'TRANSCRIPT INFORMATION'!J32)","v":2},{"$f":"IF('TRANSCRIPT INFORMATION'!F32=\"Y\",\"SJSU\",IF('TRANSCRIPT INFORMATION'!E32=\"Y\",\"SJSU\",'TRANSCRIPT INFORMATION'!G32))","v":"SJSU"},{"$f":"IF('TRANSCRIPT INFORMATION'!F32=\"Y\",'TRANSCRIPT INFORMATION'!P32,'TRANSCRIPT INFORMATION'!M32)","v":0},{"$f":"IF('TRANSCRIPT INFORMATION'!F32=\"Y\",'TRANSCRIPT INFORMATION'!Q32,'TRANSCRIPT INFORMATION'!N32)","v":0},{"$f":"IF('TRANSCRIPT INFORMATION'!F32=\"Y\",IF('TRANSCRIPT INFORMATION'!O32=\"N/A\",\" \",'TRANSCRIPT INFORMATION'!O32),IF('TRANSCRIPT INFORMATION'!L32=\"N/A\",\" \",'TRANSCRIPT INFORMATION'!L32))","v":" "},null,{"$f":"+IF('Student Tracking Form'!I29=\"Y\",'TRANSCRIPT INFORMATION'!B32,)","v":0}]
[null,{"$f":"+IF('TRANSCRIPT INFORMATION'!E33=\"Y\",'TRANSCRIPT INFORMATION'!B33,'TRANSCRIPT INFORMATION'!H33)","v":"EE 98"},{"$f":"+IF('TRANSCRIPT INFORMATION'!E33=\"Y\",'TRANSCRIPT INFORMATION'!C33,'TRANSCRIPT INFORMATION'!I33)","v":"INTRODUCTION TO CIRCUIT ANALYSIS"},{"$f":"+IF('TRANSCRIPT INFORMATION'!E33=\"Y\",'TRANSCRIPT INFORMATION'!D33,'TRANSCRIPT INFORMATION'!J33)","v":3},{"$f":"IF('TRANSCRIPT INFORMATION'!F33=\"Y\",\"SJSU\",IF('TRANSCRIPT INFORMATION'!E33=\"Y\",\"SJSU\",'TRANSCRIPT INFORMATION'!G33))","v":"SJSU"},{"$f":"IF('TRANSCRIPT INFORMATION'!F33=\"Y\",'TRANSCRIPT INFORMATION'!P33,'TRANSCRIPT INFORMATION'!M33)","v":0},{"$f":"IF('TRANSCRIPT INFORMATION'!F33=\"Y\",'TRANSCRIPT INFORMATION'!Q33,'TRANSCRIPT INFORMATION'!N33)","v":0},{"$f":"IF('TRANSCRIPT INFORMATION'!F33=\"Y\",IF('TRANSCRIPT INFORMATION'!O33=\"N/A\",\" \",'TRANSCRIPT INFORMATION'!O33),IF('TRANSCRIPT INFORMATION'!L33=\"N/A\",\" \",'TRANSCRIPT INFORMATION'!L33))","v":" "},null,{"$f":"+IF('Student Tracking Form'!I30=\"Y\",'TRANSCRIPT INFORMATION'!B33,)","v":0}]
[null,{"$f":"+IF('TRANSCRIPT INFORMATION'!E34=\"Y\",'TRANSCRIPT INFORMATION'!B34,'TRANSCRIPT INFORMATION'!H34)","v":"ME 20"},{"$f":"+IF('TRANSCRIPT INFORMATION'!E34=\"Y\",'TRANSCRIPT INFORMATION'!C34,'TRANSCRIPT INFORMATION'!I34)","v":"DESIGN AND GRAPHICS"},{"$f":"+IF('TRANSCRIPT INFORMATION'!E34=\"Y\",'TRANSCRIPT INFORMATION'!D34,'TRANSCRIPT INFORMATION'!J34)","v":2},{"$f":"IF('TRANSCRIPT INFORMATION'!F34=\"Y\",\"SJSU\",IF('TRANSCRIPT INFORMATION'!E34=\"Y\",\"SJSU\",'TRANSCRIPT INFORMATION'!G34))","v":"SJSU"},{"$f":"IF('TRANSCRIPT INFORMATION'!F34=\"Y\",'TRANSCRIPT INFORMATION'!P34,'TRANSCRIPT INFORMATION'!M34)","v":0},{"$f":"IF('TRANSCRIPT INFORMATION'!F34=\"Y\",'TRANSCRIPT INFORMATION'!Q34,'TRANSCRIPT INFORMATION'!N34)","v":0},{"$f":"IF('TRANSCRIPT INFORMATION'!F34=\"Y\",IF('TRANSCRIPT INFORMATION'!O34=\"N/A\",\" \",'TRANSCRIPT INFORMATION'!O34),IF('TRANSCRIPT INFORMATION'!L34=\"N/A\",\" \",'TRANSCRIPT INFORMATION'!L34))","v":0},null,{"$f":"+IF('Student Tracking Form'!I31=\"Y\",'TRANSCRIPT INFORMATION'!B34,)","v":0}]
[null,{"$f":"+IF('TRANSCRIPT INFORMATION'!E35=\"Y\",'TRANSCRIPT INFORMATION'!B35,'TRANSCRIPT INFORMATION'!H35)","v":0},{"$f":"+IF('TRANSCRIPT INFORMATION'!E35=\"Y\",'TRANSCRIPT INFORMATION'!C35,'TRANSCRIPT INFORMATION'!I35)","v":0},{"$f":"+IF('TRANSCRIPT INFORMATION'!E35=\"Y\",'TRANSCRIPT INFORMATION'!D35,'TRANSCRIPT INFORMATION'!J35)","v":0},{"$f":"IF('TRANSCRIPT INFORMATION'!F35=\"Y\",\"SJSU\",IF('TRANSCRIPT INFORMATION'!E35=\"Y\",\"SJSU\",'TRANSCRIPT INFORMATION'!G35))","v":0},{"$f":"IF('TRANSCRIPT INFORMATION'!F35=\"Y\",'TRANSCRIPT INFORMATION'!P35,'TRANSCRIPT INFORMATION'!M35)","v":0},{"$f":"IF('TRANSCRIPT INFORMATION'!F35=\"Y\",'TRANSCRIPT INFORMATION'!Q35,'TRANSCRIPT INFORMATION'!N35)","v":0},{"$f":"IF('TRANSCRIPT INFORMATION'!F35=\"Y\",IF('TRANSCRIPT INFORMATION'!O35=\"N/A\",\" \",'TRANSCRIPT INFORMATION'!O35),IF('TRANSCRIPT INFORMATION'!L35=\"N/A\",\" \",'TRANSCRIPT INFORMATION'!L35))","v":0},null,{"$f":"+IF('Student Tracking Form'!I32=\"Y\",'TRANSCRIPT INFORMATION'!B35,)","v":0}]
[null,{"$f":"+IF('TRANSCRIPT INFORMATION'!E40=\"Y\",'TRANSCRIPT INFORMATION'!B40,'TRANSCRIPT INFORMATION'!H40)","v":"CHEM 112A"},{"$f":"+IF('TRANSCRIPT INFORMATION'!E40=\"Y\",'TRANSCRIPT INFORMATION'!C40,'TRANSCRIPT INFORMATION'!I40)","v":"ORGANIC CHEMISTRY"},{"$f":"+IF('TRANSCRIPT INFORMATION'!E40=\"Y\",'TRANSCRIPT INFORMATION'!D40,'TRANSCRIPT INFORMATION'!J40)","v":3},{"$f":"IF('TRANSCRIPT INFORMATION'!F40=\"Y\",\"SJSU\",IF('TRANSCRIPT INFORMATION'!E40=\"Y\",\"SJSU\",'TRANSCRIPT INFORMATION'!G40))","v":"SJSU"},{"$f":"IF('TRANSCRIPT INFORMATION'!F40=\"Y\",'TRANSCRIPT INFORMATION'!P40,'TRANSCRIPT INFORMATION'!M40)","v":0},{"$f":"IF('TRANSCRIPT INFORMATION'!F40=\"Y\",'TRANSCRIPT INFORMATION'!Q40,'TRANSCRIPT INFORMATION'!N40)","v":0},{"$f":"IF('TRANSCRIPT INFORMATION'!F40=\"Y\",IF('TRANSCRIPT INFORMATION'!O40=\"N/A\",\" \",'TRANSCRIPT INFORMATION'!O40),IF('TRANSCRIPT INFORMATION'!L40=\"N/A\",\" \",'TRANSCRIPT INFORMATION'!L40))","v":" "},null,{"$f":"+IF('Student Tracking Form'!I33=\"Y\",'TRANSCRIPT INFORMATION'!B40,)","v":0}]
[null,"UPPER DIVISION ENGINEERING CORE"]
[null,{"$f":"+IF('TRANSCRIPT INFORMATION'!E42=\"Y\",'TRANSCRIPT INFORMATION'!B42,'TRANSCRIPT INFORMATION'!H42)","v":"BME 115"},{"$f":"+IF('TRANSCRIPT INFORMATION'!E42=\"Y\",'TRANSCRIPT INFORMATION'!C42,'TRANSCRIPT INFORMATION'!I42)","v":"INTRO TO BIOMEDICAL ENGR"},{"$f":"+IF('TRANSCRIPT INFORMATION'!E42=\"Y\",'TRANSCRIPT INFORMATION'!D42,'TRANSCRIPT INFORMATION'!J42)","v":4},{"$f":"IF('TRANSCRIPT INFORMATION'!F42=\"Y\",\"SJSU\",IF('TRANSCRIPT INFORMATION'!E42=\"Y\",\"SJSU\",'TRANSCRIPT INFORMATION'!G42))","v":"SJSU"},{"$f":"IF('TRANSCRIPT INFORMATION'!F42=\"Y\",'TRANSCRIPT INFORMATION'!P42,'TRANSCRIPT INFORMATION'!M42)","v":0},{"$f":"IF('TRANSCRIPT INFORMATION'!F42=\"Y\",'TRANSCRIPT INFORMATION'!Q42,'TRANSCRIPT INFORMATION'!N42)","v":0},{"$f":"IF('TRANSCRIPT INFORMATION'!F42=\"Y\",IF('TRANSCRIPT INFORMATION'!O42=\"N/A\",\" \",'TRANSCRIPT INFORMATION'!O42),IF('TRANSCRIPT INFORMATION'!L42=\"N/A\",\" \",'TRANSCRIPT INFORMATION'!L42))","v":" "},null,{"$f":"+IF('Student Tracking Form'!I35=\"Y\",'TRANSCRIPT INFORMATION'!B42,)","v":0}]
[null,{"$f":"+IF('TRANSCRIPT INFORMATION'!E43=\"Y\",'TRANSCRIPT INFORMATION'!B43,'TRANSCRIPT INFORMATION'!H43)","v":"BME 117"},{"$f":"+IF('TRANSCRIPT INFORMATION'!E43=\"Y\",'TRANSCRIPT INFORMATION'!C43,'TRANSCRIPT INFORMATION'!I43)","v":"BIOTRANSPORT PHENOMENA"},{"$f":"+IF('TRANSCRIPT INFORMATION'!E43=\"Y\",'TRANSCRIPT INFORMATION'!D43,'TRANSCRIPT INFORMATION'!J43)","v":3},{"$f":"IF('TRANSCRIPT INFORMATION'!F43=\"Y\",\"SJSU\",IF('TRANSCRIPT INFORMATION'!E43=\"Y\",\"SJSU\",'TRANSCRIPT INFORMATION'!G43))","v":"SJSU"},{"$f":"IF('TRANSCRIPT INFORMATION'!F43=\"Y\",'TRANSCRIPT INFORMATION'!P43,'TRANSCRIPT INFORMATION'!M43)","v":0},{"$f":"IF('TRANSCRIPT INFORMATION'!F43=\"Y\",'TRANSCRIPT INFORMATION'!Q43,'TRANSCRIPT INFORMATION'!N43)","v":0},{"$f":"IF('TRANSCRIPT INFORMATION'!F43=\"Y\",IF('TRANSCRIPT INFORMATION'!O43=\"N/A\",\" \",'TRANSCRIPT INFORMATION'!O43),IF('TRANSCRIPT INFORMATION'!L43=\"N/A\",\" \",'TRANSCRIPT INFORMATION'!L43))","v":" "},null,{"$f":"+IF('Student Tracking Form'!I36=\"Y\",'TRANSCRIPT INFORMATION'!B43,)","v":0}]
[null,{"$f":"+IF('TRANSCRIPT INFORMATION'!E44=\"Y\",'TRANSCRIPT INFORMATION'!B44,'TRANSCRIPT INFORMATION'!H44)","v":"BME 177"},{"$f":"+IF('TRANSCRIPT INFORMATION'!E44=\"Y\",'TRANSCRIPT INFORMATION'!C44,'TRANSCRIPT INFORMATION'!I44)","v":"PHYSIOLOGY FOR ENGINEERS"},{"$f":"+IF('TRANSCRIPT INFORMATION'!E44=\"Y\",'TRANSCRIPT INFORMATION'!D44,'TRANSCRIPT INFORMATION'!J44)","v":3},{"$f":"IF('TRANSCRIPT INFORMATION'!F44=\"Y\",\"SJSU\",IF('TRANSCRIPT INFORMATION'!E44=\"Y\",\"SJSU\",'TRANSCRIPT INFORMATION'!G44))","v":"SJSU"},{"$f":"IF('TRANSCRIPT INFORMATION'!F44=\"Y\",'TRANSCRIPT INFORMATION'!P44,'TRANSCRIPT INFORMATION'!M44)","v":0},{"$f":"IF('TRANSCRIPT INFORMATION'!F44=\"Y\",'TRANSCRIPT INFORMATION'!Q44,'TRANSCRIPT INFORMATION'!N44)","v":0},{"$f":"IF('TRANSCRIPT INFORMATION'!F44=\"Y\",IF('TRANSCRIPT INFORMATION'!O44=\"N/A\",\" \",'TRANSCRIPT INFORMATION'!O44),IF('TRANSCRIPT INFORMATION'!L44=\"N/A\",\" \",'TRANSCRIPT INFORMATION'!L44))","v":" "},null,{"$f":"+IF('Student Tracking Form'!I37=\"Y\",'TRANSCRIPT INFORMATION'!B44,)","v":0}]
[null,{"$f":"+IF('TRANSCRIPT INFORMATION'!E45=\"Y\",'TRANSCRIPT INFORMATION'!B45,'TRANSCRIPT INFORMATION'!H45)","v":"CHE 162"},{"$f":"+IF('TRANSCRIPT INFORMATION'!E45=\"Y\",'TRANSCRIPT INFORMATION'!C45,'TRANSCRIPT INFORMATION'!I45)","v":"ENGINEERING STATISTICS"},{"$f":"+IF('TRANSCRIPT INFORMATION'!E45=\"Y\",'TRANSCRIPT INFORMATION'!D45,'TRANSCRIPT INFORMATION'!J45)","v":3},{"$f":"IF('TRANSCRIPT INFORMATION'!F45=\"Y\",\"SJSU\",IF('TRANSCRIPT INFORMATION'!E45=\"Y\",\"SJSU\",'TRANSCRIPT INFORMATION'!G45))","v":"SJSU"},{"$f":"IF('TRANSCRIPT INFORMATION'!F45=\"Y\",'TRANSCRIPT INFORMATION'!P45,'TRANSCRIPT INFORMATION'!M45)","v":0},{"$f":"IF('TRANSCRIPT INFORMATION'!F45=\"Y\",'TRANSCRIPT INFORMATION'!Q45,'TRANSCRIPT INFORMATION'!N45)","v":0},{"$f":"IF('TRANSCRIPT INFORMATION'!F45=\"Y\",IF('TRANSCRIPT INFORMATION'!O45=\"N/A\",\" \",'TRANSCRIPT INFORMATION'!O45),IF('TRANSCRIPT INFORMATION'!L45=\"N/A\",\" \",'TRANSCRIPT INFORMATION'!L45))","v":" "},null,{"$f":"+IF('Student Tracking Form'!I38=\"Y\",'TRANSCRIPT INFORMATION'!B45,)","v":0}]
[null,{"$f":"+IF('TRANSCRIPT INFORMATION'!E46=\"Y\",'TRANSCRIPT INFORMATION'!B46,'TRANSCRIPT INFORMATION'!H46)","v":"ENGR 100W"},{"$f":"+IF('TRANSCRIPT INFORMATION'!E46=\"Y\",'TRANSCRIPT INFORMATION'!C46,'TRANSCRIPT INFORMATION'!I46)","v":"ENGINEERING REPORTS"},{"$f":"+IF('TRANSCRIPT INFORMATION'!E46=\"Y\",'TRANSCRIPT INFORMATION'!D46,'TRANSCRIPT INFORMATION'!J46)","v":3},{"$f":"IF('TRANSCRIPT INFORMATION'!F46=\"Y\",\"SJSU\",IF('TRANSCRIPT INFORMATION'!E46=\"Y\",\"SJSU\",'TRANSCRIPT INFORMATION'!G46))","v":"SJSU"},{"$f":"IF('TRANSCRIPT INFORMATION'!F46=\"Y\",'TRANSCRIPT INFORMATION'!P46,'TRANSCRIPT INFORMATION'!M46)","v":0},{"$f":"IF('TRANSCRIPT INFORMATION'!F46=\"Y\",'TRANSCRIPT INFORMATION'!Q46,'TRANSCRIPT INFORMATION'!N46)","v":0},{"$f":"IF('TRANSCRIPT INFORMATION'!F46=\"Y\",IF('TRANSCRIPT INFORMATION'!O46=\"N/A\",\" \",'TRANSCRIPT INFORMATION'!O46),IF('TRANSCRIPT INFORMATION'!L46=\"N/A\",\" \",'TRANSCRIPT INFORMATION'!L46))","v":" "},null,{"$f":"+IF('Student Tracking Form'!I39=\"Y\",'TRANSCRIPT INFORMATION'!B46,)","v":0}]
[null,{"$f":"+IF('TRANSCRIPT INFORMATION'!E47=\"Y\",'TRANSCRIPT INFORMATION'!B47,'TRANSCRIPT INFORMATION'!H47)","v":"BME 173"},{"$f":"+IF('TRANSCRIPT INFORMATION'!E47=\"Y\",'TRANSCRIPT INFORMATION'!C47,'TRANSCRIPT INFORMATION'!I47)","v":"CLINICAL TRIALS"},{"$f":"+IF('TRANSCRIPT INFORMATION'!E47=\"Y\",'TRANSCRIPT INFORMATION'!D47,'TRANSCRIPT INFORMATION'!J47)","v":3},{"$f":"IF('TRANSCRIPT INFORMATION'!F47=\"Y\",\"SJSU\",IF('TRANSCRIPT INFORMATION'!E47=\"Y\",\"SJSU\",'TRANSCRIPT INFORMATION'!G47))","v":"SJSU"},{"$f":"IF('TRANSCRIPT INFORMATION'!F47=\"Y\",'TRANSCRIPT INFORMATION'!P47,'TRANSCRIPT INFORMATION'!M47)","v":0},{"$f":"IF('TRANSCRIPT INFORMATION'!F47=\"Y\",'TRANSCRIPT INFORMATION'!Q47,'TRANSCRIPT INFORMATION'!N47)","v":0},{"$f":"IF('TRANSCRIPT INFORMATION'!F47=\"Y\",IF('TRANSCRIPT INFORMATION'!O47=\"N/A\",\" \",'TRANSCRIPT INFORMATION'!O47),IF('TRANSCRIPT INFORMATION'!L47=\"N/A\",\" \",'TRANSCRIPT INFORMATION'!L47))","v":" "},null,{"$f":"+IF('Student Tracking Form'!I40=\"Y\",'TRANSCRIPT INFORMATION'!B47,)","v":0}]
[null,{"$f":"+IF('TRANSCRIPT INFORMATION'!E48=\"Y\",'TRANSCRIPT INFORMATION'!B48,'TRANSCRIPT INFORMATION'!H48)","v":"BME 174"},{"$f":"+IF('TRANSCRIPT INFORMATION'!E48=\"Y\",'TRANSCRIPT INFORMATION'!C48,'TRANSCRIPT INFORMATION'!I48)","v":"REGULATORY AND DESIGN REQ."},{"$f":"+IF('TRANSCRIPT INFORMATION'!E48=\"Y\",'TRANSCRIPT INFORMATION'!D48,'TRANSCRIPT INFORMATION'!J48)","v":3},{"$f":"IF('TRANSCRIPT INFORMATION'!F48=\"Y\",\"SJSU\",IF('TRANSCRIPT INFORMATION'!E48=\"Y\",\"SJSU\",'TRANSCRIPT INFORMATION'!G48))","v":"SJSU"},{"$f":"IF('TRANSCRIPT INFORMATION'!F48=\"Y\",'TRANSCRIPT INFORMATION'!P48,'TRANSCRIPT INFORMATION'!M48)","v":0},{"$f":"IF('TRANSCRIPT INFORMATION'!F48=\"Y\",'TRANSCRIPT INFORMATION'!Q48,'TRANSCRIPT INFORMATION'!N48)","v":0},{"$f":"IF('TRANSCRIPT INFORMATION'!F48=\"Y\",IF('TRANSCRIPT INFORMATION'!O48=\"N/A\",\" \",'TRANSCRIPT INFORMATION'!O48),IF('TRANSCRIPT INFORMATION'!L48=\"N/A\",\" \",'TRANSCRIPT INFORMATION'!L48))","v":" "},null,{"$f":"+IF('Student Tracking Form'!I41=\"Y\",'TRANSCRIPT INFORMATION'!B48,)","v":0}]
[null,{"$f":"+IF('TRANSCRIPT INFORMATION'!E49=\"Y\",'TRANSCRIPT INFORMATION'!B49,'TRANSCRIPT INFORMATION'!H49)","v":"BME 198A"},{"$f":"+IF('TRANSCRIPT INFORMATION'!E49=\"Y\",'TRANSCRIPT INFORMATION'!C49,'TRANSCRIPT INFORMATION'!I49)","v":"SR. PROJECT 1"},{"$f":"+IF('TRANSCRIPT INFORMATION'!E49=\"Y\",'TRANSCRIPT INFORMATION'!D49,'TRANSCRIPT INFORMATION'!J49)","v":2},{"$f":"IF('TRANSCRIPT INFORMATION'!F49=\"Y\",\"SJSU\",IF('TRANSCRIPT INFORMATION'!E49=\"Y\",\"SJSU\",'TRANSCRIPT INFORMATION'!G49))","v":"SJSU"},{"$f":"IF('TRANSCRIPT INFORMATION'!F49=\"Y\",'TRANSCRIPT INFORMATION'!P49,'TRANSCRIPT INFORMATION'!M49)","v":0},{"$f":"IF('TRANSCRIPT INFORMATION'!F49=\"Y\",'TRANSCRIPT INFORMATION'!Q49,'TRANSCRIPT INFORMATION'!N49)","v":0},{"$f":"IF('TRANSCRIPT INFORMATION'!F49=\"Y\",IF('TRANSCRIPT INFORMATION'!O49=\"N/A\",\" \",'TRANSCRIPT INFORMATION'!O49),IF('TRANSCRIPT INFORMATION'!L49=\"N/A\",\" \",'TRANSCRIPT INFORMATION'!L49))","v":" "},null,{"$f":"+IF('Student Tracking Form'!I42=\"Y\",'TRANSCRIPT INFORMATION'!B49,)","v":0}]
[null,{"$f":"+IF('TRANSCRIPT INFORMATION'!E50=\"Y\",'TRANSCRIPT INFORMATION'!B50,'TRANSCRIPT INFORMATION'!H50)","v":"BME 198B"},{"$f":"+IF('TRANSCRIPT INFORMATION'!E50=\"Y\",'TRANSCRIPT INFORMATION'!C50,'TRANSCRIPT INFORMATION'!I50)","v":"SR. PROJECT 2"},{"$f":"+IF('TRANSCRIPT INFORMATION'!E50=\"Y\",'TRANSCRIPT INFORMATION'!D50,'TRANSCRIPT INFORMATION'!J50)","v":2},{"$f":"IF('TRANSCRIPT INFORMATION'!F50=\"Y\",\"SJSU\",IF('TRANSCRIPT INFORMATION'!E50=\"Y\",\"SJSU\",'TRANSCRIPT INFORMATION'!G50))","v":"SJSU"},{"$f":"IF('TRANSCRIPT INFORMATION'!F50=\"Y\",'TRANSCRIPT INFORMATION'!P50,'TRANSCRIPT INFORMATION'!M50)","v":0},{"$f":"IF('TRANSCRIPT INFORMATION'!F50=\"Y\",'TRANSCRIPT INFORMATION'!Q50,'TRANSCRIPT INFORMATION'!N50)","v":0},{"$f":"IF('TRANSCRIPT INFORMATION'!F50=\"Y\",IF('TRANSCRIPT INFORMATION'!O50=\"N/A\",\" \",'TRANSCRIPT INFORMATION'!O50),IF('TRANSCRIPT INFORMATION'!L50=\"N/A\",\" \",'TRANSCRIPT INFORMATION'!L50))","v":" "},null,{"$f":"+IF('Student Tracking Form'!I43=\"Y\",'TRANSCRIPT INFORMATION'!B50,)","v":0}]
[null,{"$f":"+IF('TRANSCRIPT INFORMATION'!E51=\"Y\",'TRANSCRIPT INFORMATION'!B51,'TRANSCRIPT INFORMATION'!H51)","v":0},{"$f":"+IF('TRANSCRIPT INFORMATION'!E51=\"Y\",'TRANSCRIPT INFORMATION'!C51,'TRANSCRIPT INFORMATION'!I51)","v":0},{"$f":"+IF('TRANSCRIPT INFORMATION'!E51=\"Y\",'TRANSCRIPT INFORMATION'!D51,'TRANSCRIPT INFORMATION'!J51)","v":0},{"$f":"IF('TRANSCRIPT INFORMATION'!F51=\"Y\",\"SJSU\",IF('TRANSCRIPT INFORMATION'!E51=\"Y\",\"SJSU\",'TRANSCRIPT INFORMATION'!G51))","v":0},{"$f":"IF('TRANSCRIPT INFORMATION'!F51=\"Y\",'TRANSCRIPT INFORMATION'!P51,'TRANSCRIPT INFORMATION'!M51)","v":0},{"$f":"IF('TRANSCRIPT INFORMATION'!F51=\"Y\",'TRANSCRIPT INFORMATION'!Q51,'TRANSCRIPT INFORMATION'!N51)","v":0},{"$f":"IF('TRANSCRIPT INFORMATION'!F51=\"Y\",IF('TRANSCRIPT INFORMATION'!O51=\"N/A\",\" \",'TRANSCRIPT INFORMATION'!O51),IF('TRANSCRIPT INFORMATION'!L51=\"N/A\",\" \",'TRANSCRIPT INFORMATION'!L51))","v":" "},null,{"$f":"+IF('Student Tracking Form'!I44=\"Y\",'TRANSCRIPT INFORMATION'!B51,)","v":0}]
[null,{"$f":"+IF('TRANSCRIPT INFORMATION'!E52=\"Y\",'TRANSCRIPT INFORMATION'!B52,'TRANSCRIPT INFORMATION'!H52)","v":"ENGR 195A"},{"$f":"+IF('TRANSCRIPT INFORMATION'!E52=\"Y\",'TRANSCRIPT INFORMATION'!C52,'TRANSCRIPT INFORMATION'!I52)","v":"GLOBAL/SOCIAL ISSUES 1"},{"$f":"+IF('TRANSCRIPT INFORMATION'!E52=\"Y\",'TRANSCRIPT INFORMATION'!D52,'TRANSCRIPT INFORMATION'!J52)","v":1},{"$f":"IF('TRANSCRIPT INFORMATION'!F52=\"Y\",\"SJSU\",IF('TRANSCRIPT INFORMATION'!E52=\"Y\",\"SJSU\",'TRANSCRIPT INFORMATION'!G52))","v":"SJSU"},{"$f":"IF('TRANSCRIPT INFORMATION'!F52=\"Y\",'TRANSCRIPT INFORMATION'!P52,'TRANSCRIPT INFORMATION'!M52)","v":0},{"$f":"IF('TRANSCRIPT INFORMATION'!F52=\"Y\",'TRANSCRIPT INFORMATION'!Q52,'TRANSCRIPT INFORMATION'!N52)","v":0},{"$f":"IF('TRANSCRIPT INFORMATION'!F52=\"Y\",IF('TRANSCRIPT INFORMATION'!O52=\"N/A\",\" \",'TRANSCRIPT INFORMATION'!O52),IF('TRANSCRIPT INFORMATION'!L52=\"N/A\",\" \",'TRANSCRIPT INFORMATION'!L52))","v":" "},null,{"$f":"+IF('Student Tracking Form'!I45=\"Y\",'TRANSCRIPT INFORMATION'!B52,)","v":0}]
[null,{"$f":"+IF('TRANSCRIPT INFORMATION'!E53=\"Y\",'TRANSCRIPT INFORMATION'!B53,'TRANSCRIPT INFORMATION'!H53)","v":"ENGR 195B"},{"$f":"+IF('TRANSCRIPT INFORMATION'!E53=\"Y\",'TRANSCRIPT INFORMATION'!C53,'TRANSCRIPT INFORMATION'!I53)","v":"GLOBAL/SOCIAL ISSUES 2"},{"$f":"+IF('TRANSCRIPT INFORMATION'!E53=\"Y\",'TRANSCRIPT INFORMATION'!D53,'TRANSCRIPT INFORMATION'!J53)","v":1},{"$f":"IF('TRANSCRIPT INFORMATION'!F53=\"Y\",\"SJSU\",IF('TRANSCRIPT INFORMATION'!E53=\"Y\",\"SJSU\",'TRANSCRIPT INFORMATION'!G53))","v":"SJSU"},{"$f":"IF('TRANSCRIPT INFORMATION'!F53=\"Y\",'TRANSCRIPT INFORMATION'!P53,'TRANSCRIPT INFORMATION'!M53)","v":0},{"$f":"IF('TRANSCRIPT INFORMATION'!F53=\"Y\",'TRANSCRIPT INFORMATION'!Q53,'TRANSCRIPT INFORMATION'!N53)","v":0},{"$f":"IF('TRANSCRIPT INFORMATION'!F53=\"Y\",IF('TRANSCRIPT INFORMATION'!O53=\"N/A\",\" \",'TRANSCRIPT INFORMATION'!O53),IF('TRANSCRIPT INFORMATION'!L53=\"N/A\",\" \",'TRANSCRIPT INFORMATION'!L53))","v":" "},null,{"$f":"+IF('Student Tracking Form'!I46=\"Y\",'TRANSCRIPT INFORMATION'!B53,)","v":0}]
[null,{"$f":"+IF('TRANSCRIPT INFORMATION'!#REF!=\"Y\",'TRANSCRIPT INFORMATION'!#REF!,'TRANSCRIPT INFORMATION'!#REF!)","v":{"$error":"#REF!"}},{"$f":"+IF('TRANSCRIPT INFORMATION'!#REF!=\"Y\",'TRANSCRIPT INFORMATION'!#REF!,'TRANSCRIPT INFORMATION'!#REF!)","v":{"$error":"#REF!"}},{"$f":"+IF('TRANSCRIPT INFORMATION'!#REF!=\"Y\",'TRANSCRIPT INFORMATION'!#REF!,'TRANSCRIPT INFORMATION'!#REF!)","v":{"$error":"#REF!"}},{"$f":"IF('TRANSCRIPT INFORMATION'!#REF!=\"Y\",\"SJSU\",IF('TRANSCRIPT INFORMATION'!#REF!=\"Y\",\"SJSU\",'TRANSCRIPT INFORMATION'!#REF!))","v":{"$error":"#REF!"}},{"$f":"IF('TRANSCRIPT INFORMATION'!#REF!=\"Y\",'TRANSCRIPT INFORMATION'!#REF!,'TRANSCRIPT INFORMATION'!#REF!)","v":{"$error":"#REF!"}},{"$f":"IF('TRANSCRIPT INFORMATION'!#REF!=\"Y\",'TRANSCRIPT INFORMATION'!#REF!,'TRANSCRIPT INFORMATION'!#REF!)","v":{"$error":"#REF!"}},{"$f":"IF('TRANSCRIPT INFORMATION'!#REF!=\"Y\",IF('TRANSCRIPT INFORMATION'!#REF!=\"N/A\",\" \",'TRANSCRIPT INFORMATION'!#REF!),IF('TRANSCRIPT INFORMATION'!#REF!=\"N/A\",\" \",'TRANSCRIPT INFORMATION'!#REF!))","v":{"$error":"#REF!"}},null,{"$f":"+IF('Student Tracking Form'!I47=\"Y\",'TRANSCRIPT INFORMATION'!#REF!,)","v":0}]
[null,{"$f":"+IF('TRANSCRIPT INFORMATION'!#REF!=\"Y\",'TRANSCRIPT INFORMATION'!#REF!,'TRANSCRIPT INFORMATION'!#REF!)","v":{"$error":"#REF!"}},{"$f":"+IF('TRANSCRIPT INFORMATION'!#REF!=\"Y\",'TRANSCRIPT INFORMATION'!#REF!,'TRANSCRIPT INFORMATION'!#REF!)","v":{"$error":"#REF!"}},{"$f":"+IF('TRANSCRIPT INFORMATION'!#REF!=\"Y\",'TRANSCRIPT INFORMATION'!#REF!,'TRANSCRIPT INFORMATION'!#REF!)","v":{"$error":"#REF!"}},{"$f":"IF('TRANSCRIPT INFORMATION'!#REF!=\"Y\",\"SJSU\",IF('TRANSCRIPT INFORMATION'!#REF!=\"Y\",\"SJSU\",'TRANSCRIPT INFORMATION'!#REF!))","v":{"$error":"#REF!"}},{"$f":"IF('TRANSCRIPT INFORMATION'!#REF!=\"Y\",'TRANSCRIPT INFORMATION'!#REF!,'TRANSCRIPT INFORMATION'!#REF!)","v":{"$error":"#REF!"}},{"$f":"IF('TRANSCRIPT INFORMATION'!#REF!=\"Y\",'TRANSCRIPT INFORMATION'!#REF!,'TRANSCRIPT INFORMATION'!#REF!)","v":{"$error":"#REF!"}},{"$f":"IF('TRANSCRIPT INFORMATION'!#REF!=\"Y\",IF('TRANSCRIPT INFORMATION'!#REF!=\"N/A\",\" \",'TRANSCRIPT INFORMATION'!#REF!),IF('TRANSCRIPT INFORMATION'!#REF!=\"N/A\",\" \",'TRANSCRIPT INFORMATION'!#REF!))","v":{"$error":"#REF!"}},null,{"$f":"+IF('Student Tracking Form'!I48=\"Y\",'TRANSCRIPT INFORMATION'!#REF!,)","v":0}]
[null,{"$f":"+IF('TRANSCRIPT INFORMATION'!#REF!=\"Y\",'TRANSCRIPT INFORMATION'!#REF!,'TRANSCRIPT INFORMATION'!#REF!)","v":{"$error":"#REF!"}},{"$f":"+IF('TRANSCRIPT INFORMATION'!#REF!=\"Y\",'TRANSCRIPT INFORMATION'!#REF!,'TRANSCRIPT INFORMATION'!#REF!)","v":{"$error":"#REF!"}},{"$f":"+IF('TRANSCRIPT INFORMATION'!#REF!=\"Y\",'TRANSCRIPT INFORMATION'!#REF!,'TRANSCRIPT INFORMATION'!#REF!)","v":{"$error":"#REF!"}},{"$f":"IF('TRANSCRIPT INFORMATION'!#REF!=\"Y\",\"SJSU\",IF('TRANSCRIPT INFORMATION'!#REF!=\"Y\",\"SJSU\",'TRANSCRIPT INFORMATION'!#REF!))","v":{"$error":"#REF!"}},{"$f":"IF('TRANSCRIPT INFORMATION'!#REF!=\"Y\",'TRANSCRIPT INFORMATION'!#REF!,'TRANSCRIPT INFORMATION'!#REF!)","v":{"$error":"#REF!"}},{"$f":"IF('TRANSCRIPT INFORMATION'!#REF!=\"Y\",'TRANSCRIPT INFORMATION'!#REF!,'TRANSCRIPT INFORMATION'!#REF!)","v":{"$error":"#REF!"}},{"$f":"IF('TRANSCRIPT INFORMATION'!#REF!=\"Y\",IF('TRANSCRIPT INFORMATION'!#REF!=\"N/A\",\" \",'TRANSCRIPT INFORMATION'!#REF!),IF('TRANSCRIPT INFORMATION'!#REF!=\"N/A\",\" \",'TRANSCRIPT INFORMATION'!#REF!))","v":{"$error":"#REF!"}},null,{"$f":"+IF('Student Tracking Form'!I49=\"Y\",'TRANSCRIPT INFORMATION'!#REF!,)","v":0}]
[null,{"$f":"+IF('TRANSCRIPT INFORMATION'!#REF!=\"Y\",'TRANSCRIPT INFORMATION'!#REF!,'TRANSCRIPT INFORMATION'!#REF!)","v":{"$error":"#REF!"}},{"$f":"+IF('TRANSCRIPT INFORMATION'!#REF!=\"Y\",'TRANSCRIPT INFORMATION'!#REF!,'TRANSCRIPT INFORMATION'!#REF!)","v":{"$error":"#REF!"}},{"$f":"+IF('TRANSCRIPT INFORMATION'!#REF!=\"Y\",'TRANSCRIPT INFORMATION'!#REF!,'TRANSCRIPT INFORMATION'!#REF!)","v":{"$error":"#REF!"}},{"$f":"IF('TRANSCRIPT INFORMATION'!#REF!=\"Y\",\"SJSU\",IF('TRANSCRIPT INFORMATION'!#REF!=\"Y\",\"SJSU\",'TRANSCRIPT INFORMATION'!#REF!))","v":{"$error":"#REF!"}},{"$f":"IF('TRANSCRIPT INFORMATION'!#REF!=\"Y\",'TRANSCRIPT INFORMATION'!#REF!,'TRANSCRIPT INFORMATION'!#REF!)","v":{"$error":"#REF!"}},{"$f":"IF('TRANSCRIPT INFORMATION'!#REF!=\"Y\",'TRANSCRIPT INFORMATION'!#REF!,'TRANSCRIPT INFORMATION'!#REF!)","v":{"$error":"#REF!"}},{"$f":"IF('TRANSCRIPT INFORMATION'!#REF!=\"Y\",IF('TRANSCRIPT INFORMATION'!#REF!=\"N/A\",\" \",'TRANSCRIPT INFORMATION'!#REF!),IF('TRANSCRIPT INFORMATION'!#REF!=\"N/A\",\" \",'TRANSCRIPT INFORMATION'!#REF!))","v":{"$error":"#REF!"}},null,{"$f":"+IF('Student Tracking Form'!I50=\"Y\",'TRANSCRIPT INFORMATION'!#REF!,)","v":0}]
[null,{"$f":"+IF('TRANSCRIPT INFORMATION'!#REF!=\"Y\",'TRANSCRIPT INFORMATION'!#REF!,'TRANSCRIPT INFORMATION'!#REF!)","v":{"$error":"#REF!"}},{"$f":"+IF('TRANSCRIPT INFORMATION'!#REF!=\"Y\",'TRANSCRIPT INFORMATION'!#REF!,'TRANSCRIPT INFORMATION'!#REF!)","v":{"$error":"#REF!"}},{"$f":"+IF('TRANSCRIPT INFORMATION'!#REF!=\"Y\",'TRANSCRIPT INFORMATION'!#REF!,'TRANSCRIPT INFORMATION'!#REF!)","v":{"$error":"#REF!"}},{"$f":"IF('TRANSCRIPT INFORMATION'!#REF!=\"Y\",\"SJSU\",IF('TRANSCRIPT INFORMATION'!#REF!=\"Y\",\"SJSU\",'TRANSCRIPT INFORMATION'!#REF!))","v":{"$error":"#REF!"}},{"$f":"IF('TRANSCRIPT INFORMATION'!#REF!=\"Y\",'TRANSCRIPT INFORMATION'!#REF!,'TRANSCRIPT INFORMATION'!#REF!)","v":{"$error":"#REF!"}},{"$f":"IF('TRANSCRIPT INFORMATION'!#REF!=\"Y\",'TRANSCRIPT INFORMATION'!#REF!,'TRANSCRIPT INFORMATION'!#REF!)","v":{"$error":"#REF!"}},{"$f":"IF('TRANSCRIPT INFORMATION'!#REF!=\"Y\",IF('TRANSCRIPT INFORMATION'!#REF!=\"N/A\",\" \",'TRANSCRIPT INFORMATION'!#REF!),IF('TRANSCRIPT INFORMATION'!#REF!=\"N/A\",\" \",'TRANSCRIPT INFORMATION'!#REF!))","v":{"$error":"#REF!"}},null,{"$f":"+IF('Student Tracking Form'!I51=\"Y\",'TRANSCRIPT INFORMATION'!#REF!,)","v":0}]
[null,{"$f":"+IF('TRANSCRIPT INFORMATION'!#REF!=\"Y\",'TRANSCRIPT INFORMATION'!#REF!,'TRANSCRIPT INFORMATION'!#REF!)","v":{"$error":"#REF!"}},{"$f":"+IF('TRANSCRIPT INFORMATION'!#REF!=\"Y\",'TRANSCRIPT INFORMATION'!#REF!,'TRANSCRIPT INFORMATION'!#REF!)","v":{"$error":"#REF!"}},{"$f":"+IF('TRANSCRIPT INFORMATION'!#REF!=\"Y\",'TRANSCRIPT INFORMATION'!#REF!,'TRANSCRIPT INFORMATION'!#REF!)","v":{"$error":"#REF!"}},{"$f":"IF('TRANSCRIPT INFORMATION'!#REF!=\"Y\",\"SJSU\",IF('TRANSCRIPT INFORMATION'!#REF!=\"Y\",\"SJSU\",'TRANSCRIPT INFORMATION'!#REF!))","v":{"$error":"#REF!"}},{"$f":"IF('TRANSCRIPT INFORMATION'!#REF!=\"Y\",'TRANSCRIPT INFORMATION'!#REF!,'TRANSCRIPT INFORMATION'!#REF!)","v":{"$error":"#REF!"}},{"$f":"IF('TRANSCRIPT INFORMATION'!#REF!=\"Y\",'TRANSCRIPT INFORMATION'!#REF!,'TRANSCRIPT INFORMATION'!#REF!)","v":{"$error":"#REF!"}},{"$f":"IF('TRANSCRIPT INFORMATION'!#REF!=\"Y\",IF('TRANSCRIPT INFORMATION'!#REF!=\"N/A\",\" \",'TRANSCRIPT INFORMATION'!#REF!),IF('TRANSCRIPT INFORMATION'!#REF!=\"N/A\",\" \",'TRANSCRIPT INFORMATION'!#REF!))","v":{"$error":"#REF!"}},null,{"$f":"+IF('Student Tracking Form'!I52=\"Y\",'TRANSCRIPT INFORMATION'!#REF!,)","v":0}]
[null,{"$f":"+IF('TRANSCRIPT INFORMATION'!#REF!=\"Y\",'TRANSCRIPT INFORMATION'!#REF!,'TRANSCRIPT INFORMATION'!#REF!)","v":{"$error":"#REF!"}},{"$f":"+IF('TRANSCRIPT INFORMATION'!#REF!=\"Y\",'TRANSCRIPT INFORMATION'!#REF!,'TRANSCRIPT INFORMATION'!#REF!)","v":{"$error":"#REF!"}},{"$f":"+IF('TRANSCRIPT INFORMATION'!#REF!=\"Y\",'TRANSCRIPT INFORMATION'!#REF!,'TRANSCRIPT INFORMATION'!#REF!)","v":{"$error":"#REF!"}},{"$f":"IF('TRANSCRIPT INFORMATION'!#REF!=\"Y\",\"SJSU\",IF('TRANSCRIPT INFORMATION'!#REF!=\"Y\",\"SJSU\",'TRANSCRIPT INFORMATION'!#REF!))","v":{"$error":"#REF!"}},{"$f":"IF('TRANSCRIPT INFORMATION'!#REF!=\"Y\",'TRANSCRIPT INFORMATION'!#REF!,'TRANSCRIPT INFORMATION'!#REF!)","v":{"$error":"#REF!"}},{"$f":"IF('TRANSCRIPT INFORMATION'!#REF!=\"Y\",'TRANSCRIPT INFORMATION'!#REF!,'TRANSCRIPT INFORMATION'!#REF!)","v":{"$error":"#REF!"}},{"$f":"IF('TRANSCRIPT INFORMATION'!#REF!=\"Y\",IF('TRANSCRIPT INFORMATION'!#REF!=\"N/A\",\" \",'TRANSCRIPT INFORMATION'!#REF!),IF('TRANSCRIPT INFORMATION'!#REF!=\"N/A\",\" \",'TRANSCRIPT INFORMATION'!#REF!))","v":{"$error":"#REF!"}},null,{"$f":"+IF('Student Tracking Form'!I53=\"Y\",'TRANSCRIPT INFORMATION'!#REF!,)","v":0}]
[null,{"$f":"+IF('TRANSCRIPT INFORMATION'!E54=\"Y\",'TRANSCRIPT INFORMATION'!B54,'TRANSCRIPT INFORMATION'!H54)","v":0},{"$f":"+IF('TRANSCRIPT INFORMATION'!E54=\"Y\",'TRANSCRIPT INFORMATION'!C54,'TRANSCRIPT INFORMATION'!I54)","v":0},{"$f":"+IF('TRANSCRIPT INFORMATION'!E54=\"Y\",'TRANSCRIPT INFORMATION'!D54,'TRANSCRIPT INFORMATION'!J54)","v":0},{"$f":"IF('TRANSCRIPT INFORMATION'!F54=\"Y\",\"SJSU\",IF('TRANSCRIPT INFORMATION'!E54=\"Y\",\"SJSU\",'TRANSCRIPT INFORMATION'!G54))","v":0},{"$f":"IF('TRANSCRIPT INFORMATION'!F54=\"Y\",'TRANSCRIPT INFORMATION'!P54,'TRANSCRIPT INFORMATION'!M54)","v":0},{"$f":"IF('TRANSCRIPT INFORMATION'!F54=\"Y\",'TRANSCRIPT INFORMATION'!Q54,'TRANSCRIPT INFORMATION'!N54)","v":0},{"$f":"IF('TRANSCRIPT INFORMATION'!F54=\"Y\",IF('TRANSCRIPT INFORMATION'!O54=\"N/A\",\" \",'TRANSCRIPT INFORMATION'!O54),IF('TRANSCRIPT INFORMATION'!L54=\"N/A\",\" \",'TRANSCRIPT INFORMATION'!L54))","v":" "},null,{"$f":"+IF('Student Tracking Form'!I54=\"Y\",'TRANSCRIPT INFORMATION'!B54,)","v":0}]
[null,"UPPER DIVISION ELECTIVE COURSES FOR THE MAJOR"]
[null,{"$f":"+IF('TRANSCRIPT INFORMATION'!E56=\"Y\",'TRANSCRIPT INFORMATION'!B56,'TRANSCRIPT INFORMATION'!H56)","v":0},{"$f":"+IF('TRANSCRIPT INFORMATION'!E56=\"Y\",'TRANSCRIPT INFORMATION'!C56,'TRANSCRIPT INFORMATION'!I56)","v":0},{"$f":"+IF('TRANSCRIPT INFORMATION'!E56=\"Y\",'TRANSCRIPT INFORMATION'!D56,'TRANSCRIPT INFORMATION'!J56)","v":3},{"$f":"IF('TRANSCRIPT INFORMATION'!F56=\"Y\",\"SJSU\",IF('TRANSCRIPT INFORMATION'!E56=\"Y\",\"SJSU\",'TRANSCRIPT INFORMATION'!G56))","v":"SJSU"},{"$f":"IF('TRANSCRIPT INFORMATION'!F56=\"Y\",'TRANSCRIPT INFORMATION'!P56,'TRANSCRIPT INFORMATION'!M56)","v":" "},{"$f":"IF('TRANSCRIPT INFORMATION'!F56=\"Y\",'TRANSCRIPT INFORMATION'!Q56,'TRANSCRIPT INFORMATION'!N56)","v":" "},{"$f":"IF('TRANSCRIPT INFORMATION'!F56=\"Y\",IF('TRANSCRIPT INFORMATION'!O56=\"N/A\",\" \",'TRANSCRIPT INFORMATION'!O56),IF('TRANSCRIPT INFORMATION'!L56=\"N/A\",\" \",'TRANSCRIPT INFORMATION'!L56))","v":" "},null,{"$f":"+IF('Student Tracking Form'!I56=\"Y\",'TRANSCRIPT INFORMATION'!B56,)","v":0}]
[null,{"$f":"+IF('TRANSCRIPT INFORMATION'!E57=\"Y\",'TRANSCRIPT INFORMATION'!B57,'TRANSCRIPT INFORMATION'!H57)","v":0},{"$f":"+IF('TRANSCRIPT INFORMATION'!E57=\"Y\",'TRANSCRIPT INFORMATION'!C57,'TRANSCRIPT INFORMATION'!I57)","v":0},{"$f":"+IF('TRANSCRIPT INFORMATION'!E57=\"Y\",'TRANSCRIPT INFORMATION'!D57,'TRANSCRIPT INFORMATION'!J57)","v":3},{"$f":"IF('TRANSCRIPT INFORMATION'!F57=\"Y\",\"SJSU\",IF('TRANSCRIPT INFORMATION'!E57=\"Y\",\"SJSU\",'TRANSCRIPT INFORMATION'!G57))","v":"SJSU"},{"$f":"IF('TRANSCRIPT INFORMATION'!F57=\"Y\",'TRANSCRIPT INFORMATION'!P57,'TRANSCRIPT INFORMATION'!M57)","v":" "},{"$f":"IF('TRANSCRIPT INFORMATION'!F57=\"Y\",'TRANSCRIPT INFORMATION'!Q57,'TRANSCRIPT INFORMATION'!N57)","v":" "},{"$f":"IF('TRANSCRIPT INFORMATION'!F57=\"Y\",IF('TRANSCRIPT INFORMATION'!O57=\"N/A\",\" \",'TRANSCRIPT INFORMATION'!O57),IF('TRANSCRIPT INFORMATION'!L57=\"N/A\",\" \",'TRANSCRIPT INFORMATION'!L57))","v":" "},null,{"$f":"+IF('Student Tracking Form'!I57=\"Y\",'TRANSCRIPT INFORMATION'!B57,)","v":0}]
[null,{"$f":"+IF('TRANSCRIPT INFORMATION'!E58=\"Y\",'TRANSCRIPT INFORMATION'!B58,'TRANSCRIPT INFORMATION'!H58)","v":" "},{"$f":"+IF('TRANSCRIPT INFORMATION'!E58=\"Y\",'TRANSCRIPT INFORMATION'!C58,'TRANSCRIPT INFORMATION'!I58)","v":0},{"$f":"+IF('TRANSCRIPT INFORMATION'!E58=\"Y\",'TRANSCRIPT INFORMATION'!D58,'TRANSCRIPT INFORMATION'!J58)","v":3},{"$f":"IF('TRANSCRIPT INFORMATION'!F58=\"Y\",\"SJSU\",IF('TRANSCRIPT INFORMATION'!E58=\"Y\",\"SJSU\",'TRANSCRIPT INFORMATION'!G58))","v":"SJSU"},{"$f":"IF('TRANSCRIPT INFORMATION'!F58=\"Y\",'TRANSCRIPT INFORMATION'!P58,'TRANSCRIPT INFORMATION'!M58)","v":" "},{"$f":"IF('TRANSCRIPT INFORMATION'!F58=\"Y\",'TRANSCRIPT INFORMATION'!Q58,'TRANSCRIPT INFORMATION'!N58)","v":" "},{"$f":"IF('TRANSCRIPT INFORMATION'!F58=\"Y\",IF('TRANSCRIPT INFORMATION'!O58=\"N/A\",\" \",'TRANSCRIPT INFORMATION'!O58),IF('TRANSCRIPT INFORMATION'!L58=\"N/A\",\" \",'TRANSCRIPT INFORMATION'!L58))","v":" "},null,{"$f":"+IF('Student Tracking Form'!I58=\"Y\",'TRANSCRIPT INFORMATION'!B58,)","v":0}]
[null,{"$f":"+IF('TRANSCRIPT INFORMATION'!E59=\"Y\",'TRANSCRIPT INFORMATION'!B59,'TRANSCRIPT INFORMATION'!H59)","v":0},{"$f":"+IF('TRANSCRIPT INFORMATION'!E59=\"Y\",'TRANSCRIPT INFORMATION'!C59,'TRANSCRIPT INFORMATION'!I59)","v":0},{"$f":"+IF('TRANSCRIPT INFORMATION'!E59=\"Y\",'TRANSCRIPT INFORMATION'!D59,'TRANSCRIPT INFORMATION'!J59)","v":0},{"$f":"IF('TRANSCRIPT INFORMATION'!F59=\"Y\",\"SJSU\",IF('TRANSCRIPT INFORMATION'!E59=\"Y\",\"SJSU\",'TRANSCRIPT INFORMATION'!G59))","v":0},{"$f":"IF('TRANSCRIPT INFORMATION'!F59=\"Y\",'TRANSCRIPT INFORMATION'!P59,'TRANSCRIPT INFORMATION'!M59)","v":0},{"$f":"IF('TRANSCRIPT INFORMATION'!F59=\"Y\",'TRANSCRIPT INFORMATION'!Q59,'TRANSCRIPT INFORMATION'!N59)","v":0},{"$f":"IF('TRANSCRIPT INFORMATION'!F59=\"Y\",IF('TRANSCRIPT INFORMATION'!O59=\"N/A\",\" \",'TRANSCRIPT INFORMATION'!O59),IF('TRANSCRIPT INFORMATION'!L59=\"N/A\",\" \",'TRANSCRIPT INFORMATION'!L59))","v":" "},null,{"$f":"+IF('Student Tracking Form'!I59=\"Y\",'TRANSCRIPT INFORMATION'!B59,)","v":0}]
[]
[null,"Advisor Signature:",null,null,null,null,null,null,"Date:"]

{"sheet":"UNOFFICIAL GPA","index":5,"n_rows":63,"n_cols":15,"rows_kept":63,"cut":false,"hidden":false,"merged":[[6,2,6,4],[7,2,7,4],[8,2,8,4],[9,2,9,4]]}
[null,null,"UNOFFICIAL MAJOR GRADE POINT EVALUATION",null,null,null,null,null,null,null,null,null,null,"A+",4]
[null,null,"STUDENT NAME :",{"$f":"+'TRANSCRIPT INFORMATION'!C5&\" \"&'TRANSCRIPT INFORMATION'!C6","v":" "},null,null,null,null,null,null,null,null,null,"A",4]
[null,null,"People Soft Number :",{"$f":"+'TRANSCRIPT INFORMATION'!C7","v":0},null,null,null,null,null,null,null,null,null,"A-",3.7]
[null,null,"DATE:",{"$f":"+'TRANSCRIPT INFORMATION'!G4","v":"2016-10-03"},null,null,null,null,null,null,null,null,null,"B+",3.3]
[null,null,null,null,null,null,null,null,null,null,null,null,null,"B",3]
[null,null,null,null,null,"GPA","ABOVE 2.0",null,null,null,null,null,null,"B-",2.7]
[null,null,"ALL REQUIRED COURSES",null,null,{"$f":"+(J37+J58)/(K37+K58)","v":{"$error":"#DIV/0!"}},{"$f":"+(J37+J58)-2*(K37+K58)","v":0},null,null,null,null,null,null,"C+",2.2999999999999998]
[null,null,"ALL REQUIRED COURSES & TECHNICAL ELECTIVES",null,null,{"$f":"+(J37+J58+J63)/(K37+K58+K63)","v":{"$error":"#DIV/0!"}},{"$f":"+(J37+J58+J63)-2*(K37+K58+K63)","v":0},null,null,null,null,null,null,"C",2]
[null,null,"ALL REQUIRED COURSES & TECHNICAL ELECTIVES @ SJSU",null,null,{"$f":"+(N37+N58+N63)/(O37+O58+O63)","v":{"$error":"#DIV/0!"}},{"$f":"+(N37+N58+N63)-2*(O37+O58+O63)","v":0},null,null,null,null,null,null,"C-",1.7]
[null,null,"PREPARATORY COURSES",null,null,{"$f":"+J31/K31","v":{"$error":"#DIV/0!"}},{"$f":"+J31-2*K31","v":0},null,null,null,null,null,null,"D+",1.3]
[null,null,null,null,null,null,null,null,null,null,null,null,null,"D",1]
[null,null,null,null,null,null,null,null,null,null,null,null,null,"D-",0.7]
[null,null,null,null,null,null,null,null,null,null,null,null,null,"F",0]
[null,null,null,null,null,null,null,null,null,null,null,null,null,"N/A",0]
["REQUIRED COURSES AND TECHNICAL ELECTIVES",null,null,null,null,null,null,null,null,null,null,null,null,{"$f":"+IF('TRANSCRIPT INFORMATION'!V13=\"N/A\",\" \",'TRANSCRIPT INFORMATION'!V13)","v":0},{"$f":"+IF('TRANSCRIPT INFORMATION'!W13=\"N/A\",\" \",'TRANSCRIPT INFORMATION'!W13)","v":0}]
["Index","COURSE NUMBER.","COURSE TITLE","GRADE 1","GRADE 1 UNITS","GRADE 2","GRADE 2 UNITS","ALL GRADE 1 VALUE","ALL GRADE 2 VALUE","ALL QUALITY POINTS","ALL QUALITY UNITS","SJSE GRADE 1 VALUE","SJSU GRADE 2 VALUE","SJSU QUALITY POINTS","SJSU QUALITY UNITS"]
[]
[{"$f":"+'TRANSCRIPT INFORMATION'!A16","v":1},{"$f":"IF('TRANSCRIPT INFORMATION'!E16=\"Y\",+'TRANSCRIPT INFORMATION'!B16,'TRANSCRIPT INFORMATION'!H16)","v":"MATH 30"},{"$f":"IF('TRANSCRIPT INFORMATION'!E16=\"Y\",+'TRANSCRIPT INFORMATION'!C16,'TRANSCRIPT INFORMATION'!I16)","v":"CALCULUS I"},{"$f":"+IF('TRANSCRIPT INFORMATION'!L16=\"N/A\",\"N/A\",'TRANSCRIPT INFORMATION'!L16)","v":"N/A"},{"$f":"IF('TRANSCRIPT INFORMATION'!L16=\"N/A\",0,IF('TRANSCRIPT INFORMATION'!E16=\"Y\",'TRANSCRIPT INFORMATION'!D16,IF('TRANSCRIPT INFORMATION'!K16=\"S\",'TRANSCRIPT INFORMATION'!J16,'TRANSCRIPT INFORMATION'!J16*2/3)))","v":0},{"$f":"+IF('TRANSCRIPT INFORMATION'!O16=\"N/A\",\"N/A \",'TRANSCRIPT INFORMATION'!O16)","v":"N/A "},{"$f":"IF('TRANSCRIPT INFORMATION'!F16=\"Y\",'TRANSCRIPT INFORMATION'!D16,0)","v":0},{"$f":"VLOOKUP(D18,$N$1:$O$15,2)","v":0},{"$f":"VLOOKUP(F18,$N$1:$O$15,2)","v":0},{"$f":"+E18*H18+G18*I18","v":0},{"$f":"IF(D18=0,0,E18)+IF(F18=0,0,G18)","v":0},{"$f":"IF('TRANSCRIPT INFORMATION'!E16=\"Y\",VLOOKUP(D18,$N$1:$O$15,2,FALSE),0)","v":0},{"$f":"IF('TRANSCRIPT INFORMATION'!F16=\"Y\",VLOOKUP(F18,$N$1:$O$15,2,FALSE),0)","v":0},{"$f":"+E18*L18+G18*M18","v":0},{"$f":"IF('TRANSCRIPT INFORMATION'!E16=\"Y\",IF('UNOFFICIAL GPA'!D18=\"N/A\",0,'UNOFFICIAL GPA'!E18),0)","v":0}]
[{"$f":"1+A18","v":2},{"$f":"IF('TRANSCRIPT INFORMATION'!E17=\"Y\",+'TRANSCRIPT INFORMATION'!B17,'TRANSCRIPT INFORMATION'!H17)","v":"MATH 31"},{"$f":"IF('TRANSCRIPT INFORMATION'!E17=\"Y\",+'TRANSCRIPT INFORMATION'!C17,'TRANSCRIPT INFORMATION'!I17)","v":"CALCULUS II"},{"$f":"+IF('TRANSCRIPT INFORMATION'!L17=\"N/A\",\"N/A\",'TRANSCRIPT INFORMATION'!L17)","v":"N/A"},{"$f":"IF('TRANSCRIPT INFORMATION'!L17=\"N/A\",0,IF('TRANSCRIPT INFORMATION'!E17=\"Y\",'TRANSCRIPT INFORMATION'!D17,IF('TRANSCRIPT INFORMATION'!K17=\"S\",'TRANSCRIPT INFORMATION'!J17,'TRANSCRIPT INFORMATION'!J17*2/3)))","v":0},{"$f":"+IF('TRANSCRIPT INFORMATION'!O17=\"N/A\",\"N/A \",'TRANSCRIPT INFORMATION'!O17)","v":"N/A "},{"$f":"IF('TRANSCRIPT INFORMATION'!F17=\"Y\",'TRANSCRIPT INFORMATION'!D17,0)","v":0},{"$f":"VLOOKUP(D19,$N$1:$O$15,2)","v":0},{"$f":"VLOOKUP(F19,$N$1:$O$15,2)","v":0},{"$f":"+E19*H19+G19*I19","v":0},{"$f":"IF(D19=0,0,E19)+IF(F19=0,0,G19)","v":0},{"$f":"IF('TRANSCRIPT INFORMATION'!E17=\"Y\",VLOOKUP(D19,$N$1:$O$15,2,FALSE),0)","v":0},{"$f":"IF('TRANSCRIPT INFORMATION'!F17=\"Y\",VLOOKUP(F19,$N$1:$O$15,2,FALSE),0)","v":0},{"$f":"+E19*L19+G19*M19","v":0},{"$f":"IF('TRANSCRIPT INFORMATION'!E17=\"Y\",IF('UNOFFICIAL GPA'!D19=\"N/A\",0,'UNOFFICIAL GPA'!E19),0)","v":0}]
[{"$f":"+'TRANSCRIPT INFORMATION'!A18","v":3},{"$f":"IF('TRANSCRIPT INFORMATION'!E18=\"Y\",+'TRANSCRIPT INFORMATION'!B18,'TRANSCRIPT INFORMATION'!H18)","v":"MATH 32"},{"$f":"IF('TRANSCRIPT INFORMATION'!E18=\"Y\",+'TRANSCRIPT INFORMATION'!C18,'TRANSCRIPT INFORMATION'!I18)","v":"CALCULUS III"},{"$f":"+IF('TRANSCRIPT INFORMATION'!L18=\"N/A\",\"N/A\",'TRANSCRIPT INFORMATION'!L18)","v":"N/A"},{"$f":"IF('TRANSCRIPT INFORMATION'!L18=\"N/A\",0,IF('TRANSCRIPT INFORMATION'!E18=\"Y\",'TRANSCRIPT INFORMATION'!D18,IF('TRANSCRIPT INFORMATION'!K18=\"S\",'TRANSCRIPT INFORMATION'!J18,'TRANSCRIPT INFORMATION'!J18*2/3)))","v":0},{"$f":"+IF('TRANSCRIPT INFORMATION'!O18=\"N/A\",\"N/A \",'TRANSCRIPT INFORMATION'!O18)","v":"N/A "},{"$f":"IF('TRANSCRIPT INFORMATION'!F18=\"Y\",'TRANSCRIPT INFORMATION'!D18,0)","v":0},0,0,0,0,{"$f":"IF('TRANSCRIPT INFORMATION'!E18=\"Y\",VLOOKUP(D20,$N$1:$O$15,2,FALSE),0)","v":0},{"$f":"IF('TRANSCRIPT INFORMATION'!F18=\"Y\",VLOOKUP(F20,$N$1:$O$15,2,FALSE),0)","v":0},0,{"$f":"IF('TRANSCRIPT INFORMATION'!E18=\"Y\",IF('UNOFFICIAL GPA'!D20=\"N/A\",0,'UNOFFICIAL GPA'!E20),0)","v":0}]
[{"$f":"+'TRANSCRIPT INFORMATION'!A20","v":5},{"$f":"IF('TRANSCRIPT INFORMATION'!E20=\"Y\",+'TRANSCRIPT INFORMATION'!B20,'TRANSCRIPT INFORMATION'!H20)","v":"MATH 133A"},{"$f":"IF('TRANSCRIPT INFORMATION'!E20=\"Y\",+'TRANSCRIPT INFORMATION'!C20,'TRANSCRIPT INFORMATION'!I20)","v":"ORDINARY DIFFERENTIAL EQUATIONS"},{"$f":"+IF('TRANSCRIPT INFORMATION'!L20=\"N/A\",\"N/A\",'TRANSCRIPT INFORMATION'!L20)","v":"N/A"},{"$f":"IF('TRANSCRIPT INFORMATION'!L20=\"N/A\",0,IF('TRANSCRIPT INFORMATION'!E20=\"Y\",'TRANSCRIPT INFORMATION'!D20,IF('TRANSCRIPT INFORMATION'!K20=\"S\",'TRANSCRIPT INFORMATION'!J20,'TRANSCRIPT INFORMATION'!J20*2/3)))","v":0},{"$f":"+IF('TRANSCRIPT INFORMATION'!O20=\"N/A\",\"N/A \",'TRANSCRIPT INFORMATION'!O20)","v":"N/A "},{"$f":"IF('TRANSCRIPT INFORMATION'!F20=\"Y\",'TRANSCRIPT INFORMATION'!D20,0)","v":0},0,0,0,0,{"$f":"IF('TRANSCRIPT INFORMATION'!E20=\"Y\",VLOOKUP(D21,$N$1:$O$15,2,FALSE),0)","v":0},{"$f":"IF('TRANSCRIPT INFORMATION'!F20=\"Y\",VLOOKUP(F21,$N$1:$O$15,2,FALSE),0)","v":0},0,{"$f":"IF('TRANSCRIPT INFORMATION'!E20=\"Y\",IF('UNOFFICIAL GPA'!D21=\"N/A\",0,'UNOFFICIAL GPA'!E21),0)","v":0}]
[{"$f":"+'TRANSCRIPT INFORMATION'!A21","v":6},{"$f":"IF('TRANSCRIPT INFORMATION'!E21=\"Y\",+'TRANSCRIPT INFORMATION'!B21,'TRANSCRIPT INFORMATION'!H21)","v":0},{"$f":"IF('TRANSCRIPT INFORMATION'!E21=\"Y\",+'TRANSCRIPT INFORMATION'!C21,'TRANSCRIPT INFORMATION'!I21)","v":0},{"$f":"+IF('TRANSCRIPT INFORMATION'!L21=\"N/A\",\"N/A\",'TRANSCRIPT INFORMATION'!L21)","v":"N/A"},{"$f":"IF('TRANSCRIPT INFORMATION'!L21=\"N/A\",0,IF('TRANSCRIPT INFORMATION'!E21=\"Y\",'TRANSCRIPT INFORMATION'!D21,IF('TRANSCRIPT INFORMATION'!K21=\"S\",'TRANSCRIPT INFORMATION'!J21,'TRANSCRIPT INFORMATION'!J21*2/3)))","v":0},{"$f":"+IF('TRANSCRIPT INFORMATION'!O21=\"N/A\",\"N/A \",'TRANSCRIPT INFORMATION'!O21)","v":"N/A "},{"$f":"IF('TRANSCRIPT INFORMATION'!F21=\"Y\",'TRANSCRIPT INFORMATION'!D21,0)","v":0},0,0,0,0,{"$f":"IF('TRANSCRIPT INFORMATION'!E21=\"Y\",VLOOKUP(D22,$N$1:$O$15,2,FALSE),0)","v":0},{"$f":"IF('TRANSCRIPT INFORMATION'!F21=\"Y\",VLOOKUP(F22,$N$1:$O$15,2,FALSE),0)","v":0},0,{"$f":"IF('TRANSCRIPT INFORMATION'!E21=\"Y\",IF('UNOFFICIAL GPA'!D22=\"N/A\",0,'UNOFFICIAL GPA'!E22),0)","v":0}]
[{"$f":"+'TRANSCRIPT INFORMATION'!A22","v":7},{"$f":"IF('TRANSCRIPT INFORMATION'!E22=\"Y\",+'TRANSCRIPT INFORMATION'!B22,'TRANSCRIPT INFORMATION'!H22)","v":"CHEM 1A"},{"$f":"IF('TRANSCRIPT INFORMATION'!E22=\"Y\",+'TRANSCRIPT INFORMATION'!C22,'TRANSCRIPT INFORMATION'!I22)","v":"GENERAL CHEMISTRY"},{"$f":"+IF('TRANSCRIPT INFORMATION'!L22=\"N/A\",\"N/A\",'TRANSCRIPT INFORMATION'!L22)","v":"N/A"},{"$f":"IF('TRANSCRIPT INFORMATION'!L22=\"N/A\",0,IF('TRANSCRIPT INFORMATION'!E22=\"Y\",'TRANSCRIPT INFORMATION'!D22,IF('TRANSCRIPT INFORMATION'!K22=\"S\",'TRANSCRIPT INFORMATION'!J22,'TRANSCRIPT INFORMATION'!J22*2/3)))","v":0},{"$f":"+IF('TRANSCRIPT INFORMATION'!O22=\"N/A\",\"N/A \",'TRANSCRIPT INFORMATION'!O22)","v":"N/A "},{"$f":"IF('TRANSCRIPT INFORMATION'!F22=\"Y\",'TRANSCRIPT INFORMATION'!D22,0)","v":0},0,0,0,0,{"$f":"IF('TRANSCRIPT INFORMATION'!E22=\"Y\",VLOOKUP(D23,$N$1:$O$15,2,FALSE),0)","v":0},{"$f":"IF('TRANSCRIPT INFORMATION'!F22=\"Y\",VLOOKUP(F23,$N$1:$O$15,2,FALSE),0)","v":0},0,{"$f":"IF('TRANSCRIPT INFORMATION'!E22=\"Y\",IF('UNOFFICIAL GPA'!D23=\"N/A\",0,'UNOFFICIAL GPA'!E23),0)","v":0}]
[{"$f":"+'TRANSCRIPT INFORMATION'!A23","v":8},{"$f":"IF('TRANSCRIPT INFORMATION'!E23=\"Y\",+'TRANSCRIPT INFORMATION'!B23,'TRANSCRIPT INFORMATION'!H23)","v":"CHEM 1B"},{"$f":"IF('TRANSCRIPT INFORMATION'!E23=\"Y\",+'TRANSCRIPT INFORMATION'!C23,'TRANSCRIPT INFORMATION'!I23)","v":"GENERAL CHEMISTRY"},{"$f":"+IF('TRANSCRIPT INFORMATION'!L23=\"N/A\",\"N/A\",'TRANSCRIPT INFORMATION'!L23)","v":"N/A"},{"$f":"IF('TRANSCRIPT INFORMATION'!L23=\"N/A\",0,IF('TRANSCRIPT INFORMATION'!E23=\"Y\",'TRANSCRIPT INFORMATION'!D23,IF('TRANSCRIPT INFORMATION'!K23=\"S\",'TRANSCRIPT INFORMATION'!J23,'TRANSCRIPT INFORMATION'!J23*2/3)))","v":0},{"$f":"+IF('TRANSCRIPT INFORMATION'!O23=\"N/A\",\"N/A \",'TRANSCRIPT INFORMATION'!O23)","v":"N/A "},{"$f":"IF('TRANSCRIPT INFORMATION'!F23=\"Y\",'TRANSCRIPT INFORMATION'!D23,0)","v":0},0,0,0,0,{"$f":"IF('TRANSCRIPT INFORMATION'!E23=\"Y\",VLOOKUP(D24,$N$1:$O$15,2,FALSE),0)","v":0},{"$f":"IF('TRANSCRIPT INFORMATION'!F23=\"Y\",VLOOKUP(F24,$N$1:$O$15,2,FALSE),0)","v":0},0,{"$f":"IF('TRANSCRIPT INFORMATION'!E23=\"Y\",IF('UNOFFICIAL GPA'!D24=\"N/A\",0,'UNOFFICIAL GPA'!E24),0)","v":0}]
[{"$f":"+'TRANSCRIPT INFORMATION'!A24","v":9},{"$f":"IF('TRANSCRIPT INFORMATION'!E24=\"Y\",+'TRANSCRIPT INFORMATION'!B24,'TRANSCRIPT INFORMATION'!H24)","v":0},{"$f":"IF('TRANSCRIPT INFORMATION'!E24=\"Y\",+'TRANSCRIPT INFORMATION'!C24,'TRANSCRIPT INFORMATION'!I24)","v":0},{"$f":"+IF('TRANSCRIPT INFORMATION'!L24=\"N/A\",\"N/A\",'TRANSCRIPT INFORMATION'!L24)","v":"N/A"},{"$f":"IF('TRANSCRIPT INFORMATION'!L24=\"N/A\",0,IF('TRANSCRIPT INFORMATION'!E24=\"Y\",'TRANSCRIPT INFORMATION'!D24,IF('TRANSCRIPT INFORMATION'!K24=\"S\",'TRANSCRIPT INFORMATION'!J24,'TRANSCRIPT INFORMATION'!J24*2/3)))","v":0},{"$f":"+IF('TRANSCRIPT INFORMATION'!O24=\"N/A\",\"N/A \",'TRANSCRIPT INFORMATION'!O24)","v":"N/A "},{"$f":"IF('TRANSCRIPT INFORMATION'!F24=\"Y\",'TRANSCRIPT INFORMATION'!D24,0)","v":0},0,0,0,0,{"$f":"IF('TRANSCRIPT INFORMATION'!E24=\"Y\",VLOOKUP(D25,$N$1:$O$15,2,FALSE),0)","v":0},{"$f":"IF('TRANSCRIPT INFORMATION'!F24=\"Y\",VLOOKUP(F25,$N$1:$O$15,2,FALSE),0)","v":0},0,{"$f":"IF('TRANSCRIPT INFORMATION'!E24=\"Y\",IF('UNOFFICIAL GPA'!D25=\"N/A\",0,'UNOFFICIAL GPA'!E25),0)","v":0}]
[{"$f":"+'TRANSCRIPT INFORMATION'!A25","v":10},{"$f":"IF('TRANSCRIPT INFORMATION'!E25=\"Y\",+'TRANSCRIPT INFORMATION'!B25,'TRANSCRIPT INFORMATION'!H25)","v":"PHYS 50"},{"$f":"IF('TRANSCRIPT INFORMATION'!E25=\"Y\",+'TRANSCRIPT INFORMATION'!C25,'TRANSCRIPT INFORMATION'!I25)","v":"MECHANICS"},{"$f":"+IF('TRANSCRIPT INFORMATION'!L25=\"N/A\",\"N/A\",'TRANSCRIPT INFORMATION'!L25)","v":"N/A"},{"$f":"IF('TRANSCRIPT INFORMATION'!L25=\"N/A\",0,IF('TRANSCRIPT INFORMATION'!E25=\"Y\",'TRANSCRIPT INFORMATION'!D25,IF('TRANSCRIPT INFORMATION'!K25=\"S\",'TRANSCRIPT INFORMATION'!J25,'TRANSCRIPT INFORMATION'!J25*2/3)))","v":0},{"$f":"+IF('TRANSCRIPT INFORMATION'!O25=\"N/A\",\"N/A \",'TRANSCRIPT INFORMATION'!O25)","v":"N/A "},{"$f":"IF('TRANSCRIPT INFORMATION'!F25=\"Y\",'TRANSCRIPT INFORMATION'!D25,0)","v":0},0,0,0,0,{"$f":"IF('TRANSCRIPT INFORMATION'!E25=\"Y\",VLOOKUP(D26,$N$1:$O$15,2,FALSE),0)","v":0},{"$f":"IF('TRANSCRIPT INFORMATION'!F25=\"Y\",VLOOKUP(F26,$N$1:$O$15,2,FALSE),0)","v":0},0,{"$f":"IF('TRANSCRIPT INFORMATION'!E25=\"Y\",IF('UNOFFICIAL GPA'!D26=\"N/A\",0,'UNOFFICIAL GPA'!E26),0)","v":0}]
[{"$f":"+'TRANSCRIPT INFORMATION'!A26","v":11},{"$f":"IF('TRANSCRIPT INFORMATION'!E26=\"Y\",+'TRANSCRIPT INFORMATION'!B26,'TRANSCRIPT INFORMATION'!H26)","v":"PHYS 51"},{"$f":"IF('TRANSCRIPT INFORMATION'!E26=\"Y\",+'TRANSCRIPT INFORMATION'!C26,'TRANSCRIPT INFORMATION'!I26)","v":"ELECTRICITY & MAGNETISM"},{"$f":"+IF('TRANSCRIPT INFORMATION'!L26=\"N/A\",\"N/A\",'TRANSCRIPT INFORMATION'!L26)","v":"N/A"},{"$f":"IF('TRANSCRIPT INFORMATION'!L26=\"N/A\",0,IF('TRANSCRIPT INFORMATION'!E28=\"Y\",'TRANSCRIPT INFORMATION'!D28,IF('TRANSCRIPT INFORMATION'!K26=\"S\",'TRANSCRIPT INFORMATION'!J26,'TRANSCRIPT INFORMATION'!J26*2/3)))","v":0},{"$f":"+IF('TRANSCRIPT INFORMATION'!O26=\"N/A\",\"N/A \",'TRANSCRIPT INFORMATION'!O26)","v":"N/A "},{"$f":"IF('TRANSCRIPT INFORMATION'!F26=\"Y\",'TRANSCRIPT INFORMATION'!D28,0)","v":0},0,0,0,0,{"$f":"IF('TRANSCRIPT INFORMATION'!E28=\"Y\",VLOOKUP(D27,$N$1:$O$15,2,FALSE),0)","v":0},{"$f":"IF('TRANSCRIPT INFORMATION'!F26=\"Y\",VLOOKUP(F27,$N$1:$O$15,2,FALSE),0)","v":0},0,{"$f":"IF('TRANSCRIPT INFORMATION'!E28=\"Y\",IF('UNOFFICIAL GPA'!D27=\"N/A\",0,'UNOFFICIAL GPA'!E27),0)","v":0}]
[{"$f":"+'TRANSCRIPT INFORMATION'!A27","v":12},{"$f":"IF('TRANSCRIPT INFORMATION'!E27=\"Y\",+'TRANSCRIPT INFORMATION'!B27,'TRANSCRIPT INFORMATION'!H27)","v":0},{"$f":"IF('TRANSCRIPT INFORMATION'!E27=\"Y\",+'TRANSCRIPT INFORMATION'!C27,'TRANSCRIPT INFORMATION'!I27)","v":0},{"$f":"+IF('TRANSCRIPT INFORMATION'!L27=\"N/A\",\"N/A\",'TRANSCRIPT INFORMATION'!L27)","v":"N/A"},{"$f":"IF('TRANSCRIPT INFORMATION'!L27=\"N/A\",0,IF('TRANSCRIPT INFORMATION'!#REF!=\"Y\",'TRANSCRIPT INFORMATION'!#REF!,IF('TRANSCRIPT INFORMATION'!K27=\"S\",'TRANSCRIPT INFORMATION'!J27,'TRANSCRIPT INFORMATION'!J27*2/3)))","v":0},{"$f":"+IF('TRANSCRIPT INFORMATION'!O27=\"N/A\",\"N/A \",'TRANSCRIPT INFORMATION'!O27)","v":"N/A "},{"$f":"IF('TRANSCRIPT INFORMATION'!F27=\"Y\",'TRANSCRIPT INFORMATION'!#REF!,0)","v":0},0,0,0,0]
[{"$f":"+'TRANSCRIPT INFORMATION'!A28","v":13},{"$f":"IF('TRANSCRIPT INFORMATION'!E28=\"Y\",+'TRANSCRIPT INFORMATION'!B28,'TRANSCRIPT INFORMATION'!H28)","v":"ENGL 1B"},{"$f":"IF('TRANSCRIPT INFORMATION'!E28=\"Y\",+'TRANSCRIPT INFORMATION'!C28,'TRANSCRIPT INFORMATION'!I28)","v":"ARGUMENT & ANALYSIS"},{"$f":"+IF('TRANSCRIPT INFORMATION'!L28=\"N/A\",\"N/A\",'TRANSCRIPT INFORMATION'!L28)","v":"N/A"},{"$f":"IF('TRANSCRIPT INFORMATION'!L28=\"N/A\",0,IF('TRANSCRIPT INFORMATION'!#REF!=\"Y\",'TRANSCRIPT INFORMATION'!#REF!,IF('TRANSCRIPT INFORMATION'!K28=\"S\",'TRANSCRIPT INFORMATION'!J28,'TRANSCRIPT INFORMATION'!J28*2/3)))","v":0},{"$f":"+IF('TRANSCRIPT INFORMATION'!O28=\"N/A\",\"N/A \",'TRANSCRIPT INFORMATION'!O28)","v":"N/A "},{"$f":"IF('TRANSCRIPT INFORMATION'!F28=\"Y\",'TRANSCRIPT INFORMATION'!#REF!,0)","v":0},0,0,0,0,{"$f":"IF('TRANSCRIPT INFORMATION'!E29=\"Y\",VLOOKUP(D29,$N$1:$O$15,2,FALSE),0)","v":0},{"$f":"IF('TRANSCRIPT INFORMATION'!F28=\"Y\",VLOOKUP(F29,$N$1:$O$15,2,FALSE),0)","v":0},{"$f":"+E29*L29+G29*M29","v":0},{"$f":"IF('TRANSCRIPT INFORMATION'!E29=\"Y\",IF('UNOFFICIAL GPA'!D29=\"N/A\",0,'UNOFFICIAL GPA'!E29),0)","v":0}]
[]
[]
[{"$f":"+'TRANSCRIPT INFORMATION'!A30","v":14},{"$f":"IF('TRANSCRIPT INFORMATION'!E30=\"Y\",+'TRANSCRIPT INFORMATION'!B30,'TRANSCRIPT INFORMATION'!H30)","v":"ENGR 10"},{"$f":"IF('TRANSCRIPT INFORMATION'!E30=\"Y\",+'TRANSCRIPT INFORMATION'!C30,'TRANSCRIPT INFORMATION'!I30)","v":"INTRODUCTION TO ENGINEERING"},{"$f":"+IF('TRANSCRIPT INFORMATION'!L30=\"N/A\",\"N/A\",'TRANSCRIPT INFORMATION'!L30)","v":"N/A"},{"$f":"IF('TRANSCRIPT INFORMATION'!L30=\"N/A\",0,IF('TRANSCRIPT INFORMATION'!E30=\"Y\",'TRANSCRIPT INFORMATION'!D30,IF('TRANSCRIPT INFORMATION'!K30=\"S\",'TRANSCRIPT INFORMATION'!J30,'TRANSCRIPT INFORMATION'!J30*2/3)))","v":0},{"$f":"+IF('TRANSCRIPT INFORMATION'!O30=\"N/A\",\"N/A \",'TRANSCRIPT INFORMATION'!O30)","v":"N/A "},{"$f":"IF('TRANSCRIPT INFORMATION'!F30=\"Y\",'TRANSCRIPT INFORMATION'!D30,0)","v":0},{"$f":"VLOOKUP(D32,$N$1:$O$15,2)","v":0},{"$f":"VLOOKUP(F32,$N$1:$O$15,2)","v":0},{"$f":"+E32*H32+G32*I32","v":0},{"$f":"IF(D32=0,0,E32)+IF(F32=0,0,G32)","v":0},{"$f":"IF('TRANSCRIPT INFORMATION'!E30=\"Y\",VLOOKUP(D32,$N$1:$O$15,2,FALSE),0)","v":0},{"$f":"IF('TRANSCRIPT INFORMATION'!F30=\"Y\",VLOOKUP(F32,$N$1:$O$15,2,FALSE),0)","v":0},{"$f":"+E32*L32+G32*M32","v":0},{"$f":"IF('TRANSCRIPT INFORMATION'!E30=\"Y\",IF('UNOFFICIAL GPA'!D32=\"N/A\",0,'UNOFFICIAL GPA'!E32),0)","v":0}]
[{"$f":"+'TRANSCRIPT INFORMATION'!A31","v":15},{"$f":"IF('TRANSCRIPT INFORMATION'!E31=\"Y\",+'TRANSCRIPT INFORMATION'!B31,'TRANSCRIPT INFORMATION'!H31)","v":"MATE 25"},{"$f":"IF('TRANSCRIPT INFORMATION'!E31=\"Y\",+'TRANSCRIPT INFORMATION'!C31,'TRANSCRIPT INFORMATION'!I31)","v":"INTRODUCTION TO MATERIALS"},{"$f":"+IF('TRANSCRIPT INFORMATION'!L31=\"N/A\",\"N/A\",'TRANSCRIPT INFORMATION'!L31)","v":"N/A"},{"$f":"IF('TRANSCRIPT INFORMATION'!L31=\"N/A\",0,IF('TRANSCRIPT INFORMATION'!E31=\"Y\",'TRANSCRIPT INFORMATION'!D31,IF('TRANSCRIPT INFORMATION'!K31=\"S\",'TRANSCRIPT INFORMATION'!J31,'TRANSCRIPT INFORMATION'!J31*2/3)))","v":0},{"$f":"+IF('TRANSCRIPT INFORMATION'!O31=\"N/A\",\"N/A \",'TRANSCRIPT INFORMATION'!O31)","v":"N/A "},{"$f":"IF('TRANSCRIPT INFORMATION'!F31=\"Y\",'TRANSCRIPT INFORMATION'!D31,0)","v":0},{"$f":"VLOOKUP(D33,$N$1:$O$15,2)","v":0},{"$f":"VLOOKUP(F33,$N$1:$O$15,2)","v":0},{"$f":"+E33*H33+G33*I33","v":0},{"$f":"IF(D33=0,0,E33)+IF(F33=0,0,G33)","v":0},{"$f":"IF('TRANSCRIPT INFORMATION'!E31=\"Y\",VLOOKUP(D33,$N$1:$O$15,2,FALSE),0)","v":0},{"$f":"IF('TRANSCRIPT INFORMATION'!F31=\"Y\",VLOOKUP(F33,$N$1:$O$15,2,FALSE),0)","v":0},{"$f":"+E33*L33+G33*M33","v":0},{"$f":"IF('TRANSCRIPT INFORMATION'!E31=\"Y\",IF('UNOFFICIAL GPA'!D33=\"N/A\",0,'UNOFFICIAL GPA'!E33),0)","v":0}]
[{"$f":"+'TRANSCRIPT INFORMATION'!A32","v":16},{"$f":"IF('TRANSCRIPT INFORMATION'!E32=\"Y\",+'TRANSCRIPT INFORMATION'!B32,'TRANSCRIPT INFORMATION'!H32)","v":"CE 99"},{"$f":"IF('TRANSCRIPT INFORMATION'!E32=\"Y\",+'TRANSCRIPT INFORMATION'!C32,'TRANSCRIPT INFORMATION'!I32)","v":"STATICS"},{"$f":"+IF('TRANSCRIPT INFORMATION'!L32=\"N/A\",\"N/A\",'TRANSCRIPT INFORMATION'!L32)","v":"N/A"},{"$f":"IF('TRANSCRIPT INFORMATION'!L32=\"N/A\",0,IF('TRANSCRIPT INFORMATION'!E32=\"Y\",'TRANSCRIPT INFORMATION'!D32,IF('TRANSCRIPT INFORMATION'!K32=\"S\",'TRANSCRIPT INFORMATION'!J32,'TRANSCRIPT INFORMATION'!J32*2/3)))","v":0},{"$f":"+IF('TRANSCRIPT INFORMATION'!O32=\"N/A\",\"N/A \",'TRANSCRIPT INFORMATION'!O32)","v":"N/A "},{"$f":"IF('TRANSCRIPT INFORMATION'!F32=\"Y\",'TRANSCRIPT INFORMATION'!D32,0)","v":0},{"$f":"VLOOKUP(D34,$N$1:$O$15,2)","v":0},{"$f":"VLOOKUP(F34,$N$1:$O$15,2)","v":0},{"$f":"+E34*H34+G34*I34","v":0},{"$f":"IF(D34=0,0,E34)+IF(F34=0,0,G34)","v":0},{"$f":"IF('TRANSCRIPT INFORMATION'!E32=\"Y\",VLOOKUP(D34,$N$1:$O$15,2,FALSE),0)","v":0},{"$f":"IF('TRANSCRIPT INFORMATION'!F32=\"Y\",VLOOKUP(F34,$N$1:$O$15,2,FALSE),0)","v":0},{"$f":"+E34*L34+G34*M34","v":0},{"$f":"IF('TRANSCRIPT INFORMATION'!E32=\"Y\",IF('UNOFFICIAL GPA'!D34=\"N/A\",0,'UNOFFICIAL GPA'!E34),0)","v":0}]
[{"$f":"+'TRANSCRIPT INFORMATION'!A33","v":17},{"$f":"IF('TRANSCRIPT INFORMATION'!E33=\"Y\",+'TRANSCRIPT INFORMATION'!B33,'TRANSCRIPT INFORMATION'!H33)","v":"EE 98"},{"$f":"IF('TRANSCRIPT INFORMATION'!E33=\"Y\",+'TRANSCRIPT INFORMATION'!C33,'TRANSCRIPT INFORMATION'!I33)","v":"INTRODUCTION TO CIRCUIT ANALYSIS"},{"$f":"+IF('TRANSCRIPT INFORMATION'!L33=\"N/A\",\"N/A\",'TRANSCRIPT INFORMATION'!L33)","v":"N/A"},{"$f":"IF('TRANSCRIPT INFORMATION'!L33=\"N/A\",0,IF('TRANSCRIPT INFORMATION'!E33=\"Y\",'TRANSCRIPT INFORMATION'!D33,IF('TRANSCRIPT INFORMATION'!K33=\"S\",'TRANSCRIPT INFORMATION'!J33,'TRANSCRIPT INFORMATION'!J33*2/3)))","v":0},{"$f":"+IF('TRANSCRIPT INFORMATION'!O33=\"N/A\",\"N/A \",'TRANSCRIPT INFORMATION'!O33)","v":"N/A "},{"$f":"IF('TRANSCRIPT INFORMATION'!F33=\"Y\",'TRANSCRIPT INFORMATION'!D33,0)","v":0},{"$f":"VLOOKUP(D35,$N$1:$O$15,2)","v":0},{"$f":"VLOOKUP(F35,$N$1:$O$15,2)","v":0},{"$f":"+E35*H35+G35*I35","v":0},{"$f":"IF(D35=0,0,E35)+IF(F35=0,0,G35)","v":0},{"$f":"IF('TRANSCRIPT INFORMATION'!E33=\"Y\",VLOOKUP(D35,$N$1:$O$15,2,FALSE),0)","v":0},{"$f":"IF('TRANSCRIPT INFORMATION'!F33=\"Y\",VLOOKUP(F35,$N$1:$O$15,2,FALSE),0)","v":0},{"$f":"+E35*L35+G35*M35","v":0},{"$f":"IF('TRANSCRIPT INFORMATION'!E33=\"Y\",IF('UNOFFICIAL GPA'!D35=\"N/A\",0,'UNOFFICIAL GPA'!E35),0)","v":0}]
[{"$f":"+'TRANSCRIPT INFORMATION'!A40","v":24},{"$f":"IF('TRANSCRIPT INFORMATION'!E40=\"Y\",+'TRANSCRIPT INFORMATION'!B40,'TRANSCRIPT INFORMATION'!H40)","v":"CHEM 112A"},{"$f":"IF('TRANSCRIPT INFORMATION'!E40=\"Y\",+'TRANSCRIPT INFORMATION'!C40,'TRANSCRIPT INFORMATION'!I40)","v":"ORGANIC CHEMISTRY"},{"$f":"+IF('TRANSCRIPT INFORMATION'!L40=\"N/A\",\"N/A\",'TRANSCRIPT INFORMATION'!L40)","v":"N/A"},{"$f":"IF('TRANSCRIPT INFORMATION'!L40=\"N/A\",0,IF('TRANSCRIPT INFORMATION'!E40=\"Y\",'TRANSCRIPT INFORMATION'!D40,IF('TRANSCRIPT INFORMATION'!K40=\"S\",'TRANSCRIPT INFORMATION'!J40,'TRANSCRIPT INFORMATION'!J40*2/3)))","v":0},{"$f":"+IF('TRANSCRIPT INFORMATION'!O40=\"N/A\",\"N/A \",'TRANSCRIPT INFORMATION'!O40)","v":"N/A "},{"$f":"IF('TRANSCRIPT INFORMATION'!F40=\"Y\",'TRANSCRIPT INFORMATION'!D40,0)","v":0},{"$f":"VLOOKUP(D36,$N$1:$O$15,2)","v":0},{"$f":"VLOOKUP(F36,$N$1:$O$15,2)","v":0},{"$f":"+E36*H36+G36*I36","v":0},{"$f":"IF(D36=0,0,E36)+IF(F36=0,0,G36)","v":0},{"$f":"IF('TRANSCRIPT INFORMATION'!E40=\"Y\",VLOOKUP(D36,$N$1:$O$15,2,FALSE),0)","v":0},{"$f":"IF('TRANSCRIPT INFORMATION'!F40=\"Y\",VLOOKUP(F36,$N$1:$O$15,2,FALSE),0)","v":0},{"$f":"+E36*L36+G36*M36","v":0},{"$f":"IF('TRANSCRIPT INFORMATION'!E40=\"Y\",IF('UNOFFICIAL GPA'!D36=\"N/A\",0,'UNOFFICIAL GPA'!E36),0)","v":0}]
["SUBTOTALS",null,null,null,{"$f":"SUM(E32:E36)","v":0},null,{"$f":"SUM(G32:G36)","v":0},{"$f":"SUM(H32:H36)","v":0},0,0,0,0,0,0,0]
[{"$f":"+'TRANSCRIPT INFORMATION'!A42","v":25},{"$f":"IF('TRANSCRIPT INFORMATION'!E42=\"Y\",+'TRANSCRIPT INFORMATION'!B42,'TRANSCRIPT INFORMATION'!H42)","v":"BME 115"},{"$f":"IF('TRANSCRIPT INFORMATION'!E42=\"Y\",+'TRANSCRIPT INFORMATION'!C42,'TRANSCRIPT INFORMATION'!I42)","v":"INTRO TO BIOMEDICAL ENGR"},{"$f":"+IF('TRANSCRIPT INFORMATION'!L42=\"N/A\",\"N/A\",'TRANSCRIPT INFORMATION'!L42)","v":"N/A"},{"$f":"IF('TRANSCRIPT INFORMATION'!L42=\"N/A\",0,IF('TRANSCRIPT INFORMATION'!E42=\"Y\",'TRANSCRIPT INFORMATION'!D42,IF('TRANSCRIPT INFORMATION'!K42=\"S\",'TRANSCRIPT INFORMATION'!J42,'TRANSCRIPT INFORMATION'!J42*2/3)))","v":0},{"$f":"+IF('TRANSCRIPT INFORMATION'!O42=\"N/A\",\"N/A \",'TRANSCRIPT INFORMATION'!O42)","v":"N/A "},{"$f":"IF('TRANSCRIPT INFORMATION'!F42=\"Y\",'TRANSCRIPT INFORMATION'!D42,0)","v":0},{"$f":"VLOOKUP(D38,$N$1:$O$15,2)","v":0},{"$f":"VLOOKUP(F38,$N$1:$O$15,2)","v":0},{"$f":"+E38*H38+G38*I38","v":0},{"$f":"IF(D38=0,0,E38)+IF(F38=0,0,G38)","v":0},{"$f":"IF('TRANSCRIPT INFORMATION'!E42=\"Y\",VLOOKUP(D38,$N$1:$O$15,2,FALSE),0)","v":0},{"$f":"IF('TRANSCRIPT INFORMATION'!F42=\"Y\",VLOOKUP(F38,$N$1:$O$15,2,FALSE),0)","v":0},{"$f":"+E38*L38+G38*M38","v":0},{"$f":"IF('TRANSCRIPT INFORMATION'!E42=\"Y\",IF('UNOFFICIAL GPA'!D38=\"N/A\",0,'UNOFFICIAL GPA'!E38),0)","v":0}]
[{"$f":"+'TRANSCRIPT INFORMATION'!A43","v":26},{"$f":"IF('TRANSCRIPT INFORMATION'!E43=\"Y\",+'TRANSCRIPT INFORMATION'!B43,'TRANSCRIPT INFORMATION'!H43)","v":"BME 117"},{"$f":"IF('TRANSCRIPT INFORMATION'!E43=\"Y\",+'TRANSCRIPT INFORMATION'!C43,'TRANSCRIPT INFORMATION'!I43)","v":"BIOTRANSPORT PHENOMENA"},{"$f":"+IF('TRANSCRIPT INFORMATION'!L43=\"N/A\",\"N/A\",'TRANSCRIPT INFORMATION'!L43)","v":"N/A"},{"$f":"IF('TRANSCRIPT INFORMATION'!L43=\"N/A\",0,IF('TRANSCRIPT INFORMATION'!E43=\"Y\",'TRANSCRIPT INFORMATION'!D43,IF('TRANSCRIPT INFORMATION'!K43=\"S\",'TRANSCRIPT INFORMATION'!J43,'TRANSCRIPT INFORMATION'!J43*2/3)))","v":0},{"$f":"+IF('TRANSCRIPT INFORMATION'!O43=\"N/A\",\"N/A \",'TRANSCRIPT INFORMATION'!O43)","v":"N/A "},{"$f":"IF('TRANSCRIPT INFORMATION'!F43=\"Y\",'TRANSCRIPT INFORMATION'!D43,0)","v":0},0,0,0,0,{"$f":"IF('TRANSCRIPT INFORMATION'!E43=\"Y\",VLOOKUP(D39,$N$1:$O$15,2,FALSE),0)","v":0},{"$f":"IF('TRANSCRIPT INFORMATION'!F43=\"Y\",VLOOKUP(F39,$N$1:$O$15,2,FALSE),0)","v":0},0,{"$f":"IF('TRANSCRIPT INFORMATION'!E43=\"Y\",IF('UNOFFICIAL GPA'!D39=\"N/A\",0,'UNOFFICIAL GPA'!E39),0)","v":0}]
[{"$f":"+'TRANSCRIPT INFORMATION'!A44","v":27},{"$f":"IF('TRANSCRIPT INFORMATION'!E44=\"Y\",+'TRANSCRIPT INFORMATION'!B44,'TRANSCRIPT INFORMATION'!H44)","v":"BME 177"},{"$f":"IF('TRANSCRIPT INFORMATION'!E44=\"Y\",+'TRANSCRIPT INFORMATION'!C44,'TRANSCRIPT INFORMATION'!I44)","v":"PHYSIOLOGY FOR ENGINEERS"},{"$f":"+IF('TRANSCRIPT INFORMATION'!L44=\"N/A\",\"N/A\",'TRANSCRIPT INFORMATION'!L44)","v":"N/A"},{"$f":"IF('TRANSCRIPT INFORMATION'!L44=\"N/A\",0,IF('TRANSCRIPT INFORMATION'!E44=\"Y\",'TRANSCRIPT INFORMATION'!D44,IF('TRANSCRIPT INFORMATION'!K44=\"S\",'TRANSCRIPT INFORMATION'!J44,'TRANSCRIPT INFORMATION'!J44*2/3)))","v":0},{"$f":"+IF('TRANSCRIPT INFORMATION'!O44=\"N/A\",\"N/A \",'TRANSCRIPT INFORMATION'!O44)","v":"N/A "},{"$f":"IF('TRANSCRIPT INFORMATION'!F44=\"Y\",'TRANSCRIPT INFORMATION'!D44,0)","v":0},0,0,0,0,{"$f":"IF('TRANSCRIPT INFORMATION'!E44=\"Y\",VLOOKUP(D40,$N$1:$O$15,2,FALSE),0)","v":0},{"$f":"IF('TRANSCRIPT INFORMATION'!F44=\"Y\",VLOOKUP(F40,$N$1:$O$15,2,FALSE),0)","v":0},0,{"$f":"IF('TRANSCRIPT INFORMATION'!E44=\"Y\",IF('UNOFFICIAL GPA'!D40=\"N/A\",0,'UNOFFICIAL GPA'!E40),0)","v":0}]
[{"$f":"+'TRANSCRIPT INFORMATION'!A45","v":28},{"$f":"IF('TRANSCRIPT INFORMATION'!E45=\"Y\",+'TRANSCRIPT INFORMATION'!B45,'TRANSCRIPT INFORMATION'!H45)","v":"CHE 162"},{"$f":"IF('TRANSCRIPT INFORMATION'!E45=\"Y\",+'TRANSCRIPT INFORMATION'!C45,'TRANSCRIPT INFORMATION'!I45)","v":"ENGINEERING STATISTICS"},{"$f":"+IF('TRANSCRIPT INFORMATION'!L45=\"N/A\",\"N/A\",'TRANSCRIPT INFORMATION'!L45)","v":"N/A"},{"$f":"IF('TRANSCRIPT INFORMATION'!L45=\"N/A\",0,IF('TRANSCRIPT INFORMATION'!E45=\"Y\",'TRANSCRIPT INFORMATION'!D45,IF('TRANSCRIPT INFORMATION'!K45=\"S\",'TRANSCRIPT INFORMATION'!J45,'TRANSCRIPT INFORMATION'!J45*2/3)))","v":0},{"$f":"+IF('TRANSCRIPT INFORMATION'!O45=\"N/A\",\"N/A \",'TRANSCRIPT INFORMATION'!O45)","v":"N/A "},{"$f":"IF('TRANSCRIPT INFORMATION'!F45=\"Y\",'TRANSCRIPT INFORMATION'!D45,0)","v":0},0,0,0,0,{"$f":"IF('TRANSCRIPT INFORMATION'!E45=\"Y\",VLOOKUP(D41,$N$1:$O$15,2,FALSE),0)","v":0},{"$f":"IF('TRANSCRIPT INFORMATION'!F45=\"Y\",VLOOKUP(F41,$N$1:$O$15,2,FALSE),0)","v":0},0,{"$f":"IF('TRANSCRIPT INFORMATION'!E45=\"Y\",IF('UNOFFICIAL GPA'!D41=\"N/A\",0,'UNOFFICIAL GPA'!E41),0)","v":0}]
[{"$f":"+'TRANSCRIPT INFORMATION'!A46","v":29},{"$f":"IF('TRANSCRIPT INFORMATION'!E46=\"Y\",+'TRANSCRIPT INFORMATION'!B46,'TRANSCRIPT INFORMATION'!H46)","v":"ENGR 100W"},{"$f":"IF('TRANSCRIPT INFORMATION'!E46=\"Y\",+'TRANSCRIPT INFORMATION'!C46,'TRANSCRIPT INFORMATION'!I46)","v":"ENGINEERING REPORTS"},{"$f":"+IF('TRANSCRIPT INFORMATION'!L46=\"N/A\",\"N/A\",'TRANSCRIPT INFORMATION'!L46)","v":"N/A"},{"$f":"IF('TRANSCRIPT INFORMATION'!L46=\"N/A\",0,IF('TRANSCRIPT INFORMATION'!E46=\"Y\",'TRANSCRIPT INFORMATION'!D46,IF('TRANSCRIPT INFORMATION'!K46=\"S\",'TRANSCRIPT INFORMATION'!J46,'TRANSCRIPT INFORMATION'!J46*2/3)))","v":0},{"$f":"+IF('TRANSCRIPT INFORMATION'!O46=\"N/A\",\"N/A \",'TRANSCRIPT INFORMATION'!O46)","v":"N/A "},{"$f":"IF('TRANSCRIPT INFORMATION'!F46=\"Y\",'TRANSCRIPT INFORMATION'!D46,0)","v":0},0,0,0,0,{"$f":"IF('TRANSCRIPT INFORMATION'!E46=\"Y\",VLOOKUP(D42,$N$1:$O$15,2,FALSE),0)","v":0},{"$f":"IF('TRANSCRIPT INFORMATION'!F46=\"Y\",VLOOKUP(F42,$N$1:$O$15,2,FALSE),0)","v":0},0,{"$f":"IF('TRANSCRIPT INFORMATION'!E46=\"Y\",IF('UNOFFICIAL GPA'!D42=\"N/A\",0,'UNOFFICIAL GPA'!E42),0)","v":0}]
[{"$f":"+'TRANSCRIPT INFORMATION'!A47","v":30},{"$f":"IF('TRANSCRIPT INFORMATION'!E47=\"Y\",+'TRANSCRIPT INFORMATION'!B47,'TRANSCRIPT INFORMATION'!H47)","v":"BME 173"},{"$f":"IF('TRANSCRIPT INFORMATION'!E47=\"Y\",+'TRANSCRIPT INFORMATION'!C47,'TRANSCRIPT INFORMATION'!I47)","v":"CLINICAL TRIALS"},{"$f":"+IF('TRANSCRIPT INFORMATION'!L47=\"N/A\",\"N/A\",'TRANSCRIPT INFORMATION'!L47)","v":"N/A"},{"$f":"IF('TRANSCRIPT INFORMATION'!L47=\"N/A\",0,IF('TRANSCRIPT INFORMATION'!E47=\"Y\",'TRANSCRIPT INFORMATION'!D47,IF('TRANSCRIPT INFORMATION'!K47=\"S\",'TRANSCRIPT INFORMATION'!J47,'TRANSCRIPT INFORMATION'!J47*2/3)))","v":0},{"$f":"+IF('TRANSCRIPT INFORMATION'!O47=\"N/A\",\"N/A \",'TRANSCRIPT INFORMATION'!O47)","v":"N/A "},{"$f":"IF('TRANSCRIPT INFORMATION'!F47=\"Y\",'TRANSCRIPT INFORMATION'!D47,0)","v":0},0,0,0,0,{"$f":"IF('TRANSCRIPT INFORMATION'!E47=\"Y\",VLOOKUP(D43,$N$1:$O$15,2,FALSE),0)","v":0},{"$f":"IF('TRANSCRIPT INFORMATION'!F47=\"Y\",VLOOKUP(F43,$N$1:$O$15,2,FALSE),0)","v":0},0,{"$f":"IF('TRANSCRIPT INFORMATION'!E47=\"Y\",IF('UNOFFICIAL GPA'!D43=\"N/A\",0,'UNOFFICIAL GPA'!E43),0)","v":0}]
[{"$f":"+'TRANSCRIPT INFORMATION'!A48","v":31},{"$f":"IF('TRANSCRIPT INFORMATION'!E48=\"Y\",+'TRANSCRIPT INFORMATION'!B48,'TRANSCRIPT INFORMATION'!H48)","v":"BME 174"},{"$f":"IF('TRANSCRIPT INFORMATION'!E48=\"Y\",+'TRANSCRIPT INFORMATION'!C48,'TRANSCRIPT INFORMATION'!I48)","v":"REGULATORY AND DESIGN REQ."},{"$f":"+IF('TRANSCRIPT INFORMATION'!L48=\"N/A\",\"N/A\",'TRANSCRIPT INFORMATION'!L48)","v":"N/A"},{"$f":"IF('TRANSCRIPT INFORMATION'!L48=\"N/A\",0,IF('TRANSCRIPT INFORMATION'!E48=\"Y\",'TRANSCRIPT INFORMATION'!D48,IF('TRANSCRIPT INFORMATION'!K48=\"S\",'TRANSCRIPT INFORMATION'!J48,'TRANSCRIPT INFORMATION'!J48*2/3)))","v":0},{"$f":"+IF('TRANSCRIPT INFORMATION'!O48=\"N/A\",\"N/A \",'TRANSCRIPT INFORMATION'!O48)","v":"N/A "},{"$f":"IF('TRANSCRIPT INFORMATION'!F48=\"Y\",'TRANSCRIPT INFORMATION'!D48,0)","v":0},0,0,0,0,{"$f":"IF('TRANSCRIPT INFORMATION'!E48=\"Y\",VLOOKUP(D44,$N$1:$O$15,2,FALSE),0)","v":0},{"$f":"IF('TRANSCRIPT INFORMATION'!F48=\"Y\",VLOOKUP(F44,$N$1:$O$15,2,FALSE),0)","v":0},0,{"$f":"IF('TRANSCRIPT INFORMATION'!E48=\"Y\",IF('UNOFFICIAL GPA'!D44=\"N/A\",0,'UNOFFICIAL GPA'!E44),0)","v":0}]
[{"$f":"+'TRANSCRIPT INFORMATION'!A49","v":32},{"$f":"IF('TRANSCRIPT INFORMATION'!E49=\"Y\",+'TRANSCRIPT INFORMATION'!B49,'TRANSCRIPT INFORMATION'!H49)","v":"BME 198A"},{"$f":"IF('TRANSCRIPT INFORMATION'!E49=\"Y\",+'TRANSCRIPT INFORMATION'!C49,'TRANSCRIPT INFORMATION'!I49)","v":"SR. PROJECT 1"},{"$f":"+IF('TRANSCRIPT INFORMATION'!L49=\"N/A\",\"N/A\",'TRANSCRIPT INFORMATION'!L49)","v":"N/A"},{"$f":"IF('TRANSCRIPT INFORMATION'!L49=\"N/A\",0,IF('TRANSCRIPT INFORMATION'!E49=\"Y\",'TRANSCRIPT INFORMATION'!D49,IF('TRANSCRIPT INFORMATION'!K49=\"S\",'TRANSCRIPT INFORMATION'!J49,'TRANSCRIPT INFORMATION'!J49*2/3)))","v":0},{"$f":"+IF('TRANSCRIPT INFORMATION'!O49=\"N/A\",\"N/A \",'TRANSCRIPT INFORMATION'!O49)","v":"N/A "},{"$f":"IF('TRANSCRIPT INFORMATION'!F49=\"Y\",'TRANSCRIPT INFORMATION'!D49,0)","v":0},0,0,0,0,{"$f":"IF('TRANSCRIPT INFORMATION'!E49=\"Y\",VLOOKUP(D45,$N$1:$O$15,2,FALSE),0)","v":0},{"$f":"IF('TRANSCRIPT INFORMATION'!F49=\"Y\",VLOOKUP(F45,$N$1:$O$15,2,FALSE),0)","v":0},0,{"$f":"IF('TRANSCRIPT INFORMATION'!E49=\"Y\",IF('UNOFFICIAL GPA'!D45=\"N/A\",0,'UNOFFICIAL GPA'!E45),0)","v":0}]
[{"$f":"+'TRANSCRIPT INFORMATION'!A50","v":33},{"$f":"IF('TRANSCRIPT INFORMATION'!E50=\"Y\",+'TRANSCRIPT INFORMATION'!B50,'TRANSCRIPT INFORMATION'!H50)","v":"BME 198B"},{"$f":"IF('TRANSCRIPT INFORMATION'!E50=\"Y\",+'TRANSCRIPT INFORMATION'!C50,'TRANSCRIPT INFORMATION'!I50)","v":"SR. PROJECT 2"},{"$f":"+IF('TRANSCRIPT INFORMATION'!L50=\"N/A\",\"N/A\",'TRANSCRIPT INFORMATION'!L50)","v":"N/A"},{"$f":"IF('TRANSCRIPT INFORMATION'!L50=\"N/A\",0,IF('TRANSCRIPT INFORMATION'!E50=\"Y\",'TRANSCRIPT INFORMATION'!D50,IF('TRANSCRIPT INFORMATION'!K50=\"S\",'TRANSCRIPT INFORMATION'!J50,'TRANSCRIPT INFORMATION'!J50*2/3)))","v":0},{"$f":"+IF('TRANSCRIPT INFORMATION'!O50=\"N/A\",\"N/A \",'TRANSCRIPT INFORMATION'!O50)","v":"N/A "},{"$f":"IF('TRANSCRIPT INFORMATION'!F50=\"Y\",'TRANSCRIPT INFORMATION'!D50,0)","v":0},0,0,0,0,{"$f":"IF('TRANSCRIPT INFORMATION'!E50=\"Y\",VLOOKUP(D46,$N$1:$O$15,2,FALSE),0)","v":0},{"$f":"IF('TRANSCRIPT INFORMATION'!F50=\"Y\",VLOOKUP(F46,$N$1:$O$15,2,FALSE),0)","v":0},0,{"$f":"IF('TRANSCRIPT INFORMATION'!E50=\"Y\",IF('UNOFFICIAL GPA'!D46=\"N/A\",0,'UNOFFICIAL GPA'!E46),0)","v":0}]
[{"$f":"+'TRANSCRIPT INFORMATION'!A51","v":34},{"$f":"IF('TRANSCRIPT INFORMATION'!E51=\"Y\",+'TRANSCRIPT INFORMATION'!B51,'TRANSCRIPT INFORMATION'!H51)","v":0},{"$f":"IF('TRANSCRIPT INFORMATION'!E51=\"Y\",+'TRANSCRIPT INFORMATION'!C51,'TRANSCRIPT INFORMATION'!I51)","v":0},{"$f":"+IF('TRANSCRIPT INFORMATION'!L51=\"N/A\",\"N/A\",'TRANSCRIPT INFORMATION'!L51)","v":"N/A"},{"$f":"IF('TRANSCRIPT INFORMATION'!L51=\"N/A\",0,IF('TRANSCRIPT INFORMATION'!E51=\"Y\",'TRANSCRIPT INFORMATION'!D51,IF('TRANSCRIPT INFORMATION'!K51=\"S\",'TRANSCRIPT INFORMATION'!J51,'TRANSCRIPT INFORMATION'!J51*2/3)))","v":0},{"$f":"+IF('TRANSCRIPT INFORMATION'!O51=\"N/A\",\"N/A \",'TRANSCRIPT INFORMATION'!O51)","v":"N/A "},{"$f":"IF('TRANSCRIPT INFORMATION'!F51=\"Y\",'TRANSCRIPT INFORMATION'!D51,0)","v":0},0,0,0,0,{"$f":"IF('TRANSCRIPT INFORMATION'!E51=\"Y\",VLOOKUP(D47,$N$1:$O$15,2,FALSE),0)","v":0},{"$f":"IF('TRANSCRIPT INFORMATION'!F51=\"Y\",VLOOKUP(F47,$N$1:$O$15,2,FALSE),0)","v":0},0,{"$f":"IF('TRANSCRIPT INFORMATION'!E51=\"Y\",IF('UNOFFICIAL GPA'!D47=\"N/A\",0,'UNOFFICIAL GPA'!E47),0)","v":0}]
[{"$f":"+'TRANSCRIPT INFORMATION'!A52","v":35},{"$f":"IF('TRANSCRIPT INFORMATION'!E52=\"Y\",+'TRANSCRIPT INFORMATION'!B52,'TRANSCRIPT INFORMATION'!H52)","v":"ENGR 195A"},{"$f":"IF('TRANSCRIPT INFORMATION'!E52=\"Y\",+'TRANSCRIPT INFORMATION'!C52,'TRANSCRIPT INFORMATION'!I52)","v":"GLOBAL/SOCIAL ISSUES 1"},{"$f":"+IF('TRANSCRIPT INFORMATION'!L52=\"N/A\",\"N/A\",'TRANSCRIPT INFORMATION'!L52)","v":"N/A"},{"$f":"IF('TRANSCRIPT INFORMATION'!L52=\"N/A\",0,IF('TRANSCRIPT INFORMATION'!E52=\"Y\",'TRANSCRIPT INFORMATION'!D52,IF('TRANSCRIPT INFORMATION'!K52=\"S\",'TRANSCRIPT INFORMATION'!J52,'TRANSCRIPT INFORMATION'!J52*2/3)))","v":0},{"$f":"+IF('TRANSCRIPT INFORMATION'!O52=\"N/A\",\"N/A \",'TRANSCRIPT INFORMATION'!O52)","v":"N/A "},{"$f":"IF('TRANSCRIPT INFORMATION'!F52=\"Y\",'TRANSCRIPT INFORMATION'!D52,0)","v":0},0,0,0,0,{"$f":"IF('TRANSCRIPT INFORMATION'!E52=\"Y\",VLOOKUP(D48,$N$1:$O$15,2,FALSE),0)","v":0},{"$f":"IF('TRANSCRIPT INFORMATION'!F52=\"Y\",VLOOKUP(F48,$N$1:$O$15,2,FALSE),0)","v":0},0,{"$f":"IF('TRANSCRIPT INFORMATION'!E52=\"Y\",IF('UNOFFICIAL GPA'!D48=\"N/A\",0,'UNOFFICIAL GPA'!E48),0)","v":0}]
[{"$f":"+'TRANSCRIPT INFORMATION'!A53","v":36},{"$f":"IF('TRANSCRIPT INFORMATION'!E53=\"Y\",+'TRANSCRIPT INFORMATION'!B53,'TRANSCRIPT INFORMATION'!H53)","v":"ENGR 195B"},{"$f":"IF('TRANSCRIPT INFORMATION'!E53=\"Y\",+'TRANSCRIPT INFORMATION'!C53,'TRANSCRIPT INFORMATION'!I53)","v":"GLOBAL/SOCIAL ISSUES 2"},{"$f":"+IF('TRANSCRIPT INFORMATION'!L53=\"N/A\",\"N/A\",'TRANSCRIPT INFORMATION'!L53)","v":"N/A"},{"$f":"IF('TRANSCRIPT INFORMATION'!L53=\"N/A\",0,IF('TRANSCRIPT INFORMATION'!E53=\"Y\",'TRANSCRIPT INFORMATION'!D53,IF('TRANSCRIPT INFORMATION'!K53=\"S\",'TRANSCRIPT INFORMATION'!J53,'TRANSCRIPT INFORMATION'!J53*2/3)))","v":0},{"$f":"+IF('TRANSCRIPT INFORMATION'!O53=\"N/A\",\"N/A \",'TRANSCRIPT INFORMATION'!O53)","v":"N/A "},{"$f":"IF('TRANSCRIPT INFORMATION'!F53=\"Y\",'TRANSCRIPT INFORMATION'!D53,0)","v":0},0,0,0,0,{"$f":"IF('TRANSCRIPT INFORMATION'!E53=\"Y\",VLOOKUP(D49,$N$1:$O$15,2,FALSE),0)","v":0},{"$f":"IF('TRANSCRIPT INFORMATION'!F53=\"Y\",VLOOKUP(F49,$N$1:$O$15,2,FALSE),0)","v":0},0,{"$f":"IF('TRANSCRIPT INFORMATION'!E53=\"Y\",IF('UNOFFICIAL GPA'!D49=\"N/A\",0,'UNOFFICIAL GPA'!E49),0)","v":0}]
[]
[]
[]
[]
[]
[]
[]
[{"$f":"+'TRANSCRIPT INFORMATION'!A54","v":37},{"$f":"IF('TRANSCRIPT INFORMATION'!E54=\"Y\",+'TRANSCRIPT INFORMATION'!B54,'TRANSCRIPT INFORMATION'!H54)","v":0},{"$f":"IF('TRANSCRIPT INFORMATION'!E54=\"Y\",+'TRANSCRIPT INFORMATION'!C54,'TRANSCRIPT INFORMATION'!I54)","v":0},{"$f":"+IF('TRANSCRIPT INFORMATION'!L54=\"N/A\",\"N/A\",'TRANSCRIPT INFORMATION'!L54)","v":"N/A"},{"$f":"IF('TRANSCRIPT INFORMATION'!L54=\"N/A\",0,IF('TRANSCRIPT INFORMATION'!E54=\"Y\",'TRANSCRIPT INFORMATION'!D54,IF('TRANSCRIPT INFORMATION'!K54=\"S\",'TRANSCRIPT INFORMATION'!J54,'TRANSCRIPT INFORMATION'!J54*2/3)))","v":0},{"$f":"+IF('TRANSCRIPT INFORMATION'!O54=\"N/A\",\"N/A \",'TRANSCRIPT INFORMATION'!O54)","v":"N/A "},{"$f":"IF('TRANSCRIPT INFORMATION'!F54=\"Y\",'TRANSCRIPT INFORMATION'!D54,0)","v":0},0,0,0,0,{"$f":"IF('TRANSCRIPT INFORMATION'!E54=\"Y\",VLOOKUP(D57,$N$1:$O$15,2,FALSE),0)","v":0},{"$f":"IF('TRANSCRIPT INFORMATION'!F54=\"Y\",VLOOKUP(F57,$N$1:$O$15,2,FALSE),0)","v":0},0,{"$f":"IF('TRANSCRIPT INFORMATION'!E54=\"Y\",IF('UNOFFICIAL GPA'!D57=\"N/A\",0,'UNOFFICIAL GPA'!E57),0)","v":0}]
["SUBTOTALS",null,null,null,{"$f":"SUM(E38:E57)","v":0},null,{"$f":"SUM(G38:G57)","v":0},{"$f":"SUM(H38:H57)","v":0},0,0,0,0,0,0,0]
[{"$f":"+'TRANSCRIPT INFORMATION'!A56","v":38},{"$f":"IF('TRANSCRIPT INFORMATION'!E56=\"Y\",+'TRANSCRIPT INFORMATION'!B56,'TRANSCRIPT INFORMATION'!H56)","v":0},{"$f":"IF('TRANSCRIPT INFORMATION'!E56=\"Y\",+'TRANSCRIPT INFORMATION'!C56,'TRANSCRIPT INFORMATION'!I56)","v":0},{"$f":"+IF('TRANSCRIPT INFORMATION'!L56=\"N/A\",\"N/A\",'TRANSCRIPT INFORMATION'!L56)","v":"N/A"},{"$f":"IF('TRANSCRIPT INFORMATION'!L56=\"N/A\",0,IF('TRANSCRIPT INFORMATION'!E56=\"Y\",'TRANSCRIPT INFORMATION'!D56,IF('TRANSCRIPT INFORMATION'!K56=\"S\",'TRANSCRIPT INFORMATION'!J56,'TRANSCRIPT INFORMATION'!J56*2/3)))","v":0},{"$f":"+IF('TRANSCRIPT INFORMATION'!O56=\"N/A\",\"N/A \",'TRANSCRIPT INFORMATION'!O56)","v":"N/A "},{"$f":"IF('TRANSCRIPT INFORMATION'!F56=\"Y\",'TRANSCRIPT INFORMATION'!D56,0)","v":0},{"$f":"VLOOKUP(D59,$N$1:$O$15,2)","v":0},{"$f":"VLOOKUP(F59,$N$1:$O$15,2)","v":0},{"$f":"+E59*H59+G59*I59","v":0},{"$f":"IF(D59=0,0,E59)+IF(F59=0,0,G59)","v":0},{"$f":"IF('TRANSCRIPT INFORMATION'!E56=\"Y\",VLOOKUP(D59,$N$1:$O$15,2,FALSE),0)","v":0},{"$f":"IF('TRANSCRIPT INFORMATION'!F56=\"Y\",VLOOKUP(F59,$N$1:$O$15,2,FALSE),0)","v":0},{"$f":"+E59*L59+G59*M59","v":0},{"$f":"IF('TRANSCRIPT INFORMATION'!E56=\"Y\",IF('UNOFFICIAL GPA'!D59=\"N/A\",0,'UNOFFICIAL GPA'!E59),0)","v":0}]
[{"$f":"+'TRANSCRIPT INFORMATION'!A57","v":39},{"$f":"IF('TRANSCRIPT INFORMATION'!E57=\"Y\",+'TRANSCRIPT INFORMATION'!B57,'TRANSCRIPT INFORMATION'!H57)","v":0},{"$f":"IF('TRANSCRIPT INFORMATION'!E57=\"Y\",+'TRANSCRIPT INFORMATION'!C57,'TRANSCRIPT INFORMATION'!I57)","v":0},{"$f":"+IF('TRANSCRIPT INFORMATION'!L57=\"N/A\",\"N/A\",'TRANSCRIPT INFORMATION'!L57)","v":"N/A"},{"$f":"IF('TRANSCRIPT INFORMATION'!L57=\"N/A\",0,IF('TRANSCRIPT INFORMATION'!E57=\"Y\",'TRANSCRIPT INFORMATION'!D57,IF('TRANSCRIPT INFORMATION'!K57=\"S\",'TRANSCRIPT INFORMATION'!J57,'TRANSCRIPT INFORMATION'!J57*2/3)))","v":0},{"$f":"+IF('TRANSCRIPT INFORMATION'!O57=\"N/A\",\"N/A \",'TRANSCRIPT INFORMATION'!O57)","v":"N/A "},{"$f":"IF('TRANSCRIPT INFORMATION'!F57=\"Y\",'TRANSCRIPT INFORMATION'!D57,0)","v":0},{"$f":"VLOOKUP(D60,$N$1:$O$15,2)","v":0},{"$f":"VLOOKUP(F60,$N$1:$O$15,2)","v":0},{"$f":"+E60*H60+G60*I60","v":0},{"$f":"IF(D60=0,0,E60)+IF(F60=0,0,G60)","v":0},{"$f":"IF('TRANSCRIPT INFORMATION'!E57=\"Y\",VLOOKUP(D60,$N$1:$O$15,2,FALSE),0)","v":0},{"$f":"IF('TRANSCRIPT INFORMATION'!F57=\"Y\",VLOOKUP(F60,$N$1:$O$15,2,FALSE),0)","v":0},{"$f":"+E60*L60+G60*M60","v":0},{"$f":"IF('TRANSCRIPT INFORMATION'!E57=\"Y\",IF('UNOFFICIAL GPA'!D60=\"N/A\",0,'UNOFFICIAL GPA'!E60),0)","v":0}]
[{"$f":"+'TRANSCRIPT INFORMATION'!A58","v":40},{"$f":"IF('TRANSCRIPT INFORMATION'!E58=\"Y\",+'TRANSCRIPT INFORMATION'!B58,'TRANSCRIPT INFORMATION'!H58)","v":" "},{"$f":"IF('TRANSCRIPT INFORMATION'!E58=\"Y\",+'TRANSCRIPT INFORMATION'!C58,'TRANSCRIPT INFORMATION'!I58)","v":0},{"$f":"+IF('TRANSCRIPT INFORMATION'!L58=\"N/A\",\"N/A\",'TRANSCRIPT INFORMATION'!L58)","v":"N/A"},{"$f":"IF('TRANSCRIPT INFORMATION'!L58=\"N/A\",0,IF('TRANSCRIPT INFORMATION'!E58=\"Y\",'TRANSCRIPT INFORMATION'!D58,IF('TRANSCRIPT INFORMATION'!K58=\"S\",'TRANSCRIPT INFORMATION'!J58,'TRANSCRIPT INFORMATION'!J58*2/3)))","v":0},{"$f":"+IF('TRANSCRIPT INFORMATION'!O58=\"N/A\",\"N/A \",'TRANSCRIPT INFORMATION'!O58)","v":"N/A "},{"$f":"IF('TRANSCRIPT INFORMATION'!F58=\"Y\",'TRANSCRIPT INFORMATION'!D58,0)","v":0},{"$f":"VLOOKUP(D61,$N$1:$O$15,2)","v":0},{"$f":"VLOOKUP(F61,$N$1:$O$15,2)","v":0},{"$f":"+E61*H61+G61*I61","v":0},{"$f":"IF(D61=0,0,E61)+IF(F61=0,0,G61)","v":0},{"$f":"IF('TRANSCRIPT INFORMATION'!E58=\"Y\",VLOOKUP(D61,$N$1:$O$15,2,FALSE),0)","v":0},{"$f":"IF('TRANSCRIPT INFORMATION'!F58=\"Y\",VLOOKUP(F61,$N$1:$O$15,2,FALSE),0)","v":0},{"$f":"+E61*L61+G61*M61","v":0},{"$f":"IF('TRANSCRIPT INFORMATION'!E58=\"Y\",IF('UNOFFICIAL GPA'!D61=\"N/A\",0,'UNOFFICIAL GPA'!E61),0)","v":0}]
[{"$f":"+'TRANSCRIPT INFORMATION'!A59","v":41},{"$f":"IF('TRANSCRIPT INFORMATION'!E59=\"Y\",+'TRANSCRIPT INFORMATION'!B59,'TRANSCRIPT INFORMATION'!H59)","v":0},{"$f":"IF('TRANSCRIPT INFORMATION'!E59=\"Y\",+'TRANSCRIPT INFORMATION'!C59,'TRANSCRIPT INFORMATION'!I59)","v":0},{"$f":"+IF('TRANSCRIPT INFORMATION'!L59=\"N/A\",\"N/A\",'TRANSCRIPT INFORMATION'!L59)","v":"N/A"},{"$f":"IF('TRANSCRIPT INFORMATION'!L59=\"N/A\",0,IF('TRANSCRIPT INFORMATION'!E59=\"Y\",'TRANSCRIPT INFORMATION'!D59,IF('TRANSCRIPT INFORMATION'!K59=\"S\",'TRANSCRIPT INFORMATION'!J59,'TRANSCRIPT INFORMATION'!J59*2/3)))","v":0},{"$f":"+IF('TRANSCRIPT INFORMATION'!O59=\"N/A\",\"N/A \",'TRANSCRIPT INFORMATION'!O59)","v":"N/A "},{"$f":"IF('TRANSCRIPT INFORMATION'!F59=\"Y\",'TRANSCRIPT INFORMATION'!D59,0)","v":0},{"$f":"VLOOKUP(D62,$N$1:$O$15,2)","v":0},{"$f":"VLOOKUP(F62,$N$1:$O$15,2)","v":0},{"$f":"+E62*H62+G62*I62","v":0},{"$f":"IF(D62=0,0,E62)+IF(F62=0,0,G62)","v":0},{"$f":"IF('TRANSCRIPT INFORMATION'!E59=\"Y\",VLOOKUP(D62,$N$1:$O$15,2,FALSE),0)","v":0},{"$f":"IF('TRANSCRIPT INFORMATION'!F59=\"Y\",VLOOKUP(F62,$N$1:$O$15,2,FALSE),0)","v":0},{"$f":"+E62*L62+G62*M62","v":0},{"$f":"IF('TRANSCRIPT INFORMATION'!E59=\"Y\",IF('UNOFFICIAL GPA'!D62=\"N/A\",0,'UNOFFICIAL GPA'!E62),0)","v":0}]
["SUBTOTALS",null,null,null,{"$f":"SUM(E59:E62)","v":0},null,{"$f":"SUM(G59:G62)","v":0},{"$f":"SUM(H59:H62)","v":0},0,0,0,0,0,0,0]

{"sheet":"SCHEDULE","index":6,"n_rows":96,"n_cols":9,"rows_kept":96,"cut":false,"hidden":false,"merged":[]}
["This sheet provides a summary of the schedule to complete Major Courses for the Program. "]
["The schedule is generated by a macro. Enter Alt F8, then run the macro called PS. "]
[]
["Data from Transcript & GE Sheets",null,null,null,null,"Schedule for Major and GE Courses"]
["COURSE","GRADE","SEMESTER","YEAR",null,"COURSE","GRADE","SEMESTER","YEAR"]
[{"$f":"+'TRANSCRIPT INFORMATION'!B16","v":"MATH 30"},{"$f":"IF(+'TRANSCRIPT INFORMATION'!L16=\"\",0,IF('TRANSCRIPT INFORMATION'!L16=\"N/A\",0,'TRANSCRIPT INFORMATION'!L16))","v":0},{"$f":"+'TRANSCRIPT INFORMATION'!M16","v":0},{"$f":"+'TRANSCRIPT INFORMATION'!N16","v":0},null,0,0,0,0]
[{"$f":"+'TRANSCRIPT INFORMATION'!B17","v":"MATH 31"},{"$f":"IF(+'TRANSCRIPT INFORMATION'!L17=\"\",0,IF('TRANSCRIPT INFORMATION'!L17=\"N/A\",0,'TRANSCRIPT INFORMATION'!L17))","v":0},{"$f":"+'TRANSCRIPT INFORMATION'!M17","v":" "},{"$f":"+'TRANSCRIPT INFORMATION'!N17","v":0},null,0,0,0,0]
[{"$f":"+'TRANSCRIPT INFORMATION'!B18","v":"MATH 32"},{"$f":"IF(+'TRANSCRIPT INFORMATION'!L18=\"\",0,IF('TRANSCRIPT INFORMATION'!L18=\"N/A\",0,'TRANSCRIPT INFORMATION'!L18))","v":0},{"$f":"+'TRANSCRIPT INFORMATION'!M18","v":" "},{"$f":"+'TRANSCRIPT INFORMATION'!N18","v":0},null,0,0,0,0]
[{"$f":"+'TRANSCRIPT INFORMATION'!B20","v":"MATH 133A"},{"$f":"IF(+'TRANSCRIPT INFORMATION'!L20=\"\",0,IF('TRANSCRIPT INFORMATION'!L20=\"N/A\",0,'TRANSCRIPT INFORMATION'!L20))","v":0},{"$f":"+'TRANSCRIPT INFORMATION'!M20","v":" "},{"$f":"+'TRANSCRIPT INFORMATION'!N20","v":0},null,"",0,0,0]
[{"$f":"+'TRANSCRIPT INFORMATION'!B21","v":0},{"$f":"IF(+'TRANSCRIPT INFORMATION'!L21=\"\",0,IF('TRANSCRIPT INFORMATION'!L21=\"N/A\",0,'TRANSCRIPT INFORMATION'!L21))","v":0},{"$f":"+'TRANSCRIPT INFORMATION'!M21","v":" "},{"$f":"+'TRANSCRIPT INFORMATION'!N21","v":0},null,"A1 - ORAL COMMUNICATION",0,0,0]
[{"$f":"+'TRANSCRIPT INFORMATION'!B22","v":"CHEM 1A"},{"$f":"IF(+'TRANSCRIPT INFORMATION'!L22=\"\",0,IF('TRANSCRIPT INFORMATION'!L22=\"N/A\",0,'TRANSCRIPT INFORMATION'!L22))","v":0},{"$f":"+'TRANSCRIPT INFORMATION'!M22","v":" "},{"$f":"+'TRANSCRIPT INFORMATION'!N22","v":0},null,"A2 - WRITTEN COMMUNICATION",0,0,0]
[{"$f":"+'TRANSCRIPT INFORMATION'!B23","v":"CHEM 1B"},{"$f":"IF(+'TRANSCRIPT INFORMATION'!L23=\"\",0,IF('TRANSCRIPT INFORMATION'!L23=\"N/A\",0,'TRANSCRIPT INFORMATION'!L23))","v":0},{"$f":"+'TRANSCRIPT INFORMATION'!M23","v":" "},{"$f":"+'TRANSCRIPT INFORMATION'!N23","v":0},null,"AREAS C, D and F",0,0,0]
[{"$f":"+'TRANSCRIPT INFORMATION'!B24","v":0},{"$f":"IF(+'TRANSCRIPT INFORMATION'!L24=\"\",0,IF('TRANSCRIPT INFORMATION'!L24=\"N/A\",0,'TRANSCRIPT INFORMATION'!L24))","v":0},{"$f":"+'TRANSCRIPT INFORMATION'!M24","v":" "},{"$f":"+'TRANSCRIPT INFORMATION'!N24","v":0},null,"AREAS C, D and F",0,0,0]
[{"$f":"+'TRANSCRIPT INFORMATION'!B25","v":"PHYS 50"},{"$f":"IF(+'TRANSCRIPT INFORMATION'!L25=\"\",0,IF('TRANSCRIPT INFORMATION'!L25=\"N/A\",0,'TRANSCRIPT INFORMATION'!L25))","v":0},{"$f":"+'TRANSCRIPT INFORMATION'!M25","v":" "},{"$f":"+'TRANSCRIPT INFORMATION'!N25","v":0},null,"C3 - WRITTEN COMMUNICATION",0,0,0]
[{"$f":"+'TRANSCRIPT INFORMATION'!B26","v":"PHYS 51"},{"$f":"IF(+'TRANSCRIPT INFORMATION'!L26=\"\",0,IF('TRANSCRIPT INFORMATION'!L26=\"N/A\",0,'TRANSCRIPT INFORMATION'!L26))","v":0},{"$f":"+'TRANSCRIPT INFORMATION'!M26","v":" "},{"$f":"+'TRANSCRIPT INFORMATION'!N26","v":0},null,"E - HUMAN UNDERSTANDING",0,0,0]
[{"$f":"+'TRANSCRIPT INFORMATION'!B27","v":" "},{"$f":"IF(+'TRANSCRIPT INFORMATION'!L27=\"\",0,IF('TRANSCRIPT INFORMATION'!L27=\"N/A\",0,'TRANSCRIPT INFORMATION'!L27))","v":0},{"$f":"+'TRANSCRIPT INFORMATION'!M27","v":" "},{"$f":"+'TRANSCRIPT INFORMATION'!N27","v":0},null,"HUMAN PERFORMANCE",0,0,0]
[{"$f":"+'TRANSCRIPT INFORMATION'!B28","v":"ENGL 1B"},{"$f":"IF(+'TRANSCRIPT INFORMATION'!L28=\"\",0,IF('TRANSCRIPT INFORMATION'!L28=\"N/A\",0,'TRANSCRIPT INFORMATION'!L28))","v":0},{"$f":"+'TRANSCRIPT INFORMATION'!M28","v":" "},{"$f":"+'TRANSCRIPT INFORMATION'!N28","v":0},null,"HUMAN PERFORMANCE",0,0,0]
[{"$f":"+'TRANSCRIPT INFORMATION'!#REF!","v":{"$error":"#REF!"}},{"$f":"IF(+'TRANSCRIPT INFORMATION'!#REF!=\"\",0,IF('TRANSCRIPT INFORMATION'!#REF!=\"N/A\",0,'TRANSCRIPT INFORMATION'!#REF!))","v":{"$error":"#REF!"}},{"$f":"+'TRANSCRIPT INFORMATION'!#REF!","v":{"$error":"#REF!"}},{"$f":"+'TRANSCRIPT INFORMATION'!#REF!","v":{"$error":"#REF!"}},null,"S - SELF, SOCIETY & EQUALITY IN THE US",0,0,0]
[null,null,null,null,null,"V - CULTURE, CIVILIZATION & GLOBAL UNDERS.",0,0,0]
[{"$f":"+'TRANSCRIPT INFORMATION'!B30","v":"ENGR 10"},{"$f":"IF(+'TRANSCRIPT INFORMATION'!L30=\"\",0,IF('TRANSCRIPT INFORMATION'!L30=\"N/A\",0,'TRANSCRIPT INFORMATION'!L30))","v":0},{"$f":"+'TRANSCRIPT INFORMATION'!M30","v":0},{"$f":"+'TRANSCRIPT INFORMATION'!N30","v":0},null,"Z - WRITTEN COMUNICATION II",0,0,0]
[{"$f":"+'TRANSCRIPT INFORMATION'!B31","v":"MATE 25"},{"$f":"IF(+'TRANSCRIPT INFORMATION'!L31=\"\",0,IF('TRANSCRIPT INFORMATION'!L31=\"N/A\",0,'TRANSCRIPT INFORMATION'!L31))","v":0},{"$f":"+'TRANSCRIPT INFORMATION'!M31","v":0},{"$f":"+'TRANSCRIPT INFORMATION'!N31","v":0},null,0,0," ",0]
[{"$f":"+'TRANSCRIPT INFORMATION'!B32","v":"CE 99"},{"$f":"IF(+'TRANSCRIPT INFORMATION'!L32=\"\",0,IF('TRANSCRIPT INFORMATION'!L32=\"N/A\",0,'TRANSCRIPT INFORMATION'!L32))","v":0},{"$f":"+'TRANSCRIPT INFORMATION'!M32","v":0},{"$f":"+'TRANSCRIPT INFORMATION'!N32","v":0},null,0,0," ",0]
[{"$f":"+'TRANSCRIPT INFORMATION'!B33","v":"EE 98"},{"$f":"IF(+'TRANSCRIPT INFORMATION'!L33=\"\",0,IF('TRANSCRIPT INFORMATION'!L33=\"N/A\",0,'TRANSCRIPT INFORMATION'!L33))","v":0},{"$f":"+'TRANSCRIPT INFORMATION'!M33","v":0},{"$f":"+'TRANSCRIPT INFORMATION'!N33","v":0},null,0,0," ",0]
[{"$f":"+'TRANSCRIPT INFORMATION'!B40","v":"CHEM 112A"},{"$f":"IF(+'TRANSCRIPT INFORMATION'!L40=\"\",0,IF('TRANSCRIPT INFORMATION'!L40=\"N/A\",0,'TRANSCRIPT INFORMATION'!L40))","v":0},{"$f":"+'TRANSCRIPT INFORMATION'!M40","v":0},{"$f":"+'TRANSCRIPT INFORMATION'!N40","v":0},null,0,0," ",0]
[null,null,null,null,null,0,0," ",0]
[{"$f":"+'TRANSCRIPT INFORMATION'!B42","v":"BME 115"},{"$f":"IF(+'TRANSCRIPT INFORMATION'!L42=\"\",0,IF('TRANSCRIPT INFORMATION'!L42=\"N/A\",0,'TRANSCRIPT INFORMATION'!L42))","v":0},{"$f":"+'TRANSCRIPT INFORMATION'!M42","v":0},{"$f":"+'TRANSCRIPT INFORMATION'!N42","v":0},null,0,0," ",0]
[{"$f":"+'TRANSCRIPT INFORMATION'!B43","v":"BME 117"},{"$f":"IF(+'TRANSCRIPT INFORMATION'!L43=\"\",0,IF('TRANSCRIPT INFORMATION'!L43=\"N/A\",0,'TRANSCRIPT INFORMATION'!L43))","v":0},{"$f":"+'TRANSCRIPT INFORMATION'!M43","v":0},{"$f":"+'TRANSCRIPT INFORMATION'!N43","v":0},null,0,0," ",0]
[{"$f":"+'TRANSCRIPT INFORMATION'!B44","v":"BME 177"},{"$f":"IF(+'TRANSCRIPT INFORMATION'!L44=\"\",0,IF('TRANSCRIPT INFORMATION'!L44=\"N/A\",0,'TRANSCRIPT INFORMATION'!L44))","v":0},{"$f":"+'TRANSCRIPT INFORMATION'!M44","v":0},{"$f":"+'TRANSCRIPT INFORMATION'!N44","v":0},null,0,0," ",0]
[{"$f":"+'TRANSCRIPT INFORMATION'!B45","v":"CHE 162"},{"$f":"IF(+'TRANSCRIPT INFORMATION'!L45=\"\",0,IF('TRANSCRIPT INFORMATION'!L45=\"N/A\",0,'TRANSCRIPT INFORMATION'!L45))","v":0},{"$f":"+'TRANSCRIPT INFORMATION'!M45","v":0},{"$f":"+'TRANSCRIPT INFORMATION'!N45","v":0},null,"CE 99",0," ",0]
[{"$f":"+'TRANSCRIPT INFORMATION'!B46","v":"ENGR 100W"},{"$f":"IF(+'TRANSCRIPT INFORMATION'!L46=\"\",0,IF('TRANSCRIPT INFORMATION'!L46=\"N/A\",0,'TRANSCRIPT INFORMATION'!L46))","v":0},{"$f":"+'TRANSCRIPT INFORMATION'!M46","v":0},{"$f":"+'TRANSCRIPT INFORMATION'!N46","v":0},null,"CHE 190",0," ",0]
[{"$f":"+'TRANSCRIPT INFORMATION'!B47","v":"BME 173"},{"$f":"IF(+'TRANSCRIPT INFORMATION'!L47=\"\",0,IF('TRANSCRIPT INFORMATION'!L47=\"N/A\",0,'TRANSCRIPT INFORMATION'!L47))","v":0},{"$f":"+'TRANSCRIPT INFORMATION'!M47","v":0},{"$f":"+'TRANSCRIPT INFORMATION'!N47","v":0},null,"CHEM 112A",0," ",0]
[{"$f":"+'TRANSCRIPT INFORMATION'!B48","v":"BME 174"},{"$f":"IF(+'TRANSCRIPT INFORMATION'!L48=\"\",0,IF('TRANSCRIPT INFORMATION'!L48=\"N/A\",0,'TRANSCRIPT INFORMATION'!L48))","v":0},{"$f":"+'TRANSCRIPT INFORMATION'!M48","v":0},{"$f":"+'TRANSCRIPT INFORMATION'!N48","v":0},null,"CHEM 112B",0," ",0]
[{"$f":"+'TRANSCRIPT INFORMATION'!B49","v":"BME 198A"},{"$f":"IF(+'TRANSCRIPT INFORMATION'!L49=\"\",0,IF('TRANSCRIPT INFORMATION'!L49=\"N/A\",0,'TRANSCRIPT INFORMATION'!L49))","v":0},{"$f":"+'TRANSCRIPT INFORMATION'!M49","v":0},{"$f":"+'TRANSCRIPT INFORMATION'!N49","v":0},null,"CHEM 113A",0," ",0]
[{"$f":"+'TRANSCRIPT INFORMATION'!B50","v":"BME 198B"},{"$f":"IF(+'TRANSCRIPT INFORMATION'!L50=\"\",0,IF('TRANSCRIPT INFORMATION'!L50=\"N/A\",0,'TRANSCRIPT INFORMATION'!L50))","v":0},{"$f":"+'TRANSCRIPT INFORMATION'!M50","v":0},{"$f":"+'TRANSCRIPT INFORMATION'!N50","v":0},null,"CHEM 161A",0," ",0]
[{"$f":"+'TRANSCRIPT INFORMATION'!B51","v":0},{"$f":"IF(+'TRANSCRIPT INFORMATION'!L51=\"\",0,IF('TRANSCRIPT INFORMATION'!L51=\"N/A\",0,'TRANSCRIPT INFORMATION'!L51))","v":0},{"$f":"+'TRANSCRIPT INFORMATION'!M51","v":0},{"$f":"+'TRANSCRIPT INFORMATION'!N51","v":0},null,"CHEM 162L",0," ",0]
[{"$f":"+'TRANSCRIPT INFORMATION'!B52","v":"ENGR 195A"},{"$f":"IF(+'TRANSCRIPT INFORMATION'!L52=\"\",0,IF('TRANSCRIPT INFORMATION'!L52=\"N/A\",0,'TRANSCRIPT INFORMATION'!L52))","v":0},{"$f":"+'TRANSCRIPT INFORMATION'!M52","v":0},{"$f":"+'TRANSCRIPT INFORMATION'!N52","v":0},null,"CHEM 1A",0," ",0]
[{"$f":"+'TRANSCRIPT INFORMATION'!B53","v":"ENGR 195B"},{"$f":"IF(+'TRANSCRIPT INFORMATION'!L53=\"\",0,IF('TRANSCRIPT INFORMATION'!L53=\"N/A\",0,'TRANSCRIPT INFORMATION'!L53))","v":0},{"$f":"+'TRANSCRIPT INFORMATION'!M53","v":0},{"$f":"+'TRANSCRIPT INFORMATION'!N53","v":0},null,"CHEM 1B",0," ",0]
[{"$f":"+'TRANSCRIPT INFORMATION'!#REF!","v":{"$error":"#REF!"}},{"$f":"IF(+'TRANSCRIPT INFORMATION'!#REF!=\"\",0,IF('TRANSCRIPT INFORMATION'!#REF!=\"N/A\",0,'TRANSCRIPT INFORMATION'!#REF!))","v":{"$error":"#REF!"}},{"$f":"+'TRANSCRIPT INFORMATION'!#REF!","v":{"$error":"#REF!"}},{"$f":"+'TRANSCRIPT INFORMATION'!#REF!","v":{"$error":"#REF!"}},null,"EE 98",0," ",0]
[{"$f":"+'TRANSCRIPT INFORMATION'!#REF!","v":{"$error":"#REF!"}},{"$f":"IF(+'TRANSCRIPT INFORMATION'!#REF!=\"\",0,IF('TRANSCRIPT INFORMATION'!#REF!=\"N/A\",0,'TRANSCRIPT INFORMATION'!#REF!))","v":{"$error":"#REF!"}},{"$f":"+'TRANSCRIPT INFORMATION'!#REF!","v":{"$error":"#REF!"}},{"$f":"+'TRANSCRIPT INFORMATION'!#REF!","v":{"$error":"#REF!"}},null,"ENGR 10",0," ",0]
[{"$f":"+'TRANSCRIPT INFORMATION'!#REF!","v":{"$error":"#REF!"}},{"$f":"IF(+'TRANSCRIPT INFORMATION'!#REF!=\"\",0,IF('TRANSCRIPT INFORMATION'!#REF!=\"N/A\",0,'TRANSCRIPT INFORMATION'!#REF!))","v":{"$error":"#REF!"}},{"$f":"+'TRANSCRIPT INFORMATION'!#REF!","v":{"$error":"#REF!"}},{"$f":"+'TRANSCRIPT INFORMATION'!#REF!","v":{"$error":"#REF!"}},null,"ENGR 100W",0," ",0]
[{"$f":"+'TRANSCRIPT INFORMATION'!#REF!","v":{"$error":"#REF!"}},{"$f":"IF(+'TRANSCRIPT INFORMATION'!#REF!=\"\",0,IF('TRANSCRIPT INFORMATION'!#REF!=\"N/A\",0,'TRANSCRIPT INFORMATION'!#REF!))","v":{"$error":"#REF!"}},{"$f":"+'TRANSCRIPT INFORMATION'!#REF!","v":{"$error":"#REF!"}},{"$f":"+'TRANSCRIPT INFORMATION'!#REF!","v":{"$error":"#REF!"}},null,"MATE 25",0," ",0]
[{"$f":"+'TRANSCRIPT INFORMATION'!#REF!","v":{"$error":"#REF!"}},{"$f":"IF(+'TRANSCRIPT INFORMATION'!#REF!=\"\",0,IF('TRANSCRIPT INFORMATION'!#REF!=\"N/A\",0,'TRANSCRIPT INFORMATION'!#REF!))","v":{"$error":"#REF!"}},{"$f":"+'TRANSCRIPT INFORMATION'!#REF!","v":{"$error":"#REF!"}},{"$f":"+'TRANSCRIPT INFORMATION'!#REF!","v":{"$error":"#REF!"}},null,"MATH 133A",0," ",0]
[{"$f":"+'TRANSCRIPT INFORMATION'!#REF!","v":{"$error":"#REF!"}},{"$f":"IF(+'TRANSCRIPT INFORMATION'!#REF!=\"\",0,IF('TRANSCRIPT INFORMATION'!#REF!=\"N/A\",0,'TRANSCRIPT INFORMATION'!#REF!))","v":{"$error":"#REF!"}},{"$f":"+'TRANSCRIPT INFORMATION'!#REF!","v":{"$error":"#REF!"}},{"$f":"+'TRANSCRIPT INFORMATION'!#REF!","v":{"$error":"#REF!"}},null,"MATH 30",0," ",0]
[{"$f":"+'TRANSCRIPT INFORMATION'!#REF!","v":{"$error":"#REF!"}},{"$f":"IF(+'TRANSCRIPT INFORMATION'!#REF!=\"\",0,IF('TRANSCRIPT INFORMATION'!#REF!=\"N/A\",0,'TRANSCRIPT INFORMATION'!#REF!))","v":{"$error":"#REF!"}},{"$f":"+'TRANSCRIPT INFORMATION'!#REF!","v":{"$error":"#REF!"}},{"$f":"+'TRANSCRIPT INFORMATION'!#REF!","v":{"$error":"#REF!"}},null,"MATH 31",0," ",0]
[{"$f":"+'TRANSCRIPT INFORMATION'!B54","v":0},{"$f":"IF(+'TRANSCRIPT INFORMATION'!L54=\"\",0,IF('TRANSCRIPT INFORMATION'!L54=\"N/A\",0,'TRANSCRIPT INFORMATION'!L54))","v":0},{"$f":"+'TRANSCRIPT INFORMATION'!M54","v":0},{"$f":"+'TRANSCRIPT INFORMATION'!N54","v":0},null,"MATH 32",0," ",0]
[null,null,null,null,null,"PHYS 70",0," ",0]
[{"$f":"+'TRANSCRIPT INFORMATION'!B56","v":0},{"$f":"IF(+'TRANSCRIPT INFORMATION'!L56=\"\",0,IF('TRANSCRIPT INFORMATION'!L56=\"N/A\",0,'TRANSCRIPT INFORMATION'!L56))","v":0},{"$f":"+'TRANSCRIPT INFORMATION'!M56","v":" "},{"$f":"+'TRANSCRIPT INFORMATION'!N56","v":" "},null,"PHYS 71",0," ",0]
[{"$f":"+'TRANSCRIPT INFORMATION'!B57","v":0},{"$f":"IF(+'TRANSCRIPT INFORMATION'!L57=\"\",0,IF('TRANSCRIPT INFORMATION'!L57=\"N/A\",0,'TRANSCRIPT INFORMATION'!L57))","v":0},{"$f":"+'TRANSCRIPT INFORMATION'!M57","v":" "},{"$f":"+'TRANSCRIPT INFORMATION'!N57","v":" "},null,"CHE 115",0,"F",0]
[{"$f":"+'TRANSCRIPT INFORMATION'!B58","v":" "},{"$f":"IF(+'TRANSCRIPT INFORMATION'!L58=\"\",0,IF('TRANSCRIPT INFORMATION'!L58=\"N/A\",0,'TRANSCRIPT INFORMATION'!L58))","v":0},{"$f":"+'TRANSCRIPT INFORMATION'!M58","v":" "},{"$f":"+'TRANSCRIPT INFORMATION'!N58","v":" "},null,"CHE 158",0,"F",0]
[{"$f":"+'TRANSCRIPT INFORMATION'!B59","v":0},{"$f":"IF(+'TRANSCRIPT INFORMATION'!L59=\"\",0,IF('TRANSCRIPT INFORMATION'!L59=\"N/A\",0,'TRANSCRIPT INFORMATION'!L59))","v":0},{"$f":"+'TRANSCRIPT INFORMATION'!M59","v":0},{"$f":"+'TRANSCRIPT INFORMATION'!N59","v":0},null,"CHE 160B",0,"F",0]
[{"$f":"+'TRANSCRIPT INFORMATION'!B60","v":0},{"$f":"IF(+'TRANSCRIPT INFORMATION'!L60=\"\",0,IF('TRANSCRIPT INFORMATION'!L60=\"N/A\",0,'TRANSCRIPT INFORMATION'!L60))","v":0},{"$f":"+'TRANSCRIPT INFORMATION'!M60","v":0},{"$f":"+'TRANSCRIPT INFORMATION'!N60","v":0},null,"CHE 161",0,"F",0]
[{"$f":"+'TRANSCRIPT INFORMATION'!B61","v":0},{"$f":"IF(+'TRANSCRIPT INFORMATION'!L61=\"\",0,IF('TRANSCRIPT INFORMATION'!L61=\"N/A\",0,'TRANSCRIPT INFORMATION'!L61))","v":0},{"$f":"+'TRANSCRIPT INFORMATION'!M61","v":0},{"$f":"+'TRANSCRIPT INFORMATION'!N61","v":0},null,"CHE 161L",0,"F",0]
[{"$f":"IF(GEs!$K$3=\"\",IF(GEs!$D$11=\"Y\",+GEs!C16,\"\"))","v":"A1 - ORAL COMMUNICATION"},{"$f":"IF(GEs!$K$3=\"\",IF(GEs!$D$11=\"Y\",+GEs!I16,\"\"))","v":0},{"$f":"IF(GEs!$K$3=\"\",IF(GEs!$D$11=\"Y\",+GEs!G16,\"\"))","v":0},{"$f":"IF(GEs!$K$3=\"\",IF(GEs!$D$11=\"Y\",+GEs!H16,\"\"))","v":0},null,"CHE 151",0,"Sp",0]
[{"$f":"IF(GEs!$K$3=\"\",IF(GEs!$D$11=\"Y\",+GEs!C17,\"\"))","v":"A2 - WRITTEN COMMUNICATION"},{"$f":"IF(GEs!$K$3=\"\",IF(GEs!$D$11=\"Y\",+GEs!I17,\"\"))","v":0},{"$f":"IF(GEs!$K$3=\"\",IF(GEs!$D$11=\"Y\",+GEs!G17,\"\"))","v":0},{"$f":"IF(GEs!$K$3=\"\",IF(GEs!$D$11=\"Y\",+GEs!H17,\"\"))","v":0},null,"CHE 160A",0,"Sp",0]
[{"$f":"IF(GEs!$K$3=\"\",IF(GEs!$D$11=\"Y\",+GEs!C19,\"\"))","v":"AREAS C1,C2, D2,D3 and F1,2,3"},{"$f":"IF(GEs!$K$3=\"\",IF(GEs!$D$11=\"Y\",+GEs!I19,\"\"))","v":0},{"$f":"IF(GEs!$K$3=\"\",IF(GEs!$D$11=\"Y\",+GEs!G19,\"\"))","v":0},{"$f":"IF(GEs!$K$3=\"\",IF(GEs!$D$11=\"Y\",+GEs!H19,\"\"))","v":0},null,"CHE 162L",0,"Sp",0]
[{"$f":"IF(GEs!$K$3=\"\",IF(GEs!$D$11=\"Y\",+GEs!C20,\"\"))","v":"AREAS C1,C2, D2,D3 and F1,2,3"},{"$f":"IF(GEs!$K$3=\"\",IF(GEs!$D$11=\"Y\",+GEs!I20,\"\"))","v":0},{"$f":"IF(GEs!$K$3=\"\",IF(GEs!$D$11=\"Y\",+GEs!G20,\"\"))","v":0},{"$f":"IF(GEs!$K$3=\"\",IF(GEs!$D$11=\"Y\",+GEs!H20,\"\"))","v":0},null,"CHE 162L",0,"Sp",0]
[{"$f":"IF(GEs!$K$3=\"\",IF(GEs!$D$11=\"Y\",+GEs!C21,\"\"))","v":"C3 - WRITTEN COMMUNICATION"},{"$f":"IF(GEs!$K$3=\"\",IF(GEs!$D$11=\"Y\",+GEs!I21,\"\"))","v":0},{"$f":"IF(GEs!$K$3=\"\",IF(GEs!$D$11=\"Y\",+GEs!G21,\"\"))","v":0},{"$f":"IF(GEs!$K$3=\"\",IF(GEs!$D$11=\"Y\",+GEs!H21,\"\"))","v":0},null,"CHE 165",0,"Sp",0]
[{"$f":"IF(GEs!$K$3=\"\",IF(GEs!$D$11=\"Y\",+GEs!C22,\"\"))","v":"E - HUMAN UNDERSTANDING"},{"$f":"IF(GEs!$K$3=\"\",IF(GEs!$D$11=\"Y\",+GEs!I22,\"\"))","v":0},{"$f":"IF(GEs!$K$3=\"\",IF(GEs!$D$11=\"Y\",+GEs!G22,\"\"))","v":0},{"$f":"IF(GEs!$K$3=\"\",IF(GEs!$D$11=\"Y\",+GEs!H22,\"\"))","v":0},null,"CHE 185",0,"Sp",0]
[{"$f":"IF(GEs!$K$3=\"\",IF(GEs!$D$11=\"Y\",+GEs!C23,\"\"))","v":"HUMAN PERFORMANCE"},{"$f":"IF(GEs!$K$3=\"\",IF(GEs!$D$11=\"Y\",+GEs!I23,\"\"))","v":0},{"$f":"IF(GEs!$K$3=\"\",IF(GEs!$D$11=\"Y\",+GEs!G23,\"\"))","v":0},{"$f":"IF(GEs!$K$3=\"\",IF(GEs!$D$11=\"Y\",+GEs!H23,\"\"))","v":0},null,"","","",""]
[{"$f":"IF(GEs!$K$3=\"\",IF(GEs!$D$11=\"Y\",+GEs!C24,\"\"))","v":"HUMAN PERFORMANCE"},{"$f":"IF(GEs!$K$3=\"\",IF(GEs!$D$11=\"Y\",+GEs!I24,\"\"))","v":0},{"$f":"IF(GEs!$K$3=\"\",IF(GEs!$D$11=\"Y\",+GEs!G24,\"\"))","v":0},{"$f":"IF(GEs!$K$3=\"\",IF(GEs!$D$11=\"Y\",+GEs!H24,\"\"))","v":0},null,"","","",""]
[null,null,null,null,null,"","","",""]
[null,null,null,null,null,"","","",""]
[null,null,null,null,null,"","","",""]
[{"$f":"IF(GEs!$K$3=\"\",IF(GEs!$D$12=\"Y\",+GEs!C28,\"\"))","v":""},{"$f":"IF(GEs!$K$3=\"\",IF(GEs!$D$12=\"Y\",+GEs!I28,\"\"))","v":""},{"$f":"IF(GEs!$K$3=\"\",IF(GEs!$D$12=\"Y\",+GEs!G28,\"\"))","v":""},{"$f":"IF(GEs!$K$3=\"\",IF(GEs!$D$12=\"Y\",+GEs!H28,\"\"))","v":""},null,"","","",""]
[{"$f":"IF(GEs!$K$3=\"\",IF(GEs!$D$12=\"Y\",+GEs!C29,\"\"))","v":""},{"$f":"IF(GEs!$K$3=\"\",IF(GEs!$D$12=\"Y\",+GEs!I29,\"\"))","v":""},{"$f":"IF(GEs!$K$3=\"\",IF(GEs!$D$12=\"Y\",+GEs!G29,\"\"))","v":""},{"$f":"IF(GEs!$K$3=\"\",IF(GEs!$D$12=\"Y\",+GEs!H29,\"\"))","v":""},null,"","","",""]
[{"$f":"IF(GEs!$K$3=\"\",IF(GEs!$D$12=\"Y\",+GEs!C30,\"\"))","v":""},{"$f":"IF(GEs!$K$3=\"\",IF(GEs!$D$12=\"Y\",+GEs!I30,\"\"))","v":""},{"$f":"IF(GEs!$K$3=\"\",IF(GEs!$D$12=\"Y\",+GEs!G30,\"\"))","v":""},{"$f":"IF(GEs!$K$3=\"\",IF(GEs!$D$12=\"Y\",+GEs!H30,\"\"))","v":""},null,"","","",""]
[{"$f":"IF(GEs!$K$3=\"\",IF(GEs!$D$12=\"Y\",+GEs!C31,\"\"))","v":""},{"$f":"IF(GEs!$K$3=\"\",IF(GEs!$D$12=\"Y\",+GEs!I31,\"\"))","v":""},{"$f":"IF(GEs!$K$3=\"\",IF(GEs!$D$12=\"Y\",+GEs!G31,\"\"))","v":""},{"$f":"IF(GEs!$K$3=\"\",IF(GEs!$D$12=\"Y\",+GEs!H31,\"\"))","v":""},null,"","","",""]
[{"$f":"IF(GEs!$K$3=\"\",IF(GEs!$D$12=\"Y\",+GEs!C32,\"\"))","v":""},{"$f":"IF(GEs!$K$3=\"\",IF(GEs!$D$12=\"Y\",+GEs!I32,\"\"))","v":""},{"$f":"IF(GEs!$K$3=\"\",IF(GEs!$D$12=\"Y\",+GEs!G32,\"\"))","v":""},{"$f":"IF(GEs!$K$3=\"\",IF(GEs!$D$12=\"Y\",+GEs!H32,\"\"))","v":""},null,"","","",""]
[{"$f":"IF(GEs!$K$3=\"\",IF(GEs!$D$12=\"Y\",+GEs!C33,\"\"))","v":""},{"$f":"IF(GEs!$K$3=\"\",IF(GEs!$D$12=\"Y\",+GEs!I33,\"\"))","v":""},{"$f":"IF(GEs!$K$3=\"\",IF(GEs!$D$12=\"Y\",+GEs!G33,\"\"))","v":""},{"$f":"IF(GEs!$K$3=\"\",IF(GEs!$D$12=\"Y\",+GEs!H33,\"\"))","v":""},null,"","","",""]
[{"$f":"IF(GEs!$K$3=\"\",IF(GEs!$D$12=\"Y\",+GEs!C34,\"\"))","v":""},{"$f":"IF(GEs!$K$3=\"\",IF(GEs!$D$12=\"Y\",+GEs!I34,\"\"))","v":""},{"$f":"IF(GEs!$K$3=\"\",IF(GEs!$D$12=\"Y\",+GEs!G34,\"\"))","v":""},{"$f":"IF(GEs!$K$3=\"\",IF(GEs!$D$12=\"Y\",+GEs!H34,\"\"))","v":""},null,"","","",""]
[{"$f":"IF(GEs!$K$3=\"\",IF(GEs!$D$12=\"Y\",+GEs!C35,\"\"))","v":""},{"$f":"IF(GEs!$K$3=\"\",IF(GEs!$D$12=\"Y\",+GEs!I35,\"\"))","v":""},{"$f":"IF(GEs!$K$3=\"\",IF(GEs!$D$12=\"Y\",+GEs!G35,\"\"))","v":""},{"$f":"IF(GEs!$K$3=\"\",IF(GEs!$D$12=\"Y\",+GEs!H35,\"\"))","v":""},null,"","","",""]
[{"$f":"IF(GEs!$K$3=\"\",IF(GEs!$D$12=\"Y\",+GEs!C36,\"\"))","v":""},{"$f":"IF(GEs!$K$3=\"\",IF(GEs!$D$12=\"Y\",+GEs!I36,\"\"))","v":""},{"$f":"IF(GEs!$K$3=\"\",IF(GEs!$D$12=\"Y\",+GEs!G36,\"\"))","v":""},{"$f":"IF(GEs!$K$3=\"\",IF(GEs!$D$12=\"Y\",+GEs!H36,\"\"))","v":""},null,"","","",""]
[{"$f":"IF(GEs!$K$3=\"\",IF(GEs!$D$12=\"Y\",+GEs!C37,\"\"))","v":""},{"$f":"IF(GEs!$K$3=\"\",IF(GEs!$D$12=\"Y\",+GEs!I37,\"\"))","v":""},{"$f":"IF(GEs!$K$3=\"\",IF(GEs!$D$12=\"Y\",+GEs!G37,\"\"))","v":""},{"$f":"IF(GEs!$K$3=\"\",IF(GEs!$D$12=\"Y\",+GEs!H37,\"\"))","v":""},null,"","","",""]
[{"$f":"IF(GEs!$K$3=\"\",IF(GEs!$D$12=\"Y\",+GEs!C38,\"\"))","v":""},{"$f":"IF(GEs!$K$3=\"\",IF(GEs!$D$12=\"Y\",+GEs!I38,\"\"))","v":""},{"$f":"IF(GEs!$K$3=\"\",IF(GEs!$D$12=\"Y\",+GEs!G38,\"\"))","v":""},{"$f":"IF(GEs!$K$3=\"\",IF(GEs!$D$12=\"Y\",+GEs!H38,\"\"))","v":""},null,"","","",""]
[{"$f":"IF(GEs!$K$3=\"\",IF(GEs!$D$12=\"Y\",+GEs!C39,\"\"))","v":""},{"$f":"IF(GEs!$K$3=\"\",IF(GEs!$D$12=\"Y\",+GEs!I39,\"\"))","v":""},{"$f":"IF(GEs!$K$3=\"\",IF(GEs!$D$12=\"Y\",+GEs!G39,\"\"))","v":""},{"$f":"IF(GEs!$K$3=\"\",IF(GEs!$D$12=\"Y\",+GEs!H39,\"\"))","v":""},null,"","","",""]
[{"$f":"IF(GEs!$K$3=\"\",IF(GEs!$D$12=\"Y\",+GEs!C40,\"\"))","v":""},{"$f":"IF(GEs!$K$3=\"\",IF(GEs!$D$12=\"Y\",+GEs!I40,\"\"))","v":""},{"$f":"IF(GEs!$K$3=\"\",IF(GEs!$D$12=\"Y\",+GEs!G40,\"\"))","v":""},{"$f":"IF(GEs!$K$3=\"\",IF(GEs!$D$12=\"Y\",+GEs!H40,\"\"))","v":""},null,"","","",""]
[{"$f":"IF(GEs!$K$3=\"\",IF(GEs!$D$12=\"Y\",+GEs!C41,\"\"))","v":""},{"$f":"IF(GEs!$K$3=\"\",IF(GEs!$D$12=\"Y\",+GEs!I41,\"\"))","v":""},{"$f":"IF(GEs!$K$3=\"\",IF(GEs!$D$12=\"Y\",+GEs!G41,\"\"))","v":""},{"$f":"IF(GEs!$K$3=\"\",IF(GEs!$D$12=\"Y\",+GEs!H41,\"\"))","v":""},null,"","","",""]
[null,null,null,null,null,"","","",""]
[null,null,null,null,null,"ENGR. SCI. ELEC.",0," "," "]
[null,null,null,null,null,"ENGR. SCI. ELEC.",0," "," "]
[{"$f":"IF(GEs!$K$3=\"\",IF(GEs!$D$13=\"Y\",+GEs!C45,\"\"))","v":""},{"$f":"IF(GEs!$K$3=\"\",IF(GEs!$D$13=\"Y\",+GEs!I45,\"\"))","v":""},{"$f":"IF(GEs!$K$3=\"\",IF(GEs!$D$13=\"Y\",+GEs!G45,\"\"))","v":""},{"$f":"IF(GEs!$K$3=\"\",IF(GEs!$D$13=\"Y\",+GEs!H45,\"\"))","v":""},null,"UD CHEM ELECT.",0," "," "]
[{"$f":"IF(GEs!$K$3=\"\",IF(GEs!$D$13=\"Y\",+GEs!C46,\"\"))","v":""},{"$f":"IF(GEs!$K$3=\"\",IF(GEs!$D$13=\"Y\",+GEs!I46,\"\"))","v":""},{"$f":"IF(GEs!$K$3=\"\",IF(GEs!$D$13=\"Y\",+GEs!G46,\"\"))","v":""},{"$f":"IF(GEs!$K$3=\"\",IF(GEs!$D$13=\"Y\",+GEs!H46,\"\"))","v":""}]
[{"$f":"IF(GEs!$K$3=\"\",IF(GEs!$D$13=\"Y\",+GEs!C47,\"\"))","v":""},{"$f":"IF(GEs!$K$3=\"\",IF(GEs!$D$13=\"Y\",+GEs!I47,\"\"))","v":""},{"$f":"IF(GEs!$K$3=\"\",IF(GEs!$D$13=\"Y\",+GEs!G47,\"\"))","v":""},{"$f":"IF(GEs!$K$3=\"\",IF(GEs!$D$13=\"Y\",+GEs!H47,\"\"))","v":""}]
[{"$f":"IF(GEs!$K$3=\"\",IF(GEs!$D$13=\"Y\",+GEs!C48,\"\"))","v":""},{"$f":"IF(GEs!$K$3=\"\",IF(GEs!$D$13=\"Y\",+GEs!I48,\"\"))","v":""},{"$f":"IF(GEs!$K$3=\"\",IF(GEs!$D$13=\"Y\",+GEs!G48,\"\"))","v":""},{"$f":"IF(GEs!$K$3=\"\",IF(GEs!$D$13=\"Y\",+GEs!H48,\"\"))","v":""}]
[{"$f":"IF(GEs!$K$3=\"\",IF(GEs!$D$13=\"Y\",+GEs!C49,\"\"))","v":""},{"$f":"IF(GEs!$K$3=\"\",IF(GEs!$D$13=\"Y\",+GEs!I49,\"\"))","v":""},{"$f":"IF(GEs!$K$3=\"\",IF(GEs!$D$13=\"Y\",+GEs!G49,\"\"))","v":""},{"$f":"IF(GEs!$K$3=\"\",IF(GEs!$D$13=\"Y\",+GEs!H49,\"\"))","v":""}]
[{"$f":"IF(GEs!$K$3=\"\",IF(GEs!$D$13=\"Y\",+GEs!C50,\"\"))","v":""},{"$f":"IF(GEs!$K$3=\"\",IF(GEs!$D$13=\"Y\",+GEs!I50,\"\"))","v":""},{"$f":"IF(GEs!$K$3=\"\",IF(GEs!$D$13=\"Y\",+GEs!G50,\"\"))","v":""},{"$f":"IF(GEs!$K$3=\"\",IF(GEs!$D$13=\"Y\",+GEs!H50,\"\"))","v":""}]
[]
[]
[]
[]
[]
[]
[{"$f":"+GEs!C56","v":"S - SELF, SOCIETY & EQUALITY IN THE US"},{"$f":"IF(+GEs!I56=\"\",0,GEs!I56)","v":0},{"$f":"+GEs!G56","v":0},{"$f":"+GEs!H56","v":0}]
[{"$f":"+GEs!C57","v":"V - CULTURE, CIVILIZATION & GLOBAL UNDERS."},{"$f":"IF(+GEs!I57=\"\",0,GEs!I57)","v":0},{"$f":"+GEs!G57","v":0},{"$f":"+GEs!H57","v":0}]
[{"$f":"+GEs!C58","v":"Z - WRITTEN COMUNICATION II"},{"$f":"IF(+GEs!I58=\"\",0,GEs!I58)","v":0},{"$f":"+GEs!G59","v":0},{"$f":"+GEs!H59","v":0}]
[{"$f":"IF(GEs!D58=\"ENGR 100W\",\"\",+GEs!C59)","v":""},{"$f":"IF(+GEs!I59=\"\",0,GEs!I59)","v":0},{"$f":"+GEs!G60","v":0},{"$f":"+GEs!H60","v":0}]